extractdate,publisheruri,publisherlabel,serviceyypeuri,servicetypelabel,Date of Transaction,LA Department incurring spend,Beneficiary,Gross Amount,Summary of Purpose of Spend,Merchant Category
30/04/2015,http://opendatacommunities.org/id/county-council/surrey,Surrey,http://id.esd.org.uk/service/1465,Council expenditure,29/12/2014,ARUNDEL,SEINE RIGGER LTD,98.95,REFRESHMENT COSTS,"EATING PLACES, RESTAURANTS"
30/04/2015,http://opendatacommunities.org/id/county-council/surrey,Surrey,http://id.esd.org.uk/service/1465,Council expenditure,29/12/2014,ARUNDEL,ASDA SUPERSTORE,26.10,REFRESHMENT COSTS,"GROCERY STORES, SUPERMARKETS"
30/04/2015,http://opendatacommunities.org/id/county-council/surrey,Surrey,http://id.esd.org.uk/service/1465,Council expenditure,29/12/2014,CHILDREN'S RIGHTS TEAM,WWW.ALLCOLOURENVELOPES,76.74,STATIONERY,STATIONERY/OFFICE SUPPLIES/PRINTING & WRITING PAP.
30/04/2015,http://opendatacommunities.org/id/county-council/surrey,Surrey,http://id.esd.org.uk/service/1465,Council expenditure,29/12/2014,FAIRCROFT COMMUNITY HOME,SPLIT - PROVISIONS (50.78%),134.32,PURCHASE OF FOOD (RAW MATERIALS),"GROCERY STORES, SUPERMARKETS"
30/04/2015,http://opendatacommunities.org/id/county-council/surrey,Surrey,http://id.esd.org.uk/service/1465,Council expenditure,29/12/2014,FAIRCROFT COMMUNITY HOME,SPLIT - PROVISIONS (49.22%),130.18,PURCHASE OF FOOD (RAW MATERIALS),"GROCERY STORES, SUPERMARKETS"
30/04/2015,http://opendatacommunities.org/id/county-council/surrey,Surrey,http://id.esd.org.uk/service/1465,Council expenditure,29/12/2014,FAIRCROFT COMMUNITY HOME,TICKETLINEUK.COM,64.00,EDUC VISITS/HOLS/CAMPS/TOYS,"THEATRICAL PRODUCERS(EXCL MOTION PIX),TICKET AGNCY"
30/04/2015,http://opendatacommunities.org/id/county-council/surrey,Surrey,http://id.esd.org.uk/service/1465,Council expenditure,29/12/2014,FAIRCROFT COMMUNITY HOME,KFC-PEACOCKS CENTRE,10.67,REFRESHMENT COSTS,FAST FOOD RESTAURANTS
30/04/2015,http://opendatacommunities.org/id/county-council/surrey,Surrey,http://id.esd.org.uk/service/1465,Council expenditure,29/12/2014,HOPE SERVICE - EAST,43034385 COSTA COFFEE,5.25,REFRESHMENT COSTS,"EATING PLACES, RESTAURANTS"
30/04/2015,http://opendatacommunities.org/id/county-council/surrey,Surrey,http://id.esd.org.uk/service/1465,Council expenditure,29/12/2014,IMCA / DEPRIVATION OF LIBERTY,BRITISH GAS,115.57,3RD PARTY PAYMENTS PRIVATE INDIV,DIRECT MARKETING-OTHER DIRECT MARKETERS/NOT ELSEW.
30/04/2015,http://opendatacommunities.org/id/county-council/surrey,Surrey,http://id.esd.org.uk/service/1465,Council expenditure,29/12/2014,IMT PRODUCTION APPLICATIONS TEAM,RACKSPACE EMAIL & APPS,46.31,COMPUTER SERVICES,COMPUTER NETWORK/INFORMATION SERVICES
30/04/2015,http://opendatacommunities.org/id/county-council/surrey,Surrey,http://id.esd.org.uk/service/1465,Council expenditure,29/12/2014,LEAVING CARE PACKAGES,TRAVELODGE WEBSITE,93.30,3RD PARTY PAYMENTS PRIVATE INDIV,TRAVELODGE
30/04/2015,http://opendatacommunities.org/id/county-council/surrey,Surrey,http://id.esd.org.uk/service/1465,Council expenditure,29/12/2014,LIBERTAS COMMUNITY HOME,SAINSBURYS 0652,197.88,PURCHASE OF FOOD (RAW MATERIALS),"GROCERY STORES, SUPERMARKETS"
30/04/2015,http://opendatacommunities.org/id/county-council/surrey,Surrey,http://id.esd.org.uk/service/1465,Council expenditure,29/12/2014,MALLOW CRESCENT,SPLIT - ON LINE GROCERY SHOPPING (92.56%),94.36,PURCHASE OF FOOD (RAW MATERIALS),"GROCERY STORES, SUPERMARKETS"
30/04/2015,http://opendatacommunities.org/id/county-council/surrey,Surrey,http://id.esd.org.uk/service/1465,Council expenditure,29/12/2014,MALLOW CRESCENT,SPLIT - ON LINE GROCERY SHOPPING (7.44%),7.59,PURCHASE OF FOOD (RAW MATERIALS),"GROCERY STORES, SUPERMARKETS"
30/04/2015,http://opendatacommunities.org/id/county-council/surrey,Surrey,http://id.esd.org.uk/service/1465,Council expenditure,29/12/2014,NW LOOKED AFTER TEAM,AMAZON EU,59.99,EQUIPMENT,DIRECT MARKETING-OTHER DIRECT MARKETERS/NOT ELSEW.
30/04/2015,http://opendatacommunities.org/id/county-council/surrey,Surrey,http://id.esd.org.uk/service/1465,Council expenditure,29/12/2014,PROPERTY OPERATIONS TEAM,WICKES,131.70,PURCHASE OF BUILDING MATERIALS,"BUILDING MATERIALS, LUMBER STORES"
30/04/2015,http://opendatacommunities.org/id/county-council/surrey,Surrey,http://id.esd.org.uk/service/1465,Council expenditure,29/12/2014,RUTH HOUSE,THE FARM SHOP-,389.85,PURCHASE OF FOOD (RAW MATERIALS),"CLOCK, JEWELRY, WATCH, AND SILVERWARE STORE"
30/04/2015,http://opendatacommunities.org/id/county-council/surrey,Surrey,http://id.esd.org.uk/service/1465,Council expenditure,29/12/2014,RUTH HOUSE,SPLIT - (85.9%),162.65,PURCHASE OF FOOD (RAW MATERIALS),"GROCERY STORES, SUPERMARKETS"
30/04/2015,http://opendatacommunities.org/id/county-council/surrey,Surrey,http://id.esd.org.uk/service/1465,Council expenditure,29/12/2014,RUTH HOUSE,SPLIT - (14.1%),26.70,PURCHASE OF FOOD (RAW MATERIALS),"GROCERY STORES, SUPERMARKETS"
30/04/2015,http://opendatacommunities.org/id/county-council/surrey,Surrey,http://id.esd.org.uk/service/1465,Council expenditure,29/12/2014,RUTH HOUSE,W M MORRISONS,26.10,EQUIPMENT,"GROCERY STORES, SUPERMARKETS"
30/04/2015,http://opendatacommunities.org/id/county-council/surrey,Surrey,http://id.esd.org.uk/service/1465,Council expenditure,29/12/2014,SE AGENCY PLACEMENTS - EDUCATION,EASYJET00 000ENK14JF,71.40,NON-STAFF RELATED TRANSPORT COSTS,EASYJET
30/04/2015,http://opendatacommunities.org/id/county-council/surrey,Surrey,http://id.esd.org.uk/service/1465,Council expenditure,29/12/2014,SE CARE - LAC,EASYJET00 000ENK14JF,189.68,NON-STAFF RELATED TRANSPORT COSTS,EASYJET
30/04/2015,http://opendatacommunities.org/id/county-council/surrey,Surrey,http://id.esd.org.uk/service/1465,Council expenditure,29/12/2014,WOODLANDS COMMUNITY HOME,PROVISIONS (77.6%),110.83,PURCHASE OF FOOD (RAW MATERIALS),"GROCERY STORES, SUPERMARKETS"
30/04/2015,http://opendatacommunities.org/id/county-council/surrey,Surrey,http://id.esd.org.uk/service/1465,Council expenditure,29/12/2014,WOODLANDS COMMUNITY HOME,CLEANING MATERIALS (22.4%),32.00,CLEANING MATERIALS,"GROCERY STORES, SUPERMARKETS"
30/04/2015,http://opendatacommunities.org/id/county-council/surrey,Surrey,http://id.esd.org.uk/service/1465,Council expenditure,30/12/2014,BROCKHURST RESIDENTIAL CARE,ARGOS DIRECT,349.90,EQUIPMENT,DISCOUNT STORES
30/04/2015,http://opendatacommunities.org/id/county-council/surrey,Surrey,http://id.esd.org.uk/service/1465,Council expenditure,30/12/2014,BURBANK COMMUNITY HOME,SAINSBURYS TO YOU 0686,188.36,PURCHASE OF FOOD (RAW MATERIALS),"GROCERY STORES, SUPERMARKETS"
30/04/2015,http://opendatacommunities.org/id/county-council/surrey,Surrey,http://id.esd.org.uk/service/1465,Council expenditure,30/12/2014,BURBANK COMMUNITY HOME,KIDSPACE CROYDON LTD,47.50,EDUC VISITS/HOLS/CAMPS/TOYS,RECREATIONAL AND SPORTING CAMPS
30/04/2015,http://opendatacommunities.org/id/county-council/surrey,Surrey,http://id.esd.org.uk/service/1465,Council expenditure,30/12/2014,BURBANK COMMUNITY HOME,BROOKLANDS EXTRA,34.75,EQUIPMENT,"OFFICE, SCHOOL SUPPLY, AND STATIONERY STORES"
30/04/2015,http://opendatacommunities.org/id/county-council/surrey,Surrey,http://id.esd.org.uk/service/1465,Council expenditure,30/12/2014,BURBANK COMMUNITY HOME,W M MORRISONS,15.78,PURCHASE OF FOOD (RAW MATERIALS),"GROCERY STORES, SUPERMARKETS"
30/04/2015,http://opendatacommunities.org/id/county-council/surrey,Surrey,http://id.esd.org.uk/service/1465,Council expenditure,30/12/2014,BURBANK COMMUNITY HOME,W M MORRISONS,4.99,MEDICAL EXPENSES,"GROCERY STORES, SUPERMARKETS"
30/04/2015,http://opendatacommunities.org/id/county-council/surrey,Surrey,http://id.esd.org.uk/service/1465,Council expenditure,30/12/2014,COMMUNICATIONS TEAM,ITUNES.COM/BILL,14.98,SUBSCRIPTIONS,RECORD SHOPS
30/04/2015,http://opendatacommunities.org/id/county-council/surrey,Surrey,http://id.esd.org.uk/service/1465,Council expenditure,30/12/2014,HILLSIDE,SAINSBURYS 0675,161.96,PURCHASE OF FOOD (RAW MATERIALS),"GROCERY STORES, SUPERMARKETS"
30/04/2015,http://opendatacommunities.org/id/county-council/surrey,Surrey,http://id.esd.org.uk/service/1465,Council expenditure,30/12/2014,HOPE SERVICE - EAST,CAFFE NERO,5.95,REFRESHMENT COSTS,"EATING PLACES, RESTAURANTS"
30/04/2015,http://opendatacommunities.org/id/county-council/surrey,Surrey,http://id.esd.org.uk/service/1465,Council expenditure,30/12/2014,LEAVING CARE PACKAGES,THE GRANGE HOTEL,224.75,3RD PARTY PAYMENTS PRIVATE INDIV,"LODGING-HOTELS,MOTELS,RESORTS-NOT CLASSIFIED"
30/04/2015,http://opendatacommunities.org/id/county-council/surrey,Surrey,http://id.esd.org.uk/service/1465,Council expenditure,30/12/2014,LIBERTAS COMMUNITY HOME,SAINSBURYS 0652,16.08,PURCHASE OF FOOD (RAW MATERIALS),"GROCERY STORES, SUPERMARKETS"
30/04/2015,http://opendatacommunities.org/id/county-council/surrey,Surrey,http://id.esd.org.uk/service/1465,Council expenditure,30/12/2014,MALLOW CRESCENT,SPLIT - ON LINE GROCERY SHOPPING (92.65%),136.80,PURCHASE OF FOOD (RAW MATERIALS),"GROCERY STORES, SUPERMARKETS"
30/04/2015,http://opendatacommunities.org/id/county-council/surrey,Surrey,http://id.esd.org.uk/service/1465,Council expenditure,30/12/2014,MALLOW CRESCENT,SPLIT - ON LINE GROCERY SHOPPING (95.11%),97.35,PURCHASE OF FOOD (RAW MATERIALS),"GROCERY STORES, SUPERMARKETS"
30/04/2015,http://opendatacommunities.org/id/county-council/surrey,Surrey,http://id.esd.org.uk/service/1465,Council expenditure,30/12/2014,MALLOW CRESCENT,AMAZON  MKTPLCE EU-UK,14.80,EQUIPMENT,BOOK STORES
30/04/2015,http://opendatacommunities.org/id/county-council/surrey,Surrey,http://id.esd.org.uk/service/1465,Council expenditure,30/12/2014,MALLOW CRESCENT,SPLIT - ON LINE GROCERY SHOPPING (7.35%),10.85,PURCHASE OF FOOD (RAW MATERIALS),"GROCERY STORES, SUPERMARKETS"
30/04/2015,http://opendatacommunities.org/id/county-council/surrey,Surrey,http://id.esd.org.uk/service/1465,Council expenditure,30/12/2014,MALLOW CRESCENT,SPLIT - ON LINE GROCERY SHOPPING (4.89%),5.00,PURCHASE OF FOOD (RAW MATERIALS),"GROCERY STORES, SUPERMARKETS"
30/04/2015,http://opendatacommunities.org/id/county-council/surrey,Surrey,http://id.esd.org.uk/service/1465,Council expenditure,30/12/2014,PROPERTY OPERATIONS TEAM,TOOLSTATION LTD,8.10,PURCHASE OF BUILDING MATERIALS,HARDWARE STORES
30/04/2015,http://opendatacommunities.org/id/county-council/surrey,Surrey,http://id.esd.org.uk/service/1465,Council expenditure,30/12/2014,TRANSPORT,MOBILE FLEETWASH UK LT,324.00,VEHICLE REPAIRS AND MAINTENANCE,CAR WASHES
30/04/2015,http://opendatacommunities.org/id/county-council/surrey,Surrey,http://id.esd.org.uk/service/1465,Council expenditure,30/12/2014,TRANSPORT,INSULATED TOOLS LTD,61.06,OPERATIONAL FIRE EQUIPMENT,HARDWARE EQUIPMENT AND SUPPLIES
30/04/2015,http://opendatacommunities.org/id/county-council/surrey,Surrey,http://id.esd.org.uk/service/1465,Council expenditure,30/12/2014,WOODLANDS COMMUNITY HOME,DUVET COVER FOR YOUNG PERSON (75.23%),51.59,EQUIPMENT,PROFESSIONAL SERVICES-NOT ELSEWHERE CLASSIFIED
30/04/2015,http://opendatacommunities.org/id/county-council/surrey,Surrey,http://id.esd.org.uk/service/1465,Council expenditure,30/12/2014,WOODLANDS COMMUNITY HOME,MATTRESS PROTECTOR (24.77%),16.99,EQUIPMENT,PROFESSIONAL SERVICES-NOT ELSEWHERE CLASSIFIED
30/04/2015,http://opendatacommunities.org/id/county-council/surrey,Surrey,http://id.esd.org.uk/service/1465,Council expenditure,31/12/2014,BURBANK COMMUNITY HOME,W M MORRISONS,15.02,PURCHASE OF FOOD (RAW MATERIALS),"GROCERY STORES, SUPERMARKETS"
30/04/2015,http://opendatacommunities.org/id/county-council/surrey,Surrey,http://id.esd.org.uk/service/1465,Council expenditure,31/12/2014,CENTRAL COMMS - PUBLIC HEALTH CAMPAIGNS,FACEBOOK TWP6F7W9K2,13.92,PUBLICITY,ADVERTISING SERVICES
30/04/2015,http://opendatacommunities.org/id/county-council/surrey,Surrey,http://id.esd.org.uk/service/1465,Council expenditure,31/12/2014,CHILDREN'S RIGHTS TEAM,HIGH STREET VOUCHE,494.25,STATIONERY,"GIFT, CARD, NOVELTY AND SOUVENIR SHOPS"
30/04/2015,http://opendatacommunities.org/id/county-council/surrey,Surrey,http://id.esd.org.uk/service/1465,Council expenditure,31/12/2014,COUNTY HALL,AMAZON  MKTPLCE EU-UK,12.00,STATIONERY,BOOK STORES
30/04/2015,http://opendatacommunities.org/id/county-council/surrey,Surrey,http://id.esd.org.uk/service/1465,Council expenditure,31/12/2014,CUSTOMER RELATIONSHIP MANAGEMENT        ,"ZENDESK, INC.","8,623.12",COMPUTER SERVICES,PROFESSIONAL SERVICES-NOT ELSEWHERE CLASSIFIED
30/04/2015,http://opendatacommunities.org/id/county-council/surrey,Surrey,http://id.esd.org.uk/service/1465,Council expenditure,31/12/2014,FAIRCROFT COMMUNITY HOME,CHARLIE CHOYS AND,142.84,REFRESHMENT COSTS,"EATING PLACES, RESTAURANTS"
30/04/2015,http://opendatacommunities.org/id/county-council/surrey,Surrey,http://id.esd.org.uk/service/1465,Council expenditure,31/12/2014,FAIRCROFT COMMUNITY HOME,ALLSORTS OF PARTIES,48.96,EDUC VISITS/HOLS/CAMPS/TOYS,"GIFT, CARD, NOVELTY AND SOUVENIR SHOPS"
30/04/2015,http://opendatacommunities.org/id/county-council/surrey,Surrey,http://id.esd.org.uk/service/1465,Council expenditure,31/12/2014,FAIRCROFT COMMUNITY HOME,SAINSBURYS 0687,15.08,PURCHASE OF FOOD (RAW MATERIALS),"GROCERY STORES, SUPERMARKETS"
30/04/2015,http://opendatacommunities.org/id/county-council/surrey,Surrey,http://id.esd.org.uk/service/1465,Council expenditure,31/12/2014,HILLSIDE,SAINSBURYS 0784,30.75,PURCHASE OF FOOD (RAW MATERIALS),"GROCERY STORES, SUPERMARKETS"
30/04/2015,http://opendatacommunities.org/id/county-council/surrey,Surrey,http://id.esd.org.uk/service/1465,Council expenditure,31/12/2014,HOLLAND CLOSE RESIDENTIAL HOME,TESCO-STORES 6647,140.87,PURCHASE OF FOOD (RAW MATERIALS),"GROCERY STORES, SUPERMARKETS"
30/04/2015,http://opendatacommunities.org/id/county-council/surrey,Surrey,http://id.esd.org.uk/service/1465,Council expenditure,31/12/2014,KARIBU COMMUNITY HOME,GOURMET BURGER KIT,81.45,PURCHASE OF FOOD (RAW MATERIALS),"EATING PLACES, RESTAURANTS"
30/04/2015,http://opendatacommunities.org/id/county-council/surrey,Surrey,http://id.esd.org.uk/service/1465,Council expenditure,31/12/2014,LEAVING CARE PACKAGES,TRAVELODGE WEBSITE,246.25,3RD PARTY PAYMENTS PRIVATE INDIV,TRAVELODGE
30/04/2015,http://opendatacommunities.org/id/county-council/surrey,Surrey,http://id.esd.org.uk/service/1465,Council expenditure,31/12/2014,LEAVING CARE PACKAGES,SHAMROCK GUESTHOUSE,210.00,3RD PARTY PAYMENTS PRIVATE INDIV,"LODGING-HOTELS,MOTELS,RESORTS-NOT CLASSIFIED"
30/04/2015,http://opendatacommunities.org/id/county-council/surrey,Surrey,http://id.esd.org.uk/service/1465,Council expenditure,31/12/2014,QUADRANT COURT WOKING,AMAZON  MKTPLCE EU-UK,1.64,STATIONERY,BOOK STORES
30/04/2015,http://opendatacommunities.org/id/county-council/surrey,Surrey,http://id.esd.org.uk/service/1465,Council expenditure,31/12/2014,TRANSPORT,WWW.MARCHESIRONMON,61.19,DAY TO DAY MAINTENANCE,HARDWARE STORES
30/04/2015,http://opendatacommunities.org/id/county-council/surrey,Surrey,http://id.esd.org.uk/service/1465,Council expenditure,31/12/2014,WAVERLEY BOROUGH TEAM                   ,NCS VUE CITB HS&E REV,149.04,EDUC VISITS/HOLS/CAMPS/TOYS,SCHOOLS & EDUCATIONAL SVC-NOT ELSEWHERE CLASSIFIED
30/04/2015,http://opendatacommunities.org/id/county-council/surrey,Surrey,http://id.esd.org.uk/service/1465,Council expenditure,01/01/2015,BURBANK COMMUNITY HOME,PRODUCT SUPPORT AG,4.50,DAY TO DAY MAINTENANCE,DIRECT MARKETING-CONTINUITY/SUBSCRIPTION MERCHANTS
30/04/2015,http://opendatacommunities.org/id/county-council/surrey,Surrey,http://id.esd.org.uk/service/1465,Council expenditure,01/01/2015,HILLSIDE,SAINSBURYS SACAT 0675,19.80,PURCHASE OF FOOD (RAW MATERIALS),"GROCERY STORES, SUPERMARKETS"
30/04/2015,http://opendatacommunities.org/id/county-council/surrey,Surrey,http://id.esd.org.uk/service/1465,Council expenditure,01/01/2015,HILLSIDE,SAINSBURYS SACAT 0675,19.27,PURCHASE OF FOOD (RAW MATERIALS),"GROCERY STORES, SUPERMARKETS"
30/04/2015,http://opendatacommunities.org/id/county-council/surrey,Surrey,http://id.esd.org.uk/service/1465,Council expenditure,01/01/2015,KARIBU COMMUNITY HOME,SAINSBURYS 0683,185.79,PURCHASE OF FOOD (RAW MATERIALS),"GROCERY STORES, SUPERMARKETS"
30/04/2015,http://opendatacommunities.org/id/county-council/surrey,Surrey,http://id.esd.org.uk/service/1465,Council expenditure,01/01/2015,LIBERTAS COMMUNITY HOME,LEBARA,20.00,3RD PARTY PAYMENTS PRIVATE INDIV,TELECOM INCL PREPAID/RECURRING PHONE SVCS
30/04/2015,http://opendatacommunities.org/id/county-council/surrey,Surrey,http://id.esd.org.uk/service/1465,Council expenditure,01/01/2015,NORTH WEST AREA TEAM,FASTHOSTS INTERNET,5.99,EDUC VISITS/HOLS/CAMPS/TOYS,COMPUTER NETWORK/INFORMATION SERVICES
30/04/2015,http://opendatacommunities.org/id/county-council/surrey,Surrey,http://id.esd.org.uk/service/1465,Council expenditure,01/01/2015,WOODLANDS COMMUNITY HOME,ODEON UPT,32.45,EDUC VISITS/HOLS/CAMPS/TOYS,MOTION PICTURE THEATERS
30/04/2015,http://opendatacommunities.org/id/county-council/surrey,Surrey,http://id.esd.org.uk/service/1465,Council expenditure,01/01/2015,WOODLANDS COMMUNITY HOME,SAINSBURYS SACAT(4409),15.10,PURCHASE OF FOOD (RAW MATERIALS),"GROCERY STORES, SUPERMARKETS"
30/04/2015,http://opendatacommunities.org/id/county-council/surrey,Surrey,http://id.esd.org.uk/service/1465,Council expenditure,01/01/2015,WOODLANDS COMMUNITY HOME,ODEON,6.20,PURCHASE OF FOOD (RAW MATERIALS),MOTION PICTURE THEATERS
30/04/2015,http://opendatacommunities.org/id/county-council/surrey,Surrey,http://id.esd.org.uk/service/1465,Council expenditure,02/01/2015,APPLEWOOD,ASDA HOME SHOPPING,142.19,PURCHASE OF FOOD (RAW MATERIALS),"GROCERY STORES, SUPERMARKETS"
30/04/2015,http://opendatacommunities.org/id/county-council/surrey,Surrey,http://id.esd.org.uk/service/1465,Council expenditure,02/01/2015,CEO - PUBLIC HEALTH CAMPAIGNS           ,GOOGLE  SVCSAPPS_SUPER,30.25,PUBLICITY,DIRECT MARKETING-CONTINUITY/SUBSCRIPTION MERCHANTS
30/04/2015,http://opendatacommunities.org/id/county-council/surrey,Surrey,http://id.esd.org.uk/service/1465,Council expenditure,02/01/2015,CHEYNE WALK COMMUNITY HOME,SAINSBURYS TO YOU 0026,163.60,PURCHASE OF FOOD (RAW MATERIALS),"GROCERY STORES, SUPERMARKETS"
30/04/2015,http://opendatacommunities.org/id/county-council/surrey,Surrey,http://id.esd.org.uk/service/1465,Council expenditure,02/01/2015,COUNTY HALL,AMAZON  MKTPLCE EU-UK,107.30,PHOTOCOPIER MACHINES AND MATERIALS,BOOK STORES
30/04/2015,http://opendatacommunities.org/id/county-council/surrey,Surrey,http://id.esd.org.uk/service/1465,Council expenditure,02/01/2015,FAIRCROFT COMMUNITY HOME,BLINDS 2 GO LTD,63.16,FURNITURE,"DRAPERY, UPOLSTERY, AND WINDOW COVERINGS STORES"
30/04/2015,http://opendatacommunities.org/id/county-council/surrey,Surrey,http://id.esd.org.uk/service/1465,Council expenditure,02/01/2015,FAIRCROFT COMMUNITY HOME,ODEON,25.25,EDUC VISITS/HOLS/CAMPS/TOYS,MOTION PICTURE THEATERS
30/04/2015,http://opendatacommunities.org/id/county-council/surrey,Surrey,http://id.esd.org.uk/service/1465,Council expenditure,02/01/2015,FAIRCROFT COMMUNITY HOME,ODEON,3.95,REFRESHMENT COSTS,MOTION PICTURE THEATERS
30/04/2015,http://opendatacommunities.org/id/county-council/surrey,Surrey,http://id.esd.org.uk/service/1465,Council expenditure,02/01/2015,FOUNDATION STAGE WORK,AMAZON  MKTPLCE EU-UK,34.97,EQUIPMENT,BOOK STORES
30/04/2015,http://opendatacommunities.org/id/county-council/surrey,Surrey,http://id.esd.org.uk/service/1465,Council expenditure,02/01/2015,HILLSIDE,SAINSBURYS 0675,88.18,PURCHASE OF FOOD (RAW MATERIALS),"GROCERY STORES, SUPERMARKETS"
30/04/2015,http://opendatacommunities.org/id/county-council/surrey,Surrey,http://id.esd.org.uk/service/1465,Council expenditure,02/01/2015,IMT CRITICAL ENVIRONMENTS,WWW.MILKANDMORE.CO.UK,42.56,REFRESHMENT COSTS,DIRECT MARKETING-CONTINUITY/SUBSCRIPTION MERCHANTS
30/04/2015,http://opendatacommunities.org/id/county-council/surrey,Surrey,http://id.esd.org.uk/service/1465,Council expenditure,02/01/2015,LEGAL SUPPORT TEAM,FEDEX 548053384,58.79,POSTAGE AND COURIER CHARGES,"COURIER SVC-AIR & GROUND, FREIGHT FORWARDERS"
30/04/2015,http://opendatacommunities.org/id/county-council/surrey,Surrey,http://id.esd.org.uk/service/1465,Council expenditure,02/01/2015,LIBERTAS COMMUNITY HOME,PROVISIONS (76.27%),106.19,PURCHASE OF FOOD (RAW MATERIALS),"GROCERY STORES, SUPERMARKETS"
30/04/2015,http://opendatacommunities.org/id/county-council/surrey,Surrey,http://id.esd.org.uk/service/1465,Council expenditure,02/01/2015,LIBERTAS COMMUNITY HOME,PROVISIONS (23.73%),33.03,PURCHASE OF FOOD (RAW MATERIALS),"GROCERY STORES, SUPERMARKETS"
30/04/2015,http://opendatacommunities.org/id/county-council/surrey,Surrey,http://id.esd.org.uk/service/1465,Council expenditure,02/01/2015,SE LOOKED AFTER TEAM,TRAVELODGE WEBSITE,201.05,OTHER COMMUNITY CARE PRIV,TRAVELODGE
30/04/2015,http://opendatacommunities.org/id/county-council/surrey,Surrey,http://id.esd.org.uk/service/1465,Council expenditure,02/01/2015,WAVERLEY BOROUGH TEAM                   ,AMAZON EU,76.60,EDUC VISITS/HOLS/CAMPS/TOYS,DIRECT MARKETING-OTHER DIRECT MARKETERS/NOT ELSEW.
30/04/2015,http://opendatacommunities.org/id/county-council/surrey,Surrey,http://id.esd.org.uk/service/1465,Council expenditure,02/01/2015,WOODLANDS COMMUNITY HOME,PROVISIONS (96.98%),128.58,PURCHASE OF FOOD (RAW MATERIALS),"GROCERY STORES, SUPERMARKETS"
30/04/2015,http://opendatacommunities.org/id/county-council/surrey,Surrey,http://id.esd.org.uk/service/1465,Council expenditure,02/01/2015,WOODLANDS COMMUNITY HOME,PROVISIONS (3.02%),4.00,PURCHASE OF FOOD (RAW MATERIALS),"GROCERY STORES, SUPERMARKETS"
30/04/2015,http://opendatacommunities.org/id/county-council/surrey,Surrey,http://id.esd.org.uk/service/1465,Council expenditure,03/01/2015,BURBANK COMMUNITY HOME,W M MORRISONS,19.19,PURCHASE OF FOOD (RAW MATERIALS),"GROCERY STORES, SUPERMARKETS"
30/04/2015,http://opendatacommunities.org/id/county-council/surrey,Surrey,http://id.esd.org.uk/service/1465,Council expenditure,03/01/2015,BURBANK COMMUNITY HOME,WOKING BOROUGH COUNCIL,2.60,MISCELLANEOUS STAFF TRAVEL,AUTOMOBILE PARKING LOTS AND GARAGES
30/04/2015,http://opendatacommunities.org/id/county-council/surrey,Surrey,http://id.esd.org.uk/service/1465,Council expenditure,03/01/2015,FAIRCROFT COMMUNITY HOME,NEW LOOK 1792,52.96,"CLOTHING, UNIFORM AND LAUNDRY",WOMEN'S READY TO WEAR STORES
30/04/2015,http://opendatacommunities.org/id/county-council/surrey,Surrey,http://id.esd.org.uk/service/1465,Council expenditure,03/01/2015,FAIRCROFT COMMUNITY HOME,PRIMARK,46.80,"CLOTHING, UNIFORM AND LAUNDRY",FAMILY CLOTHING STORES
30/04/2015,http://opendatacommunities.org/id/county-council/surrey,Surrey,http://id.esd.org.uk/service/1465,Council expenditure,03/01/2015,HILLSIDE,SPLIT - FOOD FOR HILLSIDE (83.18%),60.83,PURCHASE OF FOOD (RAW MATERIALS),"GROCERY STORES, SUPERMARKETS"
30/04/2015,http://opendatacommunities.org/id/county-council/surrey,Surrey,http://id.esd.org.uk/service/1465,Council expenditure,03/01/2015,HILLSIDE,SPLIT - FOOD FOR HILLSIDE (16.82%),12.30,PURCHASE OF FOOD (RAW MATERIALS),"GROCERY STORES, SUPERMARKETS"
30/04/2015,http://opendatacommunities.org/id/county-council/surrey,Surrey,http://id.esd.org.uk/service/1465,Council expenditure,03/01/2015,KARIBU COMMUNITY HOME,KFC-PEACOCKS CENTRE,11.18,PURCHASE OF FOOD (RAW MATERIALS),FAST FOOD RESTAURANTS
30/04/2015,http://opendatacommunities.org/id/county-council/surrey,Surrey,http://id.esd.org.uk/service/1465,Council expenditure,03/01/2015,LIBERTAS COMMUNITY HOME,USC,53.00,"CLOTHING, UNIFORM AND LAUNDRY",MEN'S AND WOMEN'S CLOTHING STORES
30/04/2015,http://opendatacommunities.org/id/county-council/surrey,Surrey,http://id.esd.org.uk/service/1465,Council expenditure,03/01/2015,LIBERTAS COMMUNITY HOME,NEW LOOK 1720,43.18,"CLOTHING, UNIFORM AND LAUNDRY",WOMEN'S READY TO WEAR STORES
30/04/2015,http://opendatacommunities.org/id/county-council/surrey,Surrey,http://id.esd.org.uk/service/1465,Council expenditure,03/01/2015,LIBERTAS COMMUNITY HOME,MARKS & SPENCER,16.00,"CLOTHING, UNIFORM AND LAUNDRY","GROCERY STORES, SUPERMARKETS"
30/04/2015,http://opendatacommunities.org/id/county-council/surrey,Surrey,http://id.esd.org.uk/service/1465,Council expenditure,03/01/2015,SW CARE - CP & COURT LAC,WWW.EVIIVO.COM,48.00,CHILDREN ACT SEC 17 PAYMENTS,BUSINESS SERVICES-NOT ELSEWHERE CLASSIFIED
30/04/2015,http://opendatacommunities.org/id/county-council/surrey,Surrey,http://id.esd.org.uk/service/1465,Council expenditure,04/01/2015,ARUNDEL,ASDA SUPERSTORE,46.30,REFRESHMENT COSTS,"GROCERY STORES, SUPERMARKETS"
30/04/2015,http://opendatacommunities.org/id/county-council/surrey,Surrey,http://id.esd.org.uk/service/1465,Council expenditure,04/01/2015,ARUNDEL,ASDA SUPERSTORE,16.00,CLEANING MATERIALS,"GROCERY STORES, SUPERMARKETS"
30/04/2015,http://opendatacommunities.org/id/county-council/surrey,Surrey,http://id.esd.org.uk/service/1465,Council expenditure,04/01/2015,KARIBU COMMUNITY HOME,LIDL UK,8.17,PURCHASE OF FOOD (RAW MATERIALS),"GROCERY STORES, SUPERMARKETS"
30/04/2015,http://opendatacommunities.org/id/county-council/surrey,Surrey,http://id.esd.org.uk/service/1465,Council expenditure,04/01/2015,NW ASSESSMENT TEAM,TRAVELODGE WEBSITE,54.35,OTHER COMMUNITY CARE PRIV,TRAVELODGE
30/04/2015,http://opendatacommunities.org/id/county-council/surrey,Surrey,http://id.esd.org.uk/service/1465,Council expenditure,04/01/2015,WEB OPERATIONS TEAM,HOOTSUITE MEDIA INC.,4.82,COMPUTER SOFTWARE,BUSINESS SERVICES-NOT ELSEWHERE CLASSIFIED
30/04/2015,http://opendatacommunities.org/id/county-council/surrey,Surrey,http://id.esd.org.uk/service/1465,Council expenditure,05/01/2015,ARUNDEL,SPLIT - (97.72%),85.71,REFRESHMENT COSTS,"GROCERY STORES, SUPERMARKETS"
30/04/2015,http://opendatacommunities.org/id/county-council/surrey,Surrey,http://id.esd.org.uk/service/1465,Council expenditure,05/01/2015,ARUNDEL,SPLIT - (2.28%),2.00,REFRESHMENT COSTS,"GROCERY STORES, SUPERMARKETS"
30/04/2015,http://opendatacommunities.org/id/county-council/surrey,Surrey,http://id.esd.org.uk/service/1465,Council expenditure,05/01/2015,ASSET PLANNING - OPERATIONS,DRAEGER SAFETY UK LTD,398.72,EQUIPMENT,DENTAL/LAB/MED/OPHTHALMIC HOSP EQUIP & SUPPLIES
30/04/2015,http://opendatacommunities.org/id/county-council/surrey,Surrey,http://id.esd.org.uk/service/1465,Council expenditure,05/01/2015,ASSET PLANNING - OPERATIONS,DRAEGER SAFETY UK LTD,271.97,EQUIPMENT,DENTAL/LAB/MED/OPHTHALMIC HOSP EQUIP & SUPPLIES
30/04/2015,http://opendatacommunities.org/id/county-council/surrey,Surrey,http://id.esd.org.uk/service/1465,Council expenditure,05/01/2015,ASYLUM SEEKERS UNDER 16,TRAVELODGE WEBSITE,77.20,CHILDREN ACT SEC 17 PAYMENTS,TRAVELODGE
30/04/2015,http://opendatacommunities.org/id/county-council/surrey,Surrey,http://id.esd.org.uk/service/1465,Council expenditure,05/01/2015,BROCKHURST RESIDENTIAL CARE,M&S E COMMERCE,35.00,EQUIPMENT,"GROCERY STORES, SUPERMARKETS"
30/04/2015,http://opendatacommunities.org/id/county-council/surrey,Surrey,http://id.esd.org.uk/service/1465,Council expenditure,05/01/2015,CONSORT HOUSE REDHILL,BUILDASIGN,175.13,EQUIPMENT,COMPUTER NETWORK/INFORMATION SERVICES
30/04/2015,http://opendatacommunities.org/id/county-council/surrey,Surrey,http://id.esd.org.uk/service/1465,Council expenditure,05/01/2015,COUNTY HALL,TV LICENSING,145.50,LICENCE FEES,"CONSULTING, MANAGEMENT, AND PUBLIC RELATIONS SVCS"
30/04/2015,http://opendatacommunities.org/id/county-council/surrey,Surrey,http://id.esd.org.uk/service/1465,Council expenditure,05/01/2015,COUNTY HALL,JCM LOCKSMITHS LTD,55.50,DAY TO DAY MAINTENANCE,HARDWARE STORES
30/04/2015,http://opendatacommunities.org/id/county-council/surrey,Surrey,http://id.esd.org.uk/service/1465,Council expenditure,05/01/2015,COUNTY HALL,AMAZON  MKTPLCE EU-UK,18.01,STATIONERY,BOOK STORES
30/04/2015,http://opendatacommunities.org/id/county-council/surrey,Surrey,http://id.esd.org.uk/service/1465,Council expenditure,05/01/2015,CS BUSINESS SUPPORT EAST,M&S E COMMERCE,25.00,REFRESHMENT COSTS,"GROCERY STORES, SUPERMARKETS"
30/04/2015,http://opendatacommunities.org/id/county-council/surrey,Surrey,http://id.esd.org.uk/service/1465,Council expenditure,05/01/2015,DORKING LIBRARY,WWW.CAMVIS.COM,112.50,EQUIPMENT,ELECTRONIC REPAIR SHOPS
30/04/2015,http://opendatacommunities.org/id/county-council/surrey,Surrey,http://id.esd.org.uk/service/1465,Council expenditure,05/01/2015,EAST SUSSEX CONTRACT - MGMT & ADMIN,TESCO STORES 3330,2.89,REFRESHMENT COSTS,"GROCERY STORES, SUPERMARKETS"
30/04/2015,http://opendatacommunities.org/id/county-council/surrey,Surrey,http://id.esd.org.uk/service/1465,Council expenditure,05/01/2015,FAIRCROFT COMMUNITY HOME,KIT-SHOP LTD,234.25,"CLOTHING, UNIFORM AND LAUNDRY",CHILDREN'S AND INFANT'S WEAR STORES
30/04/2015,http://opendatacommunities.org/id/county-council/surrey,Surrey,http://id.esd.org.uk/service/1465,Council expenditure,05/01/2015,FAIRCROFT COMMUNITY HOME,SPLIT - NEW BLINDS (51.47%),149.13,EQUIPMENT,"GROCERY STORES, SUPERMARKETS"
30/04/2015,http://opendatacommunities.org/id/county-council/surrey,Surrey,http://id.esd.org.uk/service/1465,Council expenditure,05/01/2015,FAIRCROFT COMMUNITY HOME,SPLIT - NEW BLINDS (48.53%),140.63,EQUIPMENT,"GROCERY STORES, SUPERMARKETS"
30/04/2015,http://opendatacommunities.org/id/county-council/surrey,Surrey,http://id.esd.org.uk/service/1465,Council expenditure,05/01/2015,HILLSIDE,SAINSBURYS TO YOU 0675,204.71,PURCHASE OF FOOD (RAW MATERIALS),"GROCERY STORES, SUPERMARKETS"
30/04/2015,http://opendatacommunities.org/id/county-council/surrey,Surrey,http://id.esd.org.uk/service/1465,Council expenditure,05/01/2015,HILLSIDE,SAINSBURYS 0784,38.30,PURCHASE OF FOOD (RAW MATERIALS),"GROCERY STORES, SUPERMARKETS"
30/04/2015,http://opendatacommunities.org/id/county-council/surrey,Surrey,http://id.esd.org.uk/service/1465,Council expenditure,05/01/2015,HOPE SERVICE - EAST,SAINSBURYS 0683,92.33,PURCHASE OF FOOD (RAW MATERIALS),"GROCERY STORES, SUPERMARKETS"
30/04/2015,http://opendatacommunities.org/id/county-council/surrey,Surrey,http://id.esd.org.uk/service/1465,Council expenditure,05/01/2015,HOPE SERVICE - WEST,SAINSBURYS TO YOU 0686,71.25,PURCHASE OF FOOD (RAW MATERIALS),"GROCERY STORES, SUPERMARKETS"
30/04/2015,http://opendatacommunities.org/id/county-council/surrey,Surrey,http://id.esd.org.uk/service/1465,Council expenditure,05/01/2015,HOPE SERVICE - WEST,SAINSBURYS SACAT(4409),2.00,PURCHASE OF FOOD (RAW MATERIALS),"GROCERY STORES, SUPERMARKETS"
30/04/2015,http://opendatacommunities.org/id/county-council/surrey,Surrey,http://id.esd.org.uk/service/1465,Council expenditure,05/01/2015,HR - BUSINESS SERVICES AND TRAINING,AMAZON EU,11.87,STATIONERY,DIRECT MARKETING-OTHER DIRECT MARKETERS/NOT ELSEW.
30/04/2015,http://opendatacommunities.org/id/county-council/surrey,Surrey,http://id.esd.org.uk/service/1465,Council expenditure,05/01/2015,KARIBU COMMUNITY HOME,TESCO STORE 2812,337.67,PURCHASE OF FOOD (RAW MATERIALS),"GROCERY STORES, SUPERMARKETS"
30/04/2015,http://opendatacommunities.org/id/county-council/surrey,Surrey,http://id.esd.org.uk/service/1465,Council expenditure,05/01/2015,LEAVING CARE PACKAGES,SHAMROCK GUESTHOUSE,245.00,3RD PARTY PAYMENTS PRIVATE INDIV,"LODGING-HOTELS,MOTELS,RESORTS-NOT CLASSIFIED"
30/04/2015,http://opendatacommunities.org/id/county-council/surrey,Surrey,http://id.esd.org.uk/service/1465,Council expenditure,05/01/2015,LEAVING CARE PACKAGES,THE GRANGE HOTEL,224.75,3RD PARTY PAYMENTS PRIVATE INDIV,"LODGING-HOTELS,MOTELS,RESORTS-NOT CLASSIFIED"
30/04/2015,http://opendatacommunities.org/id/county-council/surrey,Surrey,http://id.esd.org.uk/service/1465,Council expenditure,05/01/2015,LEAVING CARE PACKAGES,TRAVELODGE WEBSITE,184.60,3RD PARTY PAYMENTS PRIVATE INDIV,TRAVELODGE
30/04/2015,http://opendatacommunities.org/id/county-council/surrey,Surrey,http://id.esd.org.uk/service/1465,Council expenditure,05/01/2015,LEAVING CARE PACKAGES,TRAVELODGE WEBSITE,119.00,3RD PARTY PAYMENTS PRIVATE INDIV,TRAVELODGE
30/04/2015,http://opendatacommunities.org/id/county-council/surrey,Surrey,http://id.esd.org.uk/service/1465,Council expenditure,05/01/2015,LIBERTAS COMMUNITY HOME,SAINSBURYS 0652,184.54,PURCHASE OF FOOD (RAW MATERIALS),"GROCERY STORES, SUPERMARKETS"
30/04/2015,http://opendatacommunities.org/id/county-council/surrey,Surrey,http://id.esd.org.uk/service/1465,Council expenditure,05/01/2015,LOCAL DELIVERY GROUP,AMAZON  MKTPLCE EU-UK,32.89,EQUIPMENT,BOOK STORES
30/04/2015,http://opendatacommunities.org/id/county-council/surrey,Surrey,http://id.esd.org.uk/service/1465,Council expenditure,05/01/2015,LOWER MOLE COUNTRYSIDE PROJECT,HALFORDS 0731,22.36,PURCHASE OF BUILDING MATERIALS,BICYCLE SHOPS-SALES AND SERVICE
30/04/2015,http://opendatacommunities.org/id/county-council/surrey,Surrey,http://id.esd.org.uk/service/1465,Council expenditure,05/01/2015,NIL RECOURSE PUBLIC FNDG 18+ ASYLUM SKR,TRAVELODGE WEBSITE,142.00,3RD PARTY PAYMENTS PRIVATE INDIV,TRAVELODGE
30/04/2015,http://opendatacommunities.org/id/county-council/surrey,Surrey,http://id.esd.org.uk/service/1465,Council expenditure,05/01/2015,PE/CDT MAINTENANCE OVERHEADS,LEISURE LINES (GB),166.92,EQUIPMENT,"COMMERCIAL EQUIPMENT, NOT ELSEWHERE CLASSIFIED"
30/04/2015,http://opendatacommunities.org/id/county-council/surrey,Surrey,http://id.esd.org.uk/service/1465,Council expenditure,05/01/2015,REDHILL LIBRARY,CURRYS T/SALES,289.98,EQUIPMENT,ELECTRONIC SALES
30/04/2015,http://opendatacommunities.org/id/county-council/surrey,Surrey,http://id.esd.org.uk/service/1465,Council expenditure,05/01/2015,SE CARE - CP & COURT LAC,HOWARTH SCOTT SOLICITO,333.00,LEGAL EXPENSES,"ATTORNEYS, LEGAL SERVICES"
30/04/2015,http://opendatacommunities.org/id/county-council/surrey,Surrey,http://id.esd.org.uk/service/1465,Council expenditure,05/01/2015,SECTOR MANAGER,ROYAL MAIL,927.00,ITEMS PURCHASED FOR RE-SALE,POSTAL SERVICES-GOVERNMENT ONLY
30/04/2015,http://opendatacommunities.org/id/county-council/surrey,Surrey,http://id.esd.org.uk/service/1465,Council expenditure,05/01/2015,SOLD CURRICULUM PROGRAMME DELIVERY,BCU,150.00,CURRICULUM CONSUMABLES,"CLUBS-CNTRY,MBRSHIP(ATHLET,REC,SPRTS,PRIVATE GOLF"
30/04/2015,http://opendatacommunities.org/id/county-council/surrey,Surrey,http://id.esd.org.uk/service/1465,Council expenditure,05/01/2015,SW SECTION 17 CARE,TRAVELODGE WEBSITE,54.00,CHILDREN ACT SEC 17 PAYMENTS,TRAVELODGE
30/04/2015,http://opendatacommunities.org/id/county-council/surrey,Surrey,http://id.esd.org.uk/service/1465,Council expenditure,05/01/2015,SW TEACHERS,WWW.ELKLAN.CO.UK,53.00,BOOKS,SCHOOLS & EDUCATIONAL SVC-NOT ELSEWHERE CLASSIFIED
30/04/2015,http://opendatacommunities.org/id/county-council/surrey,Surrey,http://id.esd.org.uk/service/1465,Council expenditure,05/01/2015,SYP TANDRIDGE I-BUS,SAINSBURYS SACAT 0023,14.00,CURRICULUM CONSUMABLES,"GROCERY STORES, SUPERMARKETS"
30/04/2015,http://opendatacommunities.org/id/county-council/surrey,Surrey,http://id.esd.org.uk/service/1465,Council expenditure,05/01/2015,TARGETED INTERVENTION,FREEDOM LEISURE,16.50,EDUC VISITS/HOLS/CAMPS/TOYS,GOVERNMENT SERVICES-NOT ELSEWHERE CLASSIFIED
30/04/2015,http://opendatacommunities.org/id/county-council/surrey,Surrey,http://id.esd.org.uk/service/1465,Council expenditure,05/01/2015,TARGETED INTERVENTION,WOODYS CAFE,7.00,EDUC VISITS/HOLS/CAMPS/TOYS,"EATING PLACES, RESTAURANTS"
30/04/2015,http://opendatacommunities.org/id/county-council/surrey,Surrey,http://id.esd.org.uk/service/1465,Council expenditure,05/01/2015,TARGETED INTERVENTION,STARBUCKS,6.30,EDUC VISITS/HOLS/CAMPS/TOYS,"EATING PLACES, RESTAURANTS"
30/04/2015,http://opendatacommunities.org/id/county-council/surrey,Surrey,http://id.esd.org.uk/service/1465,Council expenditure,05/01/2015,TRAINING AND DEVELOPMENT STRATEGIC RISK,RRC,"1,860.90",TRAINING EXPENSES EXTERNAL GENERAL,"COLLEGES, UNIV, PRO SCHOOLS, JUNIOR COLLEGES"
30/04/2015,http://opendatacommunities.org/id/county-council/surrey,Surrey,http://id.esd.org.uk/service/1465,Council expenditure,05/01/2015,TRANSPORT,FOUR X NINETY LTD,240.00,STATIONERY,HARDWARE EQUIPMENT AND SUPPLIES
30/04/2015,http://opendatacommunities.org/id/county-council/surrey,Surrey,http://id.esd.org.uk/service/1465,Council expenditure,05/01/2015,TRANSPORT,EAST MIDLANDS,80.80,VEHICLE REPAIRS AND MAINTENANCE,PASSENGER RAILWAYS
30/04/2015,http://opendatacommunities.org/id/county-council/surrey,Surrey,http://id.esd.org.uk/service/1465,Council expenditure,05/01/2015,TRANSPORT,EAST MIDLANDS,74.80,VEHICLE REPAIRS AND MAINTENANCE,PASSENGER RAILWAYS
30/04/2015,http://opendatacommunities.org/id/county-council/surrey,Surrey,http://id.esd.org.uk/service/1465,Council expenditure,05/01/2015,WOODLANDS COMMUNITY HOME,IMAGES HAIR DESIGN,57.00,EQUIPMENT,BARBER AND BEAUTY SHOPS
30/04/2015,http://opendatacommunities.org/id/county-council/surrey,Surrey,http://id.esd.org.uk/service/1465,Council expenditure,05/01/2015,WOODLANDS COMMUNITY HOME,THE RANGE - ALDERSHOT,54.96,FIXTURES AND FITTINGS,MISCELLANEOUS GENERAL MERCHANDISE
30/04/2015,http://opendatacommunities.org/id/county-council/surrey,Surrey,http://id.esd.org.uk/service/1465,Council expenditure,05/01/2015,YOUTH ENGAGEMENT                        ,VIKING,159.37,STATIONERY,STATIONERY/OFFICE SUPPLIES/PRINTING & WRITING PAP.
30/04/2015,http://opendatacommunities.org/id/county-council/surrey,Surrey,http://id.esd.org.uk/service/1465,Council expenditure,05/01/2015,YSS YOUTH CENTRE IMPROVEMENTS,TVLICENSING.CO.UK,145.50,FEES,"CONSULTING, MANAGEMENT, AND PUBLIC RELATIONS SVCS"
30/04/2015,http://opendatacommunities.org/id/county-council/surrey,Surrey,http://id.esd.org.uk/service/1465,Council expenditure,06/01/2015,APPLEWOOD,ASDA HOME SHOPPING,169.99,PURCHASE OF FOOD (RAW MATERIALS),"GROCERY STORES, SUPERMARKETS"
30/04/2015,http://opendatacommunities.org/id/county-council/surrey,Surrey,http://id.esd.org.uk/service/1465,Council expenditure,06/01/2015,APPLEWOOD,ASDA HOME SHOPPING,-0.50,PURCHASE OF FOOD (RAW MATERIALS),"GROCERY STORES, SUPERMARKETS"
30/04/2015,http://opendatacommunities.org/id/county-council/surrey,Surrey,http://id.esd.org.uk/service/1465,Council expenditure,06/01/2015,CEO - PUBLIC HEALTH CAMPAIGNS           ,GOOGLE  ADWS2060179426,432.75,PUBLICITY,DIRECT MARKETING-CONTINUITY/SUBSCRIPTION MERCHANTS
30/04/2015,http://opendatacommunities.org/id/county-council/surrey,Surrey,http://id.esd.org.uk/service/1465,Council expenditure,06/01/2015,CEO - PUBLIC HEALTH CAMPAIGNS           ,FACEBOOK 9EQHJ7JAK2,28.12,PUBLICITY,ADVERTISING SERVICES
30/04/2015,http://opendatacommunities.org/id/county-council/surrey,Surrey,http://id.esd.org.uk/service/1465,Council expenditure,06/01/2015,CHIEF PROPERTY OFFICER,AMAZON  MKTPLCE EU-UK,17.18,TELECOMMUNICATION CHARGES,BOOK STORES
30/04/2015,http://opendatacommunities.org/id/county-council/surrey,Surrey,http://id.esd.org.uk/service/1465,Council expenditure,06/01/2015,COMMISSIONING AND DEVELOPMENT TEAM,IMAGE CAR SERVICES LIM,38.28,NON-STAFF RELATED TRANSPORT COSTS,LIMOUSINES AND TAXICABS
30/04/2015,http://opendatacommunities.org/id/county-council/surrey,Surrey,http://id.esd.org.uk/service/1465,Council expenditure,06/01/2015,COMMISSIONING AND DEVELOPMENT TEAM,IMAGE CAR SERVICES LIM,36.96,NON-STAFF RELATED TRANSPORT COSTS,LIMOUSINES AND TAXICABS
30/04/2015,http://opendatacommunities.org/id/county-council/surrey,Surrey,http://id.esd.org.uk/service/1465,Council expenditure,06/01/2015,COMMISSIONING AND DEVELOPMENT TEAM,AMAZON  MKTPLCE EU-UK,10.65,COMPUTER CONSUMABLES,BOOK STORES
30/04/2015,http://opendatacommunities.org/id/county-council/surrey,Surrey,http://id.esd.org.uk/service/1465,Council expenditure,06/01/2015,COUNTY HALL,SCREWFIX DIRECT,272.20,DAY TO DAY MAINTENANCE,"BUILDING MATERIALS, LUMBER STORES"
30/04/2015,http://opendatacommunities.org/id/county-council/surrey,Surrey,http://id.esd.org.uk/service/1465,Council expenditure,06/01/2015,COUNTYWIDE MANAGED PRINT SERVICE,GALTEC SOLUTIONS LTD,96.00,COMPUTER CONSUMABLES,COMPUTER SOFTWARE STORES
30/04/2015,http://opendatacommunities.org/id/county-council/surrey,Surrey,http://id.esd.org.uk/service/1465,Council expenditure,06/01/2015,CSF COMMUNICATIONS TEAM,HOOTSUITE MEDIA INC.,9.59,SUBSCRIPTIONS,BUSINESS SERVICES-NOT ELSEWHERE CLASSIFIED
30/04/2015,http://opendatacommunities.org/id/county-council/surrey,Surrey,http://id.esd.org.uk/service/1465,Council expenditure,06/01/2015,EQUIPMENT SCC BUDGET,ARGOS LTD,38.94,EQUIPMENT,DISCOUNT STORES
30/04/2015,http://opendatacommunities.org/id/county-council/surrey,Surrey,http://id.esd.org.uk/service/1465,Council expenditure,06/01/2015,EQUIPMENT SCC BUDGET,ARGOS DIRECT,-3.95,EQUIPMENT,DIRECT MARKETING-CATALOG MERCHANTS
30/04/2015,http://opendatacommunities.org/id/county-council/surrey,Surrey,http://id.esd.org.uk/service/1465,Council expenditure,06/01/2015,FAIRCROFT COMMUNITY HOME,WWW.CHELSEAFC.COM,50.00,EDUC VISITS/HOLS/CAMPS/TOYS,"ORGANIZATIONS, MEMBERSHIP-NOT ELSEWHERE CLASSIFIED"
30/04/2015,http://opendatacommunities.org/id/county-council/surrey,Surrey,http://id.esd.org.uk/service/1465,Council expenditure,06/01/2015,FOSTERING SERVICE CENTRAL COSTS,TOYS R US,77.64,EDUC VISITS/HOLS/CAMPS/TOYS,DEPARTMENT STORES
30/04/2015,http://opendatacommunities.org/id/county-council/surrey,Surrey,http://id.esd.org.uk/service/1465,Council expenditure,06/01/2015,FOSTERING SERVICE CENTRAL COSTS,THE BOOK PEOPLE,66.47,BOOKS,BOOK STORES
30/04/2015,http://opendatacommunities.org/id/county-council/surrey,Surrey,http://id.esd.org.uk/service/1465,Council expenditure,06/01/2015,FOSTERING SERVICE CENTRAL COSTS,ELC-INTERNET,66.00,BOOKS,DEPARTMENT STORES
30/04/2015,http://opendatacommunities.org/id/county-council/surrey,Surrey,http://id.esd.org.uk/service/1465,Council expenditure,06/01/2015,HILLSIDE,SAINSBURYS 0675,46.25,PURCHASE OF FOOD (RAW MATERIALS),"GROCERY STORES, SUPERMARKETS"
30/04/2015,http://opendatacommunities.org/id/county-council/surrey,Surrey,http://id.esd.org.uk/service/1465,Council expenditure,06/01/2015,HOLLAND CLOSE RESIDENTIAL HOME,TESCO-STORES 6647,167.44,PURCHASE OF FOOD (RAW MATERIALS),"GROCERY STORES, SUPERMARKETS"
30/04/2015,http://opendatacommunities.org/id/county-council/surrey,Surrey,http://id.esd.org.uk/service/1465,Council expenditure,06/01/2015,HOPE SERVICE - EAST,CLANDNPARKGARDNCNT,13.35,REFRESHMENT COSTS,LAWN AND GARDEN SUPPLY STORES
30/04/2015,http://opendatacommunities.org/id/county-council/surrey,Surrey,http://id.esd.org.uk/service/1465,Council expenditure,06/01/2015,HOPE SERVICE - EAST,AMAZON  MKTPLCE EU-UK,9.99,EQUIPMENT,BOOK STORES
30/04/2015,http://opendatacommunities.org/id/county-council/surrey,Surrey,http://id.esd.org.uk/service/1465,Council expenditure,06/01/2015,HR - BUSINESS SERVICES AND TRAINING,AMAZON  MKTPLCE EU-UK,4.02,STATIONERY,BOOK STORES
30/04/2015,http://opendatacommunities.org/id/county-council/surrey,Surrey,http://id.esd.org.uk/service/1465,Council expenditure,06/01/2015,IMT CRITICAL ENVIRONMENTS,AMAZON EU,30.30,REFRESHMENT COSTS,DIRECT MARKETING-OTHER DIRECT MARKETERS/NOT ELSEW.
30/04/2015,http://opendatacommunities.org/id/county-council/surrey,Surrey,http://id.esd.org.uk/service/1465,Council expenditure,06/01/2015,LEAVING CARE PACKAGES,TRAVELODGE WEBSITE,303.25,3RD PARTY PAYMENTS PRIVATE INDIV,TRAVELODGE
30/04/2015,http://opendatacommunities.org/id/county-council/surrey,Surrey,http://id.esd.org.uk/service/1465,Council expenditure,06/01/2015,LEAVING CARE PACKAGES,TRAVELODGE WEBSITE,206.95,3RD PARTY PAYMENTS PRIVATE INDIV,TRAVELODGE
30/04/2015,http://opendatacommunities.org/id/county-council/surrey,Surrey,http://id.esd.org.uk/service/1465,Council expenditure,06/01/2015,LEAVING CARE PACKAGES,TRAVELODGE WEBSITE,66.00,3RD PARTY PAYMENTS PRIVATE INDIV,TRAVELODGE
30/04/2015,http://opendatacommunities.org/id/county-council/surrey,Surrey,http://id.esd.org.uk/service/1465,Council expenditure,06/01/2015,LEAVING CARE PACKAGES,GRO HM PASSPORT OFFICE,9.25,OTHER COMMUNITY CARE VOL,GOVERNMENT SERVICES-NOT ELSEWHERE CLASSIFIED
30/04/2015,http://opendatacommunities.org/id/county-council/surrey,Surrey,http://id.esd.org.uk/service/1465,Council expenditure,06/01/2015,LEAVING CARE PACKAGES,TRAVELODGE WEBSITE,-133.00,3RD PARTY PAYMENTS PRIVATE INDIV,TRAVELODGE
30/04/2015,http://opendatacommunities.org/id/county-council/surrey,Surrey,http://id.esd.org.uk/service/1465,Council expenditure,06/01/2015,MALLOW CRESCENT,SPLIT - ON LINE GROCERY SHOPPING (81.53%),53.33,PURCHASE OF FOOD (RAW MATERIALS),"GROCERY STORES, SUPERMARKETS"
30/04/2015,http://opendatacommunities.org/id/county-council/surrey,Surrey,http://id.esd.org.uk/service/1465,Council expenditure,06/01/2015,MALLOW CRESCENT,AMAZON  MKTPLCE EU-UK,19.12,EQUIPMENT,BOOK STORES
30/04/2015,http://opendatacommunities.org/id/county-council/surrey,Surrey,http://id.esd.org.uk/service/1465,Council expenditure,06/01/2015,MALLOW CRESCENT,SPLIT - ON LINE GROCERY SHOPPING (18.47%),12.08,PURCHASE OF FOOD (RAW MATERIALS),"GROCERY STORES, SUPERMARKETS"
30/04/2015,http://opendatacommunities.org/id/county-council/surrey,Surrey,http://id.esd.org.uk/service/1465,Council expenditure,06/01/2015,NIL RECOURSE PUBLIC FNDG 18+ ASYLUM SKR,TRAVELODGE WEBSITE,-158.00,3RD PARTY PAYMENTS PRIVATE INDIV,TRAVELODGE
30/04/2015,http://opendatacommunities.org/id/county-council/surrey,Surrey,http://id.esd.org.uk/service/1465,Council expenditure,06/01/2015,NIL RECOURSE PUBLIC FNDG 18+ ASYLUM SKR,TRAVELODGE WEBSITE,-614.00,3RD PARTY PAYMENTS PRIVATE INDIV,TRAVELODGE
30/04/2015,http://opendatacommunities.org/id/county-council/surrey,Surrey,http://id.esd.org.uk/service/1465,Council expenditure,06/01/2015,NW ASSESSMENT TEAM,TRAVELODGE GB0787,48.51,OTHER COMMUNITY CARE PRIV,TRAVELODGE
30/04/2015,http://opendatacommunities.org/id/county-council/surrey,Surrey,http://id.esd.org.uk/service/1465,Council expenditure,06/01/2015,NW ASSESSMENT TEAM,TRAVELODGE BAR CAFE,29.85,OTHER COMMUNITY CARE PRIV,TRAVELODGE
30/04/2015,http://opendatacommunities.org/id/county-council/surrey,Surrey,http://id.esd.org.uk/service/1465,Council expenditure,06/01/2015,NW SECTION 17 CARE,TRAVELODGE WEBSITE,69.00,CHILDREN ACT SEC 17 PAYMENTS,TRAVELODGE
30/04/2015,http://opendatacommunities.org/id/county-council/surrey,Surrey,http://id.esd.org.uk/service/1465,Council expenditure,06/01/2015,NW TEACHERS,AMAZON EU,36.29,BOOKS,DIRECT MARKETING-OTHER DIRECT MARKETERS/NOT ELSEW.
30/04/2015,http://opendatacommunities.org/id/county-council/surrey,Surrey,http://id.esd.org.uk/service/1465,Council expenditure,06/01/2015,NW TEACHERS,AMAZON EU,8.99,EDUC VISITS/HOLS/CAMPS/TOYS,DIRECT MARKETING-OTHER DIRECT MARKETERS/NOT ELSEW.
30/04/2015,http://opendatacommunities.org/id/county-council/surrey,Surrey,http://id.esd.org.uk/service/1465,Council expenditure,06/01/2015,PE/CDT MAINTENANCE OVERHEADS,WWW.CONCEPT2.CO.UK,88.51,EQUIPMENT,SPORTING GOODS STORES
30/04/2015,http://opendatacommunities.org/id/county-council/surrey,Surrey,http://id.esd.org.uk/service/1465,Council expenditure,06/01/2015,PE/CDT MAINTENANCE OVERHEADS,WEY GROUP INTERNATIONA,26.14,EQUIPMENT,"COURIER SVC-AIR & GROUND, FREIGHT FORWARDERS"
30/04/2015,http://opendatacommunities.org/id/county-council/surrey,Surrey,http://id.esd.org.uk/service/1465,Council expenditure,06/01/2015,PROGRAMME TEAM,TRAVELODGE WEBSITE,59.00,EDUC VISITS/HOLS/CAMPS/TOYS,TRAVELODGE
30/04/2015,http://opendatacommunities.org/id/county-council/surrey,Surrey,http://id.esd.org.uk/service/1465,Council expenditure,06/01/2015,PROPERTY OPERATIONS TEAM,SCREWFIX GUILDFORD,58.86,PURCHASE OF BUILDING MATERIALS,"BUILDING MATERIALS, LUMBER STORES"
30/04/2015,http://opendatacommunities.org/id/county-council/surrey,Surrey,http://id.esd.org.uk/service/1465,Council expenditure,06/01/2015,QUADRANT COURT WOKING,SCREWFIX,124.94,EQUIPMENT,"BUILDING MATERIALS, LUMBER STORES"
30/04/2015,http://opendatacommunities.org/id/county-council/surrey,Surrey,http://id.esd.org.uk/service/1465,Council expenditure,06/01/2015,RUTH HOUSE,THE FARM SHOP-,410.44,PURCHASE OF FOOD (RAW MATERIALS),"CLOCK, JEWELRY, WATCH, AND SILVERWARE STORE"
30/04/2015,http://opendatacommunities.org/id/county-council/surrey,Surrey,http://id.esd.org.uk/service/1465,Council expenditure,06/01/2015,RUTH HOUSE,THE FARM SHOP-,375.72,PURCHASE OF FOOD (RAW MATERIALS),"CLOCK, JEWELRY, WATCH, AND SILVERWARE STORE"
30/04/2015,http://opendatacommunities.org/id/county-council/surrey,Surrey,http://id.esd.org.uk/service/1465,Council expenditure,06/01/2015,RUTH HOUSE,THE FARM SHOP-,304.13,PURCHASE OF FOOD (RAW MATERIALS),"CLOCK, JEWELRY, WATCH, AND SILVERWARE STORE"
30/04/2015,http://opendatacommunities.org/id/county-council/surrey,Surrey,http://id.esd.org.uk/service/1465,Council expenditure,06/01/2015,RUTH HOUSE,SPLIT - (76.97%),284.12,PURCHASE OF FOOD (RAW MATERIALS),"GROCERY STORES, SUPERMARKETS"
30/04/2015,http://opendatacommunities.org/id/county-council/surrey,Surrey,http://id.esd.org.uk/service/1465,Council expenditure,06/01/2015,RUTH HOUSE,SPLIT - (23.03%),85.03,PURCHASE OF FOOD (RAW MATERIALS),"GROCERY STORES, SUPERMARKETS"
30/04/2015,http://opendatacommunities.org/id/county-council/surrey,Surrey,http://id.esd.org.uk/service/1465,Council expenditure,06/01/2015,SE CARE - LAC,TRAVELODGE WEBSITE,61.31,CHILDREN ACT SEC 17 PAYMENTS,TRAVELODGE
30/04/2015,http://opendatacommunities.org/id/county-council/surrey,Surrey,http://id.esd.org.uk/service/1465,Council expenditure,06/01/2015,SERVICE DELIVERY RESOURCES,CROWN PET FOODS,100.26,OPERATIONAL FIRE EQUIPMENT,PET SHOPS - PET FOODS AND SUPPLIES
30/04/2015,http://opendatacommunities.org/id/county-council/surrey,Surrey,http://id.esd.org.uk/service/1465,Council expenditure,06/01/2015,SW CARE - NON-LAC CP & COURT,SURREY CC CARD PAY,16.00,FEES,COMPUTER NETWORK/INFORMATION SERVICES
30/04/2015,http://opendatacommunities.org/id/county-council/surrey,Surrey,http://id.esd.org.uk/service/1465,Council expenditure,06/01/2015,SW CARE - NON-LAC CP & COURT,SURREY CC CARD PAY,16.00,FEES,COMPUTER NETWORK/INFORMATION SERVICES
30/04/2015,http://opendatacommunities.org/id/county-council/surrey,Surrey,http://id.esd.org.uk/service/1465,Council expenditure,06/01/2015,SW SECTION 17 CARE,TRAVELODGE WEBSITE,187.00,CHILDREN ACT SEC 17 PAYMENTS,TRAVELODGE
30/04/2015,http://opendatacommunities.org/id/county-council/surrey,Surrey,http://id.esd.org.uk/service/1465,Council expenditure,06/01/2015,TANDRIDGE LOCAL CARE PD,WWW.BEDWORLD.NET,260.00,EQUIPMENT,"EQUIP, FURNITURE, HOME FURNSHNGS STRS (EXCPT APPL)"
30/04/2015,http://opendatacommunities.org/id/county-council/surrey,Surrey,http://id.esd.org.uk/service/1465,Council expenditure,06/01/2015,TARGETED INTERVENTION,CERAMICS CAFE/BIQUE UK,30.40,EDUC VISITS/HOLS/CAMPS/TOYS,"GIFT, CARD, NOVELTY AND SOUVENIR SHOPS"
30/04/2015,http://opendatacommunities.org/id/county-council/surrey,Surrey,http://id.esd.org.uk/service/1465,Council expenditure,06/01/2015,TARGETED INTERVENTION,SQUIRES GARDEN CENTRE,9.45,EDUC VISITS/HOLS/CAMPS/TOYS,LAWN AND GARDEN SUPPLY STORES
30/04/2015,http://opendatacommunities.org/id/county-council/surrey,Surrey,http://id.esd.org.uk/service/1465,Council expenditure,06/01/2015,TARGETED INTERVENTION,SQUIRES GARDEN CENTRE,5.95,EDUC VISITS/HOLS/CAMPS/TOYS,LAWN AND GARDEN SUPPLY STORES
30/04/2015,http://opendatacommunities.org/id/county-council/surrey,Surrey,http://id.esd.org.uk/service/1465,Council expenditure,06/01/2015,TRAINING HR,WWW.PMGLTD.CO.UK,462.00,TRAINING EXPENSES EXTERNAL GENERAL,BUSINESS SERVICES-NOT ELSEWHERE CLASSIFIED
30/04/2015,http://opendatacommunities.org/id/county-council/surrey,Surrey,http://id.esd.org.uk/service/1465,Council expenditure,06/01/2015,TRAINING SURREY HIGHWAYS,WWW.ICE.ORG.UK,227.50,TRAINING EXPENSES EXTERNAL GENERAL,"ORGANIZATIONS, MEMBERSHIP-NOT ELSEWHERE CLASSIFIED"
30/04/2015,http://opendatacommunities.org/id/county-council/surrey,Surrey,http://id.esd.org.uk/service/1465,Council expenditure,06/01/2015,TRAINING SURREY HIGHWAYS,WWW.ICE.ORG.UK,180.00,TRAINING EXPENSES EXTERNAL GENERAL,"ORGANIZATIONS, MEMBERSHIP-NOT ELSEWHERE CLASSIFIED"
30/04/2015,http://opendatacommunities.org/id/county-council/surrey,Surrey,http://id.esd.org.uk/service/1465,Council expenditure,06/01/2015,TRANSPORT,WWW.DVLA.GOV.UK,202.50,VEHICLE REPAIRS AND MAINTENANCE,GOVERNMENT SERVICES-NOT ELSEWHERE CLASSIFIED
30/04/2015,http://opendatacommunities.org/id/county-council/surrey,Surrey,http://id.esd.org.uk/service/1465,Council expenditure,06/01/2015,TRANSPORT,HOMEBASE LTD 247,65.95,DAY TO DAY MAINTENANCE,"BUILDING MATERIALS, LUMBER STORES"
30/04/2015,http://opendatacommunities.org/id/county-council/surrey,Surrey,http://id.esd.org.uk/service/1465,Council expenditure,06/01/2015,TRANSPORT,AMAZON  MKTPLCE EU-UK,14.95,COMPUTER HARDWARE,BOOK STORES
30/04/2015,http://opendatacommunities.org/id/county-council/surrey,Surrey,http://id.esd.org.uk/service/1465,Council expenditure,06/01/2015,WEB OPERATIONS TEAM,BT BILL PAYMENT 2,255.55,TELECOMMUNICATION CHARGES,TELECOMMUNICATION EQUIPMENT INCL TELEPHONE SALES
30/04/2015,http://opendatacommunities.org/id/county-council/surrey,Surrey,http://id.esd.org.uk/service/1465,Council expenditure,06/01/2015,WOODLANDS COMMUNITY HOME,PROVISIONS (80.97%),88.48,PURCHASE OF FOOD (RAW MATERIALS),"GROCERY STORES, SUPERMARKETS"
30/04/2015,http://opendatacommunities.org/id/county-council/surrey,Surrey,http://id.esd.org.uk/service/1465,Council expenditure,06/01/2015,WOODLANDS COMMUNITY HOME,CLEANING MATERIALS (19.03%),20.80,CLEANING MATERIALS,"GROCERY STORES, SUPERMARKETS"
30/04/2015,http://opendatacommunities.org/id/county-council/surrey,Surrey,http://id.esd.org.uk/service/1465,Council expenditure,06/01/2015,YSS YOUTH CENTRE IMPROVEMENTS,TVLICENSING.CO.UK,145.50,FEES,"CONSULTING, MANAGEMENT, AND PUBLIC RELATIONS SVCS"
30/04/2015,http://opendatacommunities.org/id/county-council/surrey,Surrey,http://id.esd.org.uk/service/1465,Council expenditure,07/01/2015,ACCESS 2 EDUCATION NE NON-MEDICAL,WWW.WESTMINSTER-BRIEFI,270.00,TRAINING EXPENSES EXTERNAL GENERAL,"SCHOOLS, BUSINESS AND SECRETARIAL"
30/04/2015,http://opendatacommunities.org/id/county-council/surrey,Surrey,http://id.esd.org.uk/service/1465,Council expenditure,07/01/2015,ACL CENTRAL EXPENDITURE,SOUTH WESTERN IND PLAS,138.45,CURRICULUM EQUIPMENT AND FURNITURE,"INSULATION,MASONRY,PLSTER,STONEWRK,TILESET CNTRCTR"
30/04/2015,http://opendatacommunities.org/id/county-council/surrey,Surrey,http://id.esd.org.uk/service/1465,Council expenditure,07/01/2015,ACL CENTRAL EXPENDITURE,TOOLSTATION LTD,35.80,CURRICULUM EQUIPMENT AND FURNITURE,HARDWARE STORES
30/04/2015,http://opendatacommunities.org/id/county-council/surrey,Surrey,http://id.esd.org.uk/service/1465,Council expenditure,07/01/2015,ARUNDEL,SPLIT - FOOD FOR SERVICE USERS (98.72%),76.88,REFRESHMENT COSTS,"GROCERY STORES, SUPERMARKETS"
30/04/2015,http://opendatacommunities.org/id/county-council/surrey,Surrey,http://id.esd.org.uk/service/1465,Council expenditure,07/01/2015,ARUNDEL,SPLIT - FOOD FOR SERVICE USERS (1.28%),1.00,REFRESHMENT COSTS,"GROCERY STORES, SUPERMARKETS"
30/04/2015,http://opendatacommunities.org/id/county-council/surrey,Surrey,http://id.esd.org.uk/service/1465,Council expenditure,07/01/2015,BURBANK COMMUNITY HOME,SAINSBURYS TO YOU 0686,299.60,PURCHASE OF FOOD (RAW MATERIALS),"GROCERY STORES, SUPERMARKETS"
30/04/2015,http://opendatacommunities.org/id/county-council/surrey,Surrey,http://id.esd.org.uk/service/1465,Council expenditure,07/01/2015,CEO - PUBLIC HEALTH CAMPAIGNS           ,FACEBOOK 3ZYT97N9K2,39.56,PUBLICITY,ADVERTISING SERVICES
30/04/2015,http://opendatacommunities.org/id/county-council/surrey,Surrey,http://id.esd.org.uk/service/1465,Council expenditure,07/01/2015,COMMUNITY PARTNERSHIP,CORPORATE DOCUMENT,413.14,PRINTING,MISCELLANEOUS PUBLISHING AND PRINTING
30/04/2015,http://opendatacommunities.org/id/county-council/surrey,Surrey,http://id.esd.org.uk/service/1465,Council expenditure,07/01/2015,CONSORT HOUSE REDHILL,MARKS & SPENCER,39.00,"CLOTHING, UNIFORM AND LAUNDRY","GROCERY STORES, SUPERMARKETS"
30/04/2015,http://opendatacommunities.org/id/county-council/surrey,Surrey,http://id.esd.org.uk/service/1465,Council expenditure,07/01/2015,COUNTYWIDE MANAGED PRINT SERVICE,GALTEC SOLUTIONS LTD,808.80,COMPUTER CONSUMABLES,COMPUTER SOFTWARE STORES
30/04/2015,http://opendatacommunities.org/id/county-council/surrey,Surrey,http://id.esd.org.uk/service/1465,Council expenditure,07/01/2015,COUNTYWIDE MANAGED PRINT SERVICE,AMAZON  MKTPLCE EU-UK,273.74,COMPUTER HARDWARE,BOOK STORES
30/04/2015,http://opendatacommunities.org/id/county-council/surrey,Surrey,http://id.esd.org.uk/service/1465,Council expenditure,07/01/2015,DOWNLANDS COUNTRYSIDE PROJECT,WRAYSBURY TYRES,5.00,EQUIPMENT,AUTOMOTIVE TIRE STORES
30/04/2015,http://opendatacommunities.org/id/county-council/surrey,Surrey,http://id.esd.org.uk/service/1465,Council expenditure,07/01/2015,DOWNLANDS COUNTRYSIDE PROJECT,TESCO STORES-2270,3.60,REFRESHMENT COSTS,"GROCERY STORES, SUPERMARKETS"
30/04/2015,http://opendatacommunities.org/id/county-council/surrey,Surrey,http://id.esd.org.uk/service/1465,Council expenditure,07/01/2015,EAST SUSSEX CONTRACT - MGMT & ADMIN,TESCO STORES 3330,8.50,PURCHASE CARD TRANSACTION LOG DEFAULT,"GROCERY STORES, SUPERMARKETS"
30/04/2015,http://opendatacommunities.org/id/county-council/surrey,Surrey,http://id.esd.org.uk/service/1465,Council expenditure,07/01/2015,EAST SUSSEX CONTRACT - PENSION ADMIN,TESCO STORE 3330,38.16,PURCHASE CARD TRANSACTION LOG DEFAULT,"GROCERY STORES, SUPERMARKETS"
30/04/2015,http://opendatacommunities.org/id/county-council/surrey,Surrey,http://id.esd.org.uk/service/1465,Council expenditure,07/01/2015,ENSURING QUALITY - PLAY,AMAZON  MKTPLCE EU-UK,13.34,EQUIPMENT,BOOK STORES
30/04/2015,http://opendatacommunities.org/id/county-council/surrey,Surrey,http://id.esd.org.uk/service/1465,Council expenditure,07/01/2015,FOUNDATION STAGE WORK,AMAZON  MKTPLCE EU-UK,158.50,EQUIPMENT,BOOK STORES
30/04/2015,http://opendatacommunities.org/id/county-council/surrey,Surrey,http://id.esd.org.uk/service/1465,Council expenditure,07/01/2015,HILLSIDE,SAINSBURYS 0675,58.29,PURCHASE OF FOOD (RAW MATERIALS),"GROCERY STORES, SUPERMARKETS"
30/04/2015,http://opendatacommunities.org/id/county-council/surrey,Surrey,http://id.esd.org.uk/service/1465,Council expenditure,07/01/2015,HILLSIDE,SAINSBURYS 0675,4.80,PURCHASE OF FOOD (RAW MATERIALS),"GROCERY STORES, SUPERMARKETS"
30/04/2015,http://opendatacommunities.org/id/county-council/surrey,Surrey,http://id.esd.org.uk/service/1465,Council expenditure,07/01/2015,HOPE SERVICE - EAST,SAINSBURYS TO YOU 0683,93.02,PURCHASE OF FOOD (RAW MATERIALS),"GROCERY STORES, SUPERMARKETS"
30/04/2015,http://opendatacommunities.org/id/county-council/surrey,Surrey,http://id.esd.org.uk/service/1465,Council expenditure,07/01/2015,HOPE SERVICE - EAST,CHESSINGTON GARDEN CNT,5.10,REFRESHMENT COSTS,LAWN AND GARDEN SUPPLY STORES
30/04/2015,http://opendatacommunities.org/id/county-council/surrey,Surrey,http://id.esd.org.uk/service/1465,Council expenditure,07/01/2015,HOPE SERVICE - WEST,AMAZON  MKTPLCE EU-UK,5.80,CURRICULUM EQUIPMENT AND FURNITURE,BOOK STORES
30/04/2015,http://opendatacommunities.org/id/county-council/surrey,Surrey,http://id.esd.org.uk/service/1465,Council expenditure,07/01/2015,IMT MANAGEMENT TEAM,IN TO LUNCH,27.42,REFRESHMENT COSTS,CATERERS
30/04/2015,http://opendatacommunities.org/id/county-council/surrey,Surrey,http://id.esd.org.uk/service/1465,Council expenditure,07/01/2015,IMT MANAGEMENT TEAM,AMAZON  MKTPLCE EU-UK,2.89,STATIONERY,BOOK STORES
30/04/2015,http://opendatacommunities.org/id/county-council/surrey,Surrey,http://id.esd.org.uk/service/1465,Council expenditure,07/01/2015,LEAVING CARE PACKAGES,TRAVELODGE WEBSITE,124.00,3RD PARTY PAYMENTS PRIVATE INDIV,TRAVELODGE
30/04/2015,http://opendatacommunities.org/id/county-council/surrey,Surrey,http://id.esd.org.uk/service/1465,Council expenditure,07/01/2015,LEAVING CARE PACKAGES,TRAVELODGE WEBSITE,100.00,3RD PARTY PAYMENTS PRIVATE INDIV,TRAVELODGE
30/04/2015,http://opendatacommunities.org/id/county-council/surrey,Surrey,http://id.esd.org.uk/service/1465,Council expenditure,07/01/2015,LEAVING CARE PACKAGES,TRAVELODGE WEBSITE,69.00,3RD PARTY PAYMENTS PRIVATE INDIV,TRAVELODGE
30/04/2015,http://opendatacommunities.org/id/county-council/surrey,Surrey,http://id.esd.org.uk/service/1465,Council expenditure,07/01/2015,LEAVING CARE TEAM,TRAVELODGE BAR CAFE,19.45,OTHER COMMUNITY CARE PRIV,TRAVELODGE
30/04/2015,http://opendatacommunities.org/id/county-council/surrey,Surrey,http://id.esd.org.uk/service/1465,Council expenditure,07/01/2015,LEAVING CARE TEAM,TRAVELODGE,7.65,OTHER COMMUNITY CARE PRIV,TRAVELODGE
30/04/2015,http://opendatacommunities.org/id/county-council/surrey,Surrey,http://id.esd.org.uk/service/1465,Council expenditure,07/01/2015,LIBERTAS COMMUNITY HOME,B & Q,54.84,DAY TO DAY MAINTENANCE,"BUILDING MATERIALS, LUMBER STORES"
30/04/2015,http://opendatacommunities.org/id/county-council/surrey,Surrey,http://id.esd.org.uk/service/1465,Council expenditure,07/01/2015,LIBERTAS COMMUNITY HOME,SAINSBURYS 0652,30.44,PURCHASE OF FOOD (RAW MATERIALS),"GROCERY STORES, SUPERMARKETS"
30/04/2015,http://opendatacommunities.org/id/county-council/surrey,Surrey,http://id.esd.org.uk/service/1465,Council expenditure,07/01/2015,LOWER MOLE COUNTRYSIDE PROJECT,WWW.DVLA.GOV.UK,227.50,VEHICLE RUNNING COSTS,GOVERNMENT SERVICES-NOT ELSEWHERE CLASSIFIED
30/04/2015,http://opendatacommunities.org/id/county-council/surrey,Surrey,http://id.esd.org.uk/service/1465,Council expenditure,07/01/2015,MALLOW CRESCENT,SPLIT - ON LINE GROCERY SHOPPING (91.32%),99.95,PURCHASE OF FOOD (RAW MATERIALS),"GROCERY STORES, SUPERMARKETS"
30/04/2015,http://opendatacommunities.org/id/county-council/surrey,Surrey,http://id.esd.org.uk/service/1465,Council expenditure,07/01/2015,MALLOW CRESCENT,AMAZON  MKTPLCE EU-UK,69.66,EQUIPMENT,BOOK STORES
30/04/2015,http://opendatacommunities.org/id/county-council/surrey,Surrey,http://id.esd.org.uk/service/1465,Council expenditure,07/01/2015,MALLOW CRESCENT,SPLIT - ON LINE GROCERY SHOPPING (8.68%),9.50,PURCHASE OF FOOD (RAW MATERIALS),"GROCERY STORES, SUPERMARKETS"
30/04/2015,http://opendatacommunities.org/id/county-council/surrey,Surrey,http://id.esd.org.uk/service/1465,Council expenditure,07/01/2015,NW ASSESSMENT TEAM,TRAVELODGE GB0787,22.95,OTHER COMMUNITY CARE PRIV,TRAVELODGE
30/04/2015,http://opendatacommunities.org/id/county-council/surrey,Surrey,http://id.esd.org.uk/service/1465,Council expenditure,07/01/2015,NW CARE - CP & COURT LAC,RYANAIR22 22400000ARD5TB,427.68,CHILDREN ACT SEC 17 PAYMENTS,RYANAIR
30/04/2015,http://opendatacommunities.org/id/county-council/surrey,Surrey,http://id.esd.org.uk/service/1465,Council expenditure,07/01/2015,NW CARE - CP & COURT LAC,TRAVELODGE WEBSITE,395.50,CHILDREN ACT SEC 17 PAYMENTS,TRAVELODGE
30/04/2015,http://opendatacommunities.org/id/county-council/surrey,Surrey,http://id.esd.org.uk/service/1465,Council expenditure,07/01/2015,NW CARE - CP & COURT LAC,SURREY CC CARD PAY,31.00,FEES,COMPUTER NETWORK/INFORMATION SERVICES
30/04/2015,http://opendatacommunities.org/id/county-council/surrey,Surrey,http://id.esd.org.uk/service/1465,Council expenditure,07/01/2015,NW CARE - CP & COURT LAC,SURREY CC CARD PAY,31.00,FEES,COMPUTER NETWORK/INFORMATION SERVICES
30/04/2015,http://opendatacommunities.org/id/county-council/surrey,Surrey,http://id.esd.org.uk/service/1465,Council expenditure,07/01/2015,NW CARE - CP & COURT LAC,LONDON BOROUGH OF SOUT,30.00,FEES,GOVERNMENT SERVICES-NOT ELSEWHERE CLASSIFIED
30/04/2015,http://opendatacommunities.org/id/county-council/surrey,Surrey,http://id.esd.org.uk/service/1465,Council expenditure,07/01/2015,NW CARE - LAC,RYANAIR22 22400000YW9B8N,251.90,CHILDREN ACT SEC 17 PAYMENTS,RYANAIR
30/04/2015,http://opendatacommunities.org/id/county-council/surrey,Surrey,http://id.esd.org.uk/service/1465,Council expenditure,07/01/2015,NW CARE - LAC,EBK EBOOKERS,114.82,MISCELLANEOUS STAFF TRAVEL,TRAVEL AGENCIES AND TOUR OPERATORS
30/04/2015,http://opendatacommunities.org/id/county-council/surrey,Surrey,http://id.esd.org.uk/service/1465,Council expenditure,07/01/2015,PE/CDT MAINTENANCE OVERHEADS,SCREWFIX DIRECT,551.82,EQUIPMENT,"BUILDING MATERIALS, LUMBER STORES"
30/04/2015,http://opendatacommunities.org/id/county-council/surrey,Surrey,http://id.esd.org.uk/service/1465,Council expenditure,07/01/2015,PE/CDT MAINTENANCE OVERHEADS,C BREWER & SONS,107.99,EQUIPMENT,"BUILDING MATERIALS, LUMBER STORES"
30/04/2015,http://opendatacommunities.org/id/county-council/surrey,Surrey,http://id.esd.org.uk/service/1465,Council expenditure,07/01/2015,PE/CDT MAINTENANCE OVERHEADS,WP-CONTINENTAL SPO,4.80,EQUIPMENT,"DURABLE GOODS, NOT ELSEWHERE CLASSIFIED"
30/04/2015,http://opendatacommunities.org/id/county-council/surrey,Surrey,http://id.esd.org.uk/service/1465,Council expenditure,07/01/2015,PROPERTY OPERATIONS TEAM,SCREWFIX DIRECT,129.99,PURCHASE OF BUILDING MATERIALS,"BUILDING MATERIALS, LUMBER STORES"
30/04/2015,http://opendatacommunities.org/id/county-council/surrey,Surrey,http://id.esd.org.uk/service/1465,Council expenditure,07/01/2015,QUADRANT COURT WOKING,SCREWFIX,129.99,EQUIPMENT,"BUILDING MATERIALS, LUMBER STORES"
30/04/2015,http://opendatacommunities.org/id/county-council/surrey,Surrey,http://id.esd.org.uk/service/1465,Council expenditure,07/01/2015,RESTORATIVE PRACTICE TEAM,SURREY CC CARD PAY,12.00,TRAINING EXPENSES EXTERNAL GENERAL,COMPUTER NETWORK/INFORMATION SERVICES
30/04/2015,http://opendatacommunities.org/id/county-council/surrey,Surrey,http://id.esd.org.uk/service/1465,Council expenditure,07/01/2015,RESTORATIVE PRACTICE TEAM,SURREY CC CARD PAY,-12.00,TRAINING EXPENSES EXTERNAL GENERAL,COMPUTER NETWORK/INFORMATION SERVICES
30/04/2015,http://opendatacommunities.org/id/county-council/surrey,Surrey,http://id.esd.org.uk/service/1465,Council expenditure,07/01/2015,SW SECTION 17 CARE,TRAVELODGE WEBSITE,118.00,CHILDREN ACT SEC 17 PAYMENTS,TRAVELODGE
30/04/2015,http://opendatacommunities.org/id/county-council/surrey,Surrey,http://id.esd.org.uk/service/1465,Council expenditure,07/01/2015,SYG 2015                                ,AMAZON  MKTPLCE EU-UK,19.00,EQUIPMENT,BOOK STORES
30/04/2015,http://opendatacommunities.org/id/county-council/surrey,Surrey,http://id.esd.org.uk/service/1465,Council expenditure,07/01/2015,TARGETED INTERVENTION,"BOOTS,STAINES",54.88,EDUC VISITS/HOLS/CAMPS/TOYS,"DRUG STORES, PHARMACIES"
30/04/2015,http://opendatacommunities.org/id/county-council/surrey,Surrey,http://id.esd.org.uk/service/1465,Council expenditure,07/01/2015,TARGETED INTERVENTION,WOKING SNOOKER CENTRE,8.11,EDUC VISITS/HOLS/CAMPS/TOYS,RECREATIONAL AND SPORTING CAMPS
30/04/2015,http://opendatacommunities.org/id/county-council/surrey,Surrey,http://id.esd.org.uk/service/1465,Council expenditure,07/01/2015,TRANSPORT,ALLBATTERIES UK LTD,873.60,OPERATIONAL FIRE EQUIPMENT,ELECTRICAL PARTS AND EQUIPMENT
30/04/2015,http://opendatacommunities.org/id/county-council/surrey,Surrey,http://id.esd.org.uk/service/1465,Council expenditure,07/01/2015,TRANSPORT,TOTAL RELOCATION SERVI,156.00,HIRE OF VEHICLES,BUSINESS SERVICES-NOT ELSEWHERE CLASSIFIED
30/04/2015,http://opendatacommunities.org/id/county-council/surrey,Surrey,http://id.esd.org.uk/service/1465,Council expenditure,07/01/2015,TRANSPORT,TOYE KENNING & SPENCER,137.88,FURNITURE,MISCELLANEOUS AND SPECIALTY RETAIL STORES
30/04/2015,http://opendatacommunities.org/id/county-council/surrey,Surrey,http://id.esd.org.uk/service/1465,Council expenditure,07/01/2015,TRANSPORT,AMAZON  MKTPLCE EU-UK,19.07,COMPUTER HARDWARE,BOOK STORES
30/04/2015,http://opendatacommunities.org/id/county-council/surrey,Surrey,http://id.esd.org.uk/service/1465,Council expenditure,07/01/2015,TS SERVICE MANAGEMENT,PREMIER INN 44524320,75.75,SUBSISTENCE AND CONFERENCE EXPENSES,PREMIER INN
30/04/2015,http://opendatacommunities.org/id/county-council/surrey,Surrey,http://id.esd.org.uk/service/1465,Council expenditure,08/01/2015,ACCESS 2 EDUCATION NW NON-MEDICAL,WWW.ARKELLCENTRE.ORG.U,57.20,BOOKS,BOOK STORES
30/04/2015,http://opendatacommunities.org/id/county-council/surrey,Surrey,http://id.esd.org.uk/service/1465,Council expenditure,08/01/2015,ACL CENTRAL EXPENDITURE,SPLIT - EQUIPMENT & MATERIALS (79.16%),129.05,EQUIPMENT,"ARTIST SUPPLY STORES, CRAFT SHOPS"
30/04/2015,http://opendatacommunities.org/id/county-council/surrey,Surrey,http://id.esd.org.uk/service/1465,Council expenditure,08/01/2015,ACL CENTRAL EXPENDITURE,SPLIT - OTHER (20.84%),33.98,EQUIPMENT,"ARTIST SUPPLY STORES, CRAFT SHOPS"
30/04/2015,http://opendatacommunities.org/id/county-council/surrey,Surrey,http://id.esd.org.uk/service/1465,Council expenditure,08/01/2015,BURBANK COMMUNITY HOME,WM MORRISONS DRY C,6.40,PRINTING,"GROCERY STORES, SUPERMARKETS"
30/04/2015,http://opendatacommunities.org/id/county-council/surrey,Surrey,http://id.esd.org.uk/service/1465,Council expenditure,08/01/2015,CENTRAL COMMUNICATIONS,PAYPAL  HOOTSUITE,9.59,SUBSCRIPTIONS,COMPUTER NETWORK/INFORMATION SERVICES
30/04/2015,http://opendatacommunities.org/id/county-council/surrey,Surrey,http://id.esd.org.uk/service/1465,Council expenditure,08/01/2015,CEO - PUBLIC HEALTH CAMPAIGNS           ,FACEBOOK MAK2A762S2,42.68,PUBLICITY,ADVERTISING SERVICES
30/04/2015,http://opendatacommunities.org/id/county-council/surrey,Surrey,http://id.esd.org.uk/service/1465,Council expenditure,08/01/2015,CEO - PUBLIC HEALTH CAMPAIGNS           ,FACEBOOK DFJTN72AK2,39.71,PUBLICITY,ADVERTISING SERVICES
30/04/2015,http://opendatacommunities.org/id/county-council/surrey,Surrey,http://id.esd.org.uk/service/1465,Council expenditure,08/01/2015,CHEYNE WALK COMMUNITY HOME,CURRYS ONLINE,159.99,EQUIPMENT,ELECTRONIC SALES
30/04/2015,http://opendatacommunities.org/id/county-council/surrey,Surrey,http://id.esd.org.uk/service/1465,Council expenditure,08/01/2015,CHILDREN'S RIGHTS TEAM,WWW.DOMINOS.CO.UK,95.87,REFRESHMENT COSTS,"EATING PLACES, RESTAURANTS"
30/04/2015,http://opendatacommunities.org/id/county-council/surrey,Surrey,http://id.esd.org.uk/service/1465,Council expenditure,08/01/2015,COMMUNITY PARTNERSHIP,AMAZON  MKTPLCE EU-UK,12.02,EQUIPMENT,BOOK STORES
30/04/2015,http://opendatacommunities.org/id/county-council/surrey,Surrey,http://id.esd.org.uk/service/1465,Council expenditure,08/01/2015,COUNTY HALL,SCREWFIX DIRECT,250.65,DAY TO DAY MAINTENANCE,"BUILDING MATERIALS, LUMBER STORES"
30/04/2015,http://opendatacommunities.org/id/county-council/surrey,Surrey,http://id.esd.org.uk/service/1465,Council expenditure,08/01/2015,COUNTY HALL,SURREY HISTORY CTR,46.50,ADAPTATIONS,GOVERNMENT SERVICES-NOT ELSEWHERE CLASSIFIED
30/04/2015,http://opendatacommunities.org/id/county-council/surrey,Surrey,http://id.esd.org.uk/service/1465,Council expenditure,08/01/2015,CS BUSINESS SUPPORT WEST,WWW.HALL-FAST.COM,155.93,EQUIPMENT,INDUSTRIAL SUPPLIES NOT ELSEWHERE CLASSIFIED
30/04/2015,http://opendatacommunities.org/id/county-council/surrey,Surrey,http://id.esd.org.uk/service/1465,Council expenditure,08/01/2015,CSF BUSINESS SUPPORT EDUCATION,AMAZON  MKTPLCE EU-UK,4.99,BOOKS,BOOK STORES
30/04/2015,http://opendatacommunities.org/id/county-council/surrey,Surrey,http://id.esd.org.uk/service/1465,Council expenditure,08/01/2015,DEMOCRATIC SERVICES TEAM,AMAZON EU,99.95,BOOKS,DIRECT MARKETING-OTHER DIRECT MARKETERS/NOT ELSEW.
30/04/2015,http://opendatacommunities.org/id/county-council/surrey,Surrey,http://id.esd.org.uk/service/1465,Council expenditure,08/01/2015,DOWNLANDS COUNTRYSIDE PROJECT,PREMIER INN44017805,58.50,VENUE COSTS (INCLUDING HIRE OF ROOMS),PREMIER INN
30/04/2015,http://opendatacommunities.org/id/county-council/surrey,Surrey,http://id.esd.org.uk/service/1465,Council expenditure,08/01/2015,DOWNLANDS COUNTRYSIDE PROJECT,EB  INNOVATION IN CONS,50.00,TRAINING EXPENSES EXTERNAL GENERAL,BUSINESS SERVICES-NOT ELSEWHERE CLASSIFIED
30/04/2015,http://opendatacommunities.org/id/county-council/surrey,Surrey,http://id.esd.org.uk/service/1465,Council expenditure,08/01/2015,ENSURING PROVISION INCLUSIVE - CAP,AMAZON  MKTPLCE EU-UK,89.82,EQUIPMENT,BOOK STORES
30/04/2015,http://opendatacommunities.org/id/county-council/surrey,Surrey,http://id.esd.org.uk/service/1465,Council expenditure,08/01/2015,ENSURING PROVISION INCLUSIVE - CAP,AMAZON  MKTPLCE EU-UK,45.00,EQUIPMENT,BOOK STORES
30/04/2015,http://opendatacommunities.org/id/county-council/surrey,Surrey,http://id.esd.org.uk/service/1465,Council expenditure,08/01/2015,ENSURING PROVISION INCLUSIVE - CAP,AMAZON EU,39.20,EQUIPMENT,DIRECT MARKETING-OTHER DIRECT MARKETERS/NOT ELSEW.
30/04/2015,http://opendatacommunities.org/id/county-council/surrey,Surrey,http://id.esd.org.uk/service/1465,Council expenditure,08/01/2015,ENSURING QUALITY - PLAY,AMAZON  MKTPLCE EU-UK,20.70,EQUIPMENT,BOOK STORES
30/04/2015,http://opendatacommunities.org/id/county-council/surrey,Surrey,http://id.esd.org.uk/service/1465,Council expenditure,08/01/2015,FOUNDATION STAGE WORK,AMAZON  MKTPLCE EU-UK,9.66,EQUIPMENT,BOOK STORES
30/04/2015,http://opendatacommunities.org/id/county-council/surrey,Surrey,http://id.esd.org.uk/service/1465,Council expenditure,08/01/2015,FOUNDATION STAGE WORK,AMAZON  MKTPLCE EU-UK,5.49,EQUIPMENT,BOOK STORES
30/04/2015,http://opendatacommunities.org/id/county-council/surrey,Surrey,http://id.esd.org.uk/service/1465,Council expenditure,08/01/2015,FOUNDATION STAGE WORK,AMAZON  MKTPLCE EU-UK,4.72,EQUIPMENT,BOOK STORES
30/04/2015,http://opendatacommunities.org/id/county-council/surrey,Surrey,http://id.esd.org.uk/service/1465,Council expenditure,08/01/2015,FOUNDATION STAGE WORK,AMAZON  MKTPLCE EU-UK,2.18,EQUIPMENT,BOOK STORES
30/04/2015,http://opendatacommunities.org/id/county-council/surrey,Surrey,http://id.esd.org.uk/service/1465,Council expenditure,08/01/2015,FOUNDATION STAGE WORK,AMAZON  MKTPLCE EU-UK,1.95,EQUIPMENT,BOOK STORES
30/04/2015,http://opendatacommunities.org/id/county-council/surrey,Surrey,http://id.esd.org.uk/service/1465,Council expenditure,08/01/2015,HILLSIDE,THE RANGE - ALDERSHOT,158.45,EQUIPMENT,MISCELLANEOUS GENERAL MERCHANDISE
30/04/2015,http://opendatacommunities.org/id/county-council/surrey,Surrey,http://id.esd.org.uk/service/1465,Council expenditure,08/01/2015,HILLSIDE,SAINSBURYS 0675,42.96,PURCHASE OF FOOD (RAW MATERIALS),"GROCERY STORES, SUPERMARKETS"
30/04/2015,http://opendatacommunities.org/id/county-council/surrey,Surrey,http://id.esd.org.uk/service/1465,Council expenditure,08/01/2015,HOPE SERVICE - EAST,MCDONALDS REST.,23.80,REFRESHMENT COSTS,FAST FOOD RESTAURANTS
30/04/2015,http://opendatacommunities.org/id/county-council/surrey,Surrey,http://id.esd.org.uk/service/1465,Council expenditure,08/01/2015,HOPE SERVICE - EAST,MERCEDES-BENZ WORLD,6.25,REFRESHMENT COSTS,"EATING PLACES, RESTAURANTS"
30/04/2015,http://opendatacommunities.org/id/county-council/surrey,Surrey,http://id.esd.org.uk/service/1465,Council expenditure,08/01/2015,HOPE SERVICE - WEST,SAINSBURYS SACAT(4409),16.27,BOOKS,"GROCERY STORES, SUPERMARKETS"
30/04/2015,http://opendatacommunities.org/id/county-council/surrey,Surrey,http://id.esd.org.uk/service/1465,Council expenditure,08/01/2015,KARIBU COMMUNITY HOME,SAINSBURYS 0683,95.10,PURCHASE OF FOOD (RAW MATERIALS),"GROCERY STORES, SUPERMARKETS"
30/04/2015,http://opendatacommunities.org/id/county-council/surrey,Surrey,http://id.esd.org.uk/service/1465,Council expenditure,08/01/2015,LEAVING CARE PACKAGES,TRAVELODGE WEBSITE,233.60,3RD PARTY PAYMENTS PRIVATE INDIV,TRAVELODGE
30/04/2015,http://opendatacommunities.org/id/county-council/surrey,Surrey,http://id.esd.org.uk/service/1465,Council expenditure,08/01/2015,LEAVING CARE PACKAGES,TRAVELODGE WEBSITE,56.00,3RD PARTY PAYMENTS PRIVATE INDIV,TRAVELODGE
30/04/2015,http://opendatacommunities.org/id/county-council/surrey,Surrey,http://id.esd.org.uk/service/1465,Council expenditure,08/01/2015,LOCAL DELIVERY GROUP,AMAZON  MKTPLCE EU-UK,33.76,EQUIPMENT,BOOK STORES
30/04/2015,http://opendatacommunities.org/id/county-council/surrey,Surrey,http://id.esd.org.uk/service/1465,Council expenditure,08/01/2015,LONGFIELD RESIDENTIAL CARE,HOMEBASE.CO.UK,123.94,EQUIPMENT,"EQUIP, FURNITURE, HOME FURNSHNGS STRS (EXCPT APPL)"
30/04/2015,http://opendatacommunities.org/id/county-council/surrey,Surrey,http://id.esd.org.uk/service/1465,Council expenditure,08/01/2015,MALLOW CRESCENT,SPLIT - ON LINE GROCERY SHOPPING (95.3%),129.69,PURCHASE OF FOOD (RAW MATERIALS),"GROCERY STORES, SUPERMARKETS"
30/04/2015,http://opendatacommunities.org/id/county-council/surrey,Surrey,http://id.esd.org.uk/service/1465,Council expenditure,08/01/2015,MALLOW CRESCENT,SPLIT - ON LINE GROCERY SHOPPING (4.7%),6.40,PURCHASE OF FOOD (RAW MATERIALS),"GROCERY STORES, SUPERMARKETS"
30/04/2015,http://opendatacommunities.org/id/county-council/surrey,Surrey,http://id.esd.org.uk/service/1465,Council expenditure,08/01/2015,NW CARE - CP & COURT LAC,LONDON BOROUGH OF SOUT,-30.00,FEES,GOVERNMENT SERVICES-NOT ELSEWHERE CLASSIFIED
30/04/2015,http://opendatacommunities.org/id/county-council/surrey,Surrey,http://id.esd.org.uk/service/1465,Council expenditure,08/01/2015,NW TEACHERS,AMAZON EU,69.99,EQUIPMENT,DIRECT MARKETING-OTHER DIRECT MARKETERS/NOT ELSEW.
30/04/2015,http://opendatacommunities.org/id/county-council/surrey,Surrey,http://id.esd.org.uk/service/1465,Council expenditure,08/01/2015,PROPERTY OPERATIONS TEAM,SCREWFIX GUILDFORD,59.26,PURCHASE OF BUILDING MATERIALS,"BUILDING MATERIALS, LUMBER STORES"
30/04/2015,http://opendatacommunities.org/id/county-council/surrey,Surrey,http://id.esd.org.uk/service/1465,Council expenditure,08/01/2015,PSSS VISUALLY IMPAIRED,AMAZON EU,67.00,EQUIPMENT,DIRECT MARKETING-OTHER DIRECT MARKETERS/NOT ELSEW.
30/04/2015,http://opendatacommunities.org/id/county-council/surrey,Surrey,http://id.esd.org.uk/service/1465,Council expenditure,08/01/2015,RESTORATIVE PRACTICE TEAM,SURREY CC CARD PAY,12.00,TRAINING EXPENSES EXTERNAL GENERAL,COMPUTER NETWORK/INFORMATION SERVICES
30/04/2015,http://opendatacommunities.org/id/county-council/surrey,Surrey,http://id.esd.org.uk/service/1465,Council expenditure,08/01/2015,RESTORATIVE PRACTICE TEAM,SURREY CC CARD PAY,12.00,TRAINING EXPENSES EXTERNAL GENERAL,COMPUTER NETWORK/INFORMATION SERVICES
30/04/2015,http://opendatacommunities.org/id/county-council/surrey,Surrey,http://id.esd.org.uk/service/1465,Council expenditure,08/01/2015,ROW MAINTENANCE,SCREWFIX DIRECT,171.39,FEES,"BUILDING MATERIALS, LUMBER STORES"
30/04/2015,http://opendatacommunities.org/id/county-council/surrey,Surrey,http://id.esd.org.uk/service/1465,Council expenditure,08/01/2015,SAP COMPETENCY CENTRE,AMAZON  MKTPLCE EU-UK,4.95,STATIONERY,BOOK STORES
30/04/2015,http://opendatacommunities.org/id/county-council/surrey,Surrey,http://id.esd.org.uk/service/1465,Council expenditure,08/01/2015,SE CARE - CP & COURT LAC,COUNTY COURT,215.00,LEGAL EXPENSES,FINES
30/04/2015,http://opendatacommunities.org/id/county-council/surrey,Surrey,http://id.esd.org.uk/service/1465,Council expenditure,08/01/2015,SW TEACHERS,AMAZON  MKTPLCE EU-UK,33.93,EDUC VISITS/HOLS/CAMPS/TOYS,BOOK STORES
30/04/2015,http://opendatacommunities.org/id/county-council/surrey,Surrey,http://id.esd.org.uk/service/1465,Council expenditure,08/01/2015,SW TEACHERS,AMAZON  MKTPLCE EU-UK,15.19,EDUC VISITS/HOLS/CAMPS/TOYS,BOOK STORES
30/04/2015,http://opendatacommunities.org/id/county-council/surrey,Surrey,http://id.esd.org.uk/service/1465,Council expenditure,08/01/2015,TARGETED INTERVENTION,CINEWORLD CRA CP,16.20,EDUC VISITS/HOLS/CAMPS/TOYS,"THEATRICAL PRODUCERS(EXCL MOTION PIX),TICKET AGNCY"
30/04/2015,http://opendatacommunities.org/id/county-council/surrey,Surrey,http://id.esd.org.uk/service/1465,Council expenditure,08/01/2015,TARGETED INTERVENTION,STARBUCKS,7.40,EDUC VISITS/HOLS/CAMPS/TOYS,"EATING PLACES, RESTAURANTS"
30/04/2015,http://opendatacommunities.org/id/county-council/surrey,Surrey,http://id.esd.org.uk/service/1465,Council expenditure,08/01/2015,TARGETED INTERVENTION,BENTALL CENTRE,2.80,EDUC VISITS/HOLS/CAMPS/TOYS,AUTOMOBILE PARKING LOTS AND GARAGES
30/04/2015,http://opendatacommunities.org/id/county-council/surrey,Surrey,http://id.esd.org.uk/service/1465,Council expenditure,08/01/2015,TRAINING AND DEVELOPMENT,TRAVELODGE WEBSITE,168.95,TRAINING EXPENSES EXTERNAL GENERAL,TRAVELODGE
30/04/2015,http://opendatacommunities.org/id/county-council/surrey,Surrey,http://id.esd.org.uk/service/1465,Council expenditure,08/01/2015,TRANSPORT,HARWOODS LANDROVER,610.20,VEHICLE REPAIRS AND MAINTENANCE,AUTOMOTIVE SERVICE SHOPS
30/04/2015,http://opendatacommunities.org/id/county-council/surrey,Surrey,http://id.esd.org.uk/service/1465,Council expenditure,08/01/2015,TRANSPORT,WWW.CE-TEK.CO.UK,528.60,COMPUTER HARDWARE,MISCELLANEOUS AND SPECIALTY RETAIL STORES
30/04/2015,http://opendatacommunities.org/id/county-council/surrey,Surrey,http://id.esd.org.uk/service/1465,Council expenditure,08/01/2015,TRANSPORT,WWW.STOCKSIGNS.CO.UK,471.84,OPERATIONAL FIRE EQUIPMENT,"COMMERCIAL ART, GRAPHICS, PHOTOGRAPHY"
30/04/2015,http://opendatacommunities.org/id/county-council/surrey,Surrey,http://id.esd.org.uk/service/1465,Council expenditure,08/01/2015,TRANSPORT,PREMIER INN44014915,327.00,MISCELLANEOUS STAFF TRAVEL,PREMIER INN
30/04/2015,http://opendatacommunities.org/id/county-council/surrey,Surrey,http://id.esd.org.uk/service/1465,Council expenditure,08/01/2015,TRANSPORT,WWW.WIGHTLINK.CO.UK,56.00,MISCELLANEOUS STAFF TRAVEL,"TRANSPRTN-SUBRBN & LOCAL COMTR PSNGR, INCL FERRIES"
30/04/2015,http://opendatacommunities.org/id/county-council/surrey,Surrey,http://id.esd.org.uk/service/1465,Council expenditure,08/01/2015,TRANSPORT,T A BOXALL & CO LTD,49.00,VEHICLE REPAIRS AND MAINTENANCE,"CONTRACTORS,SPECIAL TRADE-NOT ELSEWHERE CLASSIFIED"
30/04/2015,http://opendatacommunities.org/id/county-council/surrey,Surrey,http://id.esd.org.uk/service/1465,Council expenditure,08/01/2015,TRANSPORT,AMAZON EU,43.00,COMPUTER HARDWARE,DIRECT MARKETING-OTHER DIRECT MARKETERS/NOT ELSEW.
30/04/2015,http://opendatacommunities.org/id/county-council/surrey,Surrey,http://id.esd.org.uk/service/1465,Council expenditure,08/01/2015,TRANSPORT,AMAZON  MKTPLCE EU-UK,22.95,COMPUTER CONSUMABLES,BOOK STORES
30/04/2015,http://opendatacommunities.org/id/county-council/surrey,Surrey,http://id.esd.org.uk/service/1465,Council expenditure,08/01/2015,TRANSPORT,AMAZON EU,11.98,DAY TO DAY MAINTENANCE,DIRECT MARKETING-OTHER DIRECT MARKETERS/NOT ELSEW.
30/04/2015,http://opendatacommunities.org/id/county-council/surrey,Surrey,http://id.esd.org.uk/service/1465,Council expenditure,08/01/2015,TS SERVICE MANAGEMENT,AMAZON  MKTPLCE EU-UK,43.09,EQUIPMENT,BOOK STORES
30/04/2015,http://opendatacommunities.org/id/county-council/surrey,Surrey,http://id.esd.org.uk/service/1465,Council expenditure,08/01/2015,WAVERLEY BOROUGH TEAM                   ,AMAZON EU,11.71,EDUC VISITS/HOLS/CAMPS/TOYS,DIRECT MARKETING-OTHER DIRECT MARKETERS/NOT ELSEW.
30/04/2015,http://opendatacommunities.org/id/county-council/surrey,Surrey,http://id.esd.org.uk/service/1465,Council expenditure,08/01/2015,WORKING TOGETHER,AMAZON  MKTPLCE EU-UK,9.36,EQUIPMENT,BOOK STORES
30/04/2015,http://opendatacommunities.org/id/county-council/surrey,Surrey,http://id.esd.org.uk/service/1465,Council expenditure,09/01/2015,ACL CENTRAL EXPENDITURE,SETON,113.88,EQUIPMENT,"DURABLE GOODS, NOT ELSEWHERE CLASSIFIED"
30/04/2015,http://opendatacommunities.org/id/county-council/surrey,Surrey,http://id.esd.org.uk/service/1465,Council expenditure,09/01/2015,ACL CENTRAL EXPENDITURE,FACEBOOK 46JAU62CB2,33.75,PUBLICITY,ADVERTISING SERVICES
30/04/2015,http://opendatacommunities.org/id/county-council/surrey,Surrey,http://id.esd.org.uk/service/1465,Council expenditure,09/01/2015,ARUNDEL,SPLIT - FOOD FOR SERVICE USERS (91.51%),97.06,REFRESHMENT COSTS,"GROCERY STORES, SUPERMARKETS"
30/04/2015,http://opendatacommunities.org/id/county-council/surrey,Surrey,http://id.esd.org.uk/service/1465,Council expenditure,09/01/2015,ARUNDEL,ASDA SUPERSTORE,25.05,REFRESHMENT COSTS,"GROCERY STORES, SUPERMARKETS"
30/04/2015,http://opendatacommunities.org/id/county-council/surrey,Surrey,http://id.esd.org.uk/service/1465,Council expenditure,09/01/2015,ARUNDEL,SPLIT - FOOD FOR SERVICE USERS (8.49%),9.00,REFRESHMENT COSTS,"GROCERY STORES, SUPERMARKETS"
30/04/2015,http://opendatacommunities.org/id/county-council/surrey,Surrey,http://id.esd.org.uk/service/1465,Council expenditure,09/01/2015,ASSET INVESTMENT & REGENERATION MANAGER,RICS SUBS UK CYBS,506.00,SUBSCRIPTIONS,"ORGANIZATIONS, MEMBERSHIP-NOT ELSEWHERE CLASSIFIED"
30/04/2015,http://opendatacommunities.org/id/county-council/surrey,Surrey,http://id.esd.org.uk/service/1465,Council expenditure,09/01/2015,ASSET PLANNING - OPERATIONS,WICKES,25.95,EQUIPMENT,"BUILDING MATERIALS, LUMBER STORES"
30/04/2015,http://opendatacommunities.org/id/county-council/surrey,Surrey,http://id.esd.org.uk/service/1465,Council expenditure,09/01/2015,CEO - PUBLIC HEALTH CAMPAIGNS           ,FACEBOOK Z7CCB7J9K2,39.79,PUBLICITY,ADVERTISING SERVICES
30/04/2015,http://opendatacommunities.org/id/county-council/surrey,Surrey,http://id.esd.org.uk/service/1465,Council expenditure,09/01/2015,CEO - PUBLIC HEALTH CAMPAIGNS           ,FACEBOOK FULY87A2S2,27.42,PUBLICITY,ADVERTISING SERVICES
30/04/2015,http://opendatacommunities.org/id/county-council/surrey,Surrey,http://id.esd.org.uk/service/1465,Council expenditure,09/01/2015,COMMUNITY PARTNERSHIP,AMAZON EU,9.42,EQUIPMENT,DIRECT MARKETING-OTHER DIRECT MARKETERS/NOT ELSEW.
30/04/2015,http://opendatacommunities.org/id/county-council/surrey,Surrey,http://id.esd.org.uk/service/1465,Council expenditure,09/01/2015,CONSORT HOUSE REDHILL,ROBERT DYAS HOLDNG LTD,6.98,CLEANING AND DOMESTIC SUPPLIES,HARDWARE STORES
30/04/2015,http://opendatacommunities.org/id/county-council/surrey,Surrey,http://id.esd.org.uk/service/1465,Council expenditure,09/01/2015,COUNTYWIDE MANAGED PRINT SERVICE,AMAZON EU,15.99,COMPUTER CONSUMABLES,DIRECT MARKETING-OTHER DIRECT MARKETERS/NOT ELSEW.
30/04/2015,http://opendatacommunities.org/id/county-council/surrey,Surrey,http://id.esd.org.uk/service/1465,Council expenditure,09/01/2015,CYP                                     ,PRINTED.COM,713.76,PRINTING,"QUICK COPY,REPRODUCTION AND BLUEPRINTING SERVICES"
30/04/2015,http://opendatacommunities.org/id/county-council/surrey,Surrey,http://id.esd.org.uk/service/1465,Council expenditure,09/01/2015,DOWNLANDS COUNTRYSIDE PROJECT,F R JONES & SON,196.42,EQUIPMENT,LAWN AND GARDEN SUPPLY STORES
30/04/2015,http://opendatacommunities.org/id/county-council/surrey,Surrey,http://id.esd.org.uk/service/1465,Council expenditure,09/01/2015,DOWNLANDS COUNTRYSIDE PROJECT,NHBS LTD,52.58,EQUIPMENT,BOOK STORES
30/04/2015,http://opendatacommunities.org/id/county-council/surrey,Surrey,http://id.esd.org.uk/service/1465,Council expenditure,09/01/2015,ENSURING PROVISION INCLUSIVE - CAP,AMAZON  MKTPLCE EU-UK,18.00,EQUIPMENT,BOOK STORES
30/04/2015,http://opendatacommunities.org/id/county-council/surrey,Surrey,http://id.esd.org.uk/service/1465,Council expenditure,09/01/2015,ENSURING QUALITY - PLAY,AMAZON  MKTPLCE EU-UK,30.95,EQUIPMENT,BOOK STORES
30/04/2015,http://opendatacommunities.org/id/county-council/surrey,Surrey,http://id.esd.org.uk/service/1465,Council expenditure,09/01/2015,FOSTERING SERVICE CENTRAL COSTS,TOYS R US,77.64,EDUC VISITS/HOLS/CAMPS/TOYS,DEPARTMENT STORES
30/04/2015,http://opendatacommunities.org/id/county-council/surrey,Surrey,http://id.esd.org.uk/service/1465,Council expenditure,09/01/2015,FOUNDATION STAGE WORK,AMAZON  MKTPLCE EU-UK,16.26,EQUIPMENT,BOOK STORES
30/04/2015,http://opendatacommunities.org/id/county-council/surrey,Surrey,http://id.esd.org.uk/service/1465,Council expenditure,09/01/2015,FOUNDATION STAGE WORK,AMAZON  MKTPLCE EU-UK,14.00,EQUIPMENT,BOOK STORES
30/04/2015,http://opendatacommunities.org/id/county-council/surrey,Surrey,http://id.esd.org.uk/service/1465,Council expenditure,09/01/2015,FOUNDATION STAGE WORK,AMAZON EU,10.24,EQUIPMENT,DIRECT MARKETING-OTHER DIRECT MARKETERS/NOT ELSEW.
30/04/2015,http://opendatacommunities.org/id/county-council/surrey,Surrey,http://id.esd.org.uk/service/1465,Council expenditure,09/01/2015,FOUNDATION STAGE WORK,AMAZON  MKTPLCE EU-UK,7.99,EQUIPMENT,BOOK STORES
30/04/2015,http://opendatacommunities.org/id/county-council/surrey,Surrey,http://id.esd.org.uk/service/1465,Council expenditure,09/01/2015,HERITAGE PUBLIC SERVICE,W M MORRISONS,41.86,REFRESHMENT COSTS,"GROCERY STORES, SUPERMARKETS"
30/04/2015,http://opendatacommunities.org/id/county-council/surrey,Surrey,http://id.esd.org.uk/service/1465,Council expenditure,09/01/2015,HILLSIDE,BATHING SOLUTIONS,153.75,DAY TO DAY MAINTENANCE,"EQUIP, FURNITURE, HOME FURNSHNGS STRS (EXCPT APPL)"
30/04/2015,http://opendatacommunities.org/id/county-council/surrey,Surrey,http://id.esd.org.uk/service/1465,Council expenditure,09/01/2015,HILLSIDE,SAINSBURYS 0675,53.18,PURCHASE OF FOOD (RAW MATERIALS),"GROCERY STORES, SUPERMARKETS"
30/04/2015,http://opendatacommunities.org/id/county-council/surrey,Surrey,http://id.esd.org.uk/service/1465,Council expenditure,09/01/2015,HILLSIDE,SAINSBURYS SACAT 0675,6.00,PURCHASE OF FOOD (RAW MATERIALS),"GROCERY STORES, SUPERMARKETS"
30/04/2015,http://opendatacommunities.org/id/county-council/surrey,Surrey,http://id.esd.org.uk/service/1465,Council expenditure,09/01/2015,HILLSIDE,SAINSBURYS SACAT 0784,3.95,PURCHASE OF FOOD (RAW MATERIALS),"GROCERY STORES, SUPERMARKETS"
30/04/2015,http://opendatacommunities.org/id/county-council/surrey,Surrey,http://id.esd.org.uk/service/1465,Council expenditure,09/01/2015,HOPE SERVICE - EAST,BOURNE HALL,6.00,REFRESHMENT COSTS,CATERERS
30/04/2015,http://opendatacommunities.org/id/county-council/surrey,Surrey,http://id.esd.org.uk/service/1465,Council expenditure,09/01/2015,HOPE SERVICE - EAST,RUSPER GOLF CLUB,6.00,EDUC VISITS/HOLS/CAMPS/TOYS,"CLUBS-CNTRY,MBRSHIP(ATHLET,REC,SPRTS,PRIVATE GOLF"
30/04/2015,http://opendatacommunities.org/id/county-council/surrey,Surrey,http://id.esd.org.uk/service/1465,Council expenditure,09/01/2015,HOPE SERVICE - WEST,AMAZON  MKTPLCE EU-UK,8.19,CURRICULUM EQUIPMENT AND FURNITURE,BOOK STORES
30/04/2015,http://opendatacommunities.org/id/county-council/surrey,Surrey,http://id.esd.org.uk/service/1465,Council expenditure,09/01/2015,HOPE SERVICE - WEST,SAINSBURYS SACAT(4409),5.00,PURCHASE OF FOOD (RAW MATERIALS),"GROCERY STORES, SUPERMARKETS"
30/04/2015,http://opendatacommunities.org/id/county-council/surrey,Surrey,http://id.esd.org.uk/service/1465,Council expenditure,09/01/2015,HOPE SERVICE - WEST,SAINSBURYS SACAT(4409),2.40,PURCHASE OF FOOD (RAW MATERIALS),"GROCERY STORES, SUPERMARKETS"
30/04/2015,http://opendatacommunities.org/id/county-council/surrey,Surrey,http://id.esd.org.uk/service/1465,Council expenditure,09/01/2015,HOPE SERVICE - WEST,SAINSBURYS SACAT(4409),1.45,PURCHASE OF FOOD (RAW MATERIALS),"GROCERY STORES, SUPERMARKETS"
30/04/2015,http://opendatacommunities.org/id/county-council/surrey,Surrey,http://id.esd.org.uk/service/1465,Council expenditure,09/01/2015,IMCA / DEPRIVATION OF LIBERTY,SUTTON AND EAST SURREY,96.60,3RD PARTY PAYMENTS PRIVATE INDIV,PLUMBING AND HEATING EQUIPMENT
30/04/2015,http://opendatacommunities.org/id/county-council/surrey,Surrey,http://id.esd.org.uk/service/1465,Council expenditure,09/01/2015,IMT MANAGEMENT TEAM,WWW.COMBINED-KNOWLEDGE,"3,624.00",COMPUTER SERVICES,"SCHOOLS, BUSINESS AND SECRETARIAL"
30/04/2015,http://opendatacommunities.org/id/county-council/surrey,Surrey,http://id.esd.org.uk/service/1465,Council expenditure,09/01/2015,LEAVING CARE PACKAGES,TVLICENSING.CO.UK,145.50,EQUIPMENT,"CONSULTING, MANAGEMENT, AND PUBLIC RELATIONS SVCS"
30/04/2015,http://opendatacommunities.org/id/county-council/surrey,Surrey,http://id.esd.org.uk/service/1465,Council expenditure,09/01/2015,LEGAL SUPPORT TEAM,FEDEX 548076102,49.87,POSTAGE AND COURIER CHARGES,"COURIER SVC-AIR & GROUND, FREIGHT FORWARDERS"
30/04/2015,http://opendatacommunities.org/id/county-council/surrey,Surrey,http://id.esd.org.uk/service/1465,Council expenditure,09/01/2015,LIBERTAS COMMUNITY HOME,SPLIT - PROVISIONS (90.21%),129.00,PURCHASE OF FOOD (RAW MATERIALS),"GROCERY STORES, SUPERMARKETS"
30/04/2015,http://opendatacommunities.org/id/county-council/surrey,Surrey,http://id.esd.org.uk/service/1465,Council expenditure,09/01/2015,LIBERTAS COMMUNITY HOME,SPLIT - PROVISIONS (9.79%),14.00,PURCHASE OF FOOD (RAW MATERIALS),"GROCERY STORES, SUPERMARKETS"
30/04/2015,http://opendatacommunities.org/id/county-council/surrey,Surrey,http://id.esd.org.uk/service/1465,Council expenditure,09/01/2015,LOWER MOLE COUNTRYSIDE PROJECT,TESCO STORES 6320,25.44,POSTAGE AND COURIER CHARGES,"GROCERY STORES, SUPERMARKETS"
30/04/2015,http://opendatacommunities.org/id/county-council/surrey,Surrey,http://id.esd.org.uk/service/1465,Council expenditure,09/01/2015,MENTAL HEALTH DISABILITY UNIT BURPHAM,WWW.JOHNLEWIS.COM,592.00,EQUIPMENT,DEPARTMENT STORES
30/04/2015,http://opendatacommunities.org/id/county-council/surrey,Surrey,http://id.esd.org.uk/service/1465,Council expenditure,09/01/2015,MOLE VALLEY BOROUGH TEAM                ,AMAZON  MKTPLCE EU-UK,55.49,EQUIPMENT,BOOK STORES
30/04/2015,http://opendatacommunities.org/id/county-council/surrey,Surrey,http://id.esd.org.uk/service/1465,Council expenditure,09/01/2015,NW SECTION 17 CARE,TRAVELODGE WEBSITE,140.00,NON-STAFF RELATED TRANSPORT COSTS,TRAVELODGE
30/04/2015,http://opendatacommunities.org/id/county-council/surrey,Surrey,http://id.esd.org.uk/service/1465,Council expenditure,09/01/2015,OCCUPATIONAL HEALTH,AMAZON EU,224.90,EQUIPMENT,DIRECT MARKETING-OTHER DIRECT MARKETERS/NOT ELSEW.
30/04/2015,http://opendatacommunities.org/id/county-council/surrey,Surrey,http://id.esd.org.uk/service/1465,Council expenditure,09/01/2015,OCCUPATIONAL HEALTH,AMAZON EU,120.25,EQUIPMENT,DIRECT MARKETING-OTHER DIRECT MARKETERS/NOT ELSEW.
30/04/2015,http://opendatacommunities.org/id/county-council/surrey,Surrey,http://id.esd.org.uk/service/1465,Council expenditure,09/01/2015,OCCUPATIONAL HEALTH,AMAZON EU,4.81,EQUIPMENT,DIRECT MARKETING-OTHER DIRECT MARKETERS/NOT ELSEW.
30/04/2015,http://opendatacommunities.org/id/county-council/surrey,Surrey,http://id.esd.org.uk/service/1465,Council expenditure,09/01/2015,PE/CDT MAINTENANCE OVERHEADS,WWW.HULLEY-LADDERS.CO.,68.40,EQUIPMENT,"BUILDING MATERIALS, LUMBER STORES"
30/04/2015,http://opendatacommunities.org/id/county-council/surrey,Surrey,http://id.esd.org.uk/service/1465,Council expenditure,09/01/2015,PRISON CAPITATION                       ,AMAZON  MKTPLCE EU-UK,15.36,LIBRARY RESOURCES,BOOK STORES
30/04/2015,http://opendatacommunities.org/id/county-council/surrey,Surrey,http://id.esd.org.uk/service/1465,Council expenditure,09/01/2015,RESOURCES STATIONERY                    ,PAYPAL  LIBREXEDUCA,61.19,LIBRARY RESOURCES,"SCHOOLS, BUSINESS AND SECRETARIAL"
30/04/2015,http://opendatacommunities.org/id/county-council/surrey,Surrey,http://id.esd.org.uk/service/1465,Council expenditure,09/01/2015,RUTH HOUSE,MUSBURY FABRICS,360.30,EQUIPMENT,MISCELLANEOUS HOUSE FURNISHING SPECIALTY SHOPS
30/04/2015,http://opendatacommunities.org/id/county-council/surrey,Surrey,http://id.esd.org.uk/service/1465,Council expenditure,09/01/2015,RUTH HOUSE,THE BODY SHOP,50.05,EQUIPMENT,BARBER AND BEAUTY SHOPS
30/04/2015,http://opendatacommunities.org/id/county-council/surrey,Surrey,http://id.esd.org.uk/service/1465,Council expenditure,09/01/2015,RUTH HOUSE,JESSICA KINGSLEY PUBLI,27.75,BOOKS,BOOK STORES
30/04/2015,http://opendatacommunities.org/id/county-council/surrey,Surrey,http://id.esd.org.uk/service/1465,Council expenditure,09/01/2015,S.D. EAST AREA MANAGEMENT TEAM,FUNKYPIGEON.COM,6.98,STATIONERY,"GIFT, CARD, NOVELTY AND SOUVENIR SHOPS"
30/04/2015,http://opendatacommunities.org/id/county-council/surrey,Surrey,http://id.esd.org.uk/service/1465,Council expenditure,09/01/2015,SE CARE - LAC,SURREY CC CARD PAY,31.00,CHILDREN ACT SEC 17 PAYMENTS,COMPUTER NETWORK/INFORMATION SERVICES
30/04/2015,http://opendatacommunities.org/id/county-council/surrey,Surrey,http://id.esd.org.uk/service/1465,Council expenditure,09/01/2015,SE CARE - LAC,SURREY CC CARD PAY,31.00,CHILDREN ACT SEC 17 PAYMENTS,COMPUTER NETWORK/INFORMATION SERVICES
30/04/2015,http://opendatacommunities.org/id/county-council/surrey,Surrey,http://id.esd.org.uk/service/1465,Council expenditure,09/01/2015,SE CARE - LAC,SURREY CC CARD PAY,31.00,CHILDREN ACT SEC 17 PAYMENTS,COMPUTER NETWORK/INFORMATION SERVICES
30/04/2015,http://opendatacommunities.org/id/county-council/surrey,Surrey,http://id.esd.org.uk/service/1465,Council expenditure,09/01/2015,SOLD APPRENTICES,THE POST OFFICE,12.98,TRAINING EXPENSES EXTERNAL GENERAL,POSTAL SERVICES-GOVERNMENT ONLY
30/04/2015,http://opendatacommunities.org/id/county-council/surrey,Surrey,http://id.esd.org.uk/service/1465,Council expenditure,09/01/2015,SOLD ESTATES MANAGEMENT,SCREWFIX GUILDFORD,10.75,DAY TO DAY MAINTENANCE,"BUILDING MATERIALS, LUMBER STORES"
30/04/2015,http://opendatacommunities.org/id/county-council/surrey,Surrey,http://id.esd.org.uk/service/1465,Council expenditure,09/01/2015,SW TEACHERS,AMAZON  MKTPLCE EU-UK,18.99,EDUC VISITS/HOLS/CAMPS/TOYS,BOOK STORES
30/04/2015,http://opendatacommunities.org/id/county-council/surrey,Surrey,http://id.esd.org.uk/service/1465,Council expenditure,09/01/2015,SW TEACHERS,BOOKS - SPECIALIST TEACHERS (54.35%),17.85,BOOKS,BOOK STORES
30/04/2015,http://opendatacommunities.org/id/county-council/surrey,Surrey,http://id.esd.org.uk/service/1465,Council expenditure,09/01/2015,SW TEACHERS,LEGO TOYS - SPECIALIST TEACHERS (45.65%),14.99,EDUC VISITS/HOLS/CAMPS/TOYS,BOOK STORES
30/04/2015,http://opendatacommunities.org/id/county-council/surrey,Surrey,http://id.esd.org.uk/service/1465,Council expenditure,09/01/2015,TARGETED INTERVENTION,FREEDOM LEISURE,7.10,EDUC VISITS/HOLS/CAMPS/TOYS,GOVERNMENT SERVICES-NOT ELSEWHERE CLASSIFIED
30/04/2015,http://opendatacommunities.org/id/county-council/surrey,Surrey,http://id.esd.org.uk/service/1465,Council expenditure,09/01/2015,TARGETED INTERVENTION,GUILDFORD SPECTRUM,0.85,EDUC VISITS/HOLS/CAMPS/TOYS,"EATING PLACES, RESTAURANTS"
30/04/2015,http://opendatacommunities.org/id/county-council/surrey,Surrey,http://id.esd.org.uk/service/1465,Council expenditure,09/01/2015,TRAINING AND DEVELOPMENT,TRAVELODGE WEBSITE,860.75,TRAINING EXPENSES EXTERNAL GENERAL,TRAVELODGE
30/04/2015,http://opendatacommunities.org/id/county-council/surrey,Surrey,http://id.esd.org.uk/service/1465,Council expenditure,09/01/2015,TRAINING COMMUNICATIONS,MEDIA TRAINING LTD,390.00,TRAINING EXPENSES EXTERNAL GENERAL,"COLLEGES, UNIV, PRO SCHOOLS, JUNIOR COLLEGES"
30/04/2015,http://opendatacommunities.org/id/county-council/surrey,Surrey,http://id.esd.org.uk/service/1465,Council expenditure,09/01/2015,TRAINING PROPERTY,THE ENERGY INSTITUTE-C,72.00,TRAINING EXPENSES EXTERNAL GENERAL,PROFESSIONAL SERVICES-NOT ELSEWHERE CLASSIFIED
30/04/2015,http://opendatacommunities.org/id/county-council/surrey,Surrey,http://id.esd.org.uk/service/1465,Council expenditure,09/01/2015,TRANSPORT,RS COMPONENTS,859.72,COMPUTER CONSUMABLES,ELECTRICAL PARTS AND EQUIPMENT
30/04/2015,http://opendatacommunities.org/id/county-council/surrey,Surrey,http://id.esd.org.uk/service/1465,Council expenditure,09/01/2015,TRANSPORT,AMAZON EU,70.66,FURNITURE,DIRECT MARKETING-OTHER DIRECT MARKETERS/NOT ELSEW.
30/04/2015,http://opendatacommunities.org/id/county-council/surrey,Surrey,http://id.esd.org.uk/service/1465,Council expenditure,09/01/2015,TRANSPORT,AMAZON EU,70.66,FURNITURE,DIRECT MARKETING-OTHER DIRECT MARKETERS/NOT ELSEW.
30/04/2015,http://opendatacommunities.org/id/county-council/surrey,Surrey,http://id.esd.org.uk/service/1465,Council expenditure,09/01/2015,TRANSPORT,AMAZON EU,70.66,FURNITURE,DIRECT MARKETING-OTHER DIRECT MARKETERS/NOT ELSEW.
30/04/2015,http://opendatacommunities.org/id/county-council/surrey,Surrey,http://id.esd.org.uk/service/1465,Council expenditure,09/01/2015,TRANSPORT,AMAZON EU,70.66,FURNITURE,DIRECT MARKETING-OTHER DIRECT MARKETERS/NOT ELSEW.
30/04/2015,http://opendatacommunities.org/id/county-council/surrey,Surrey,http://id.esd.org.uk/service/1465,Council expenditure,09/01/2015,TRANSPORT,AMAZON EU,70.66,FURNITURE,DIRECT MARKETING-OTHER DIRECT MARKETERS/NOT ELSEW.
30/04/2015,http://opendatacommunities.org/id/county-council/surrey,Surrey,http://id.esd.org.uk/service/1465,Council expenditure,09/01/2015,TRANSPORT,AMAZON  MKTPLCE EU-UK,9.85,STATIONERY,BOOK STORES
30/04/2015,http://opendatacommunities.org/id/county-council/surrey,Surrey,http://id.esd.org.uk/service/1465,Council expenditure,09/01/2015,TRANSPORT,AMAZON  MKTPLCE EU-UK,-23.80,COMPUTER CONSUMABLES,MISCELLANEOUS AND SPECIALTY RETAIL STORES
30/04/2015,http://opendatacommunities.org/id/county-council/surrey,Surrey,http://id.esd.org.uk/service/1465,Council expenditure,09/01/2015,UNIT 4 LEATHERHEAD (NMIC),CURRYS ONLINE,269.99,EQUIPMENT,ELECTRONIC SALES
30/04/2015,http://opendatacommunities.org/id/county-council/surrey,Surrey,http://id.esd.org.uk/service/1465,Council expenditure,09/01/2015,WOODLANDS COMMUNITY HOME,PROVISIONS (92.54%),124.01,PURCHASE OF FOOD (RAW MATERIALS),"GROCERY STORES, SUPERMARKETS"
30/04/2015,http://opendatacommunities.org/id/county-council/surrey,Surrey,http://id.esd.org.uk/service/1465,Council expenditure,09/01/2015,WOODLANDS COMMUNITY HOME,CLEANING MATERIALS (7.46%),10.00,CLEANING MATERIALS,"GROCERY STORES, SUPERMARKETS"
30/04/2015,http://opendatacommunities.org/id/county-council/surrey,Surrey,http://id.esd.org.uk/service/1465,Council expenditure,09/01/2015,WORKING TOGETHER,AMAZON EU,302.31,EQUIPMENT,DIRECT MARKETING-OTHER DIRECT MARKETERS/NOT ELSEW.
30/04/2015,http://opendatacommunities.org/id/county-council/surrey,Surrey,http://id.esd.org.uk/service/1465,Council expenditure,10/01/2015,ACL CENTRAL EXPENDITURE,FACEBOOK YGYNT6ACB2,23.73,PUBLICITY,ADVERTISING SERVICES
30/04/2015,http://opendatacommunities.org/id/county-council/surrey,Surrey,http://id.esd.org.uk/service/1465,Council expenditure,10/01/2015,CEO - PUBLIC HEALTH CAMPAIGNS           ,GOOGLE  ADWS2060179426,500.00,PUBLICITY,DIRECT MARKETING-CONTINUITY/SUBSCRIPTION MERCHANTS
30/04/2015,http://opendatacommunities.org/id/county-council/surrey,Surrey,http://id.esd.org.uk/service/1465,Council expenditure,10/01/2015,CEO - PUBLIC HEALTH CAMPAIGNS           ,FACEBOOK BR2UN72AK2,39.42,PUBLICITY,ADVERTISING SERVICES
30/04/2015,http://opendatacommunities.org/id/county-council/surrey,Surrey,http://id.esd.org.uk/service/1465,Council expenditure,10/01/2015,FAIRCROFT COMMUNITY HOME,WAITROSE 176,25.54,PURCHASE OF FOOD (RAW MATERIALS),"GROCERY STORES, SUPERMARKETS"
30/04/2015,http://opendatacommunities.org/id/county-council/surrey,Surrey,http://id.esd.org.uk/service/1465,Council expenditure,10/01/2015,GYPSY SKILLS,AMAZON EU,96.90,BOOKS,DIRECT MARKETING-OTHER DIRECT MARKETERS/NOT ELSEW.
30/04/2015,http://opendatacommunities.org/id/county-council/surrey,Surrey,http://id.esd.org.uk/service/1465,Council expenditure,10/01/2015,HILLSIDE,TESCO STORE 3149,248.47,PURCHASE OF FOOD (RAW MATERIALS),"GROCERY STORES, SUPERMARKETS"
30/04/2015,http://opendatacommunities.org/id/county-council/surrey,Surrey,http://id.esd.org.uk/service/1465,Council expenditure,10/01/2015,HILLSIDE,SAINSBURYS 0675,10.90,PURCHASE OF FOOD (RAW MATERIALS),"GROCERY STORES, SUPERMARKETS"
30/04/2015,http://opendatacommunities.org/id/county-council/surrey,Surrey,http://id.esd.org.uk/service/1465,Council expenditure,10/01/2015,KARIBU COMMUNITY HOME,NEW LOOK 1428,100.73,"CLOTHING, UNIFORM AND LAUNDRY",WOMEN'S READY TO WEAR STORES
30/04/2015,http://opendatacommunities.org/id/county-council/surrey,Surrey,http://id.esd.org.uk/service/1465,Council expenditure,10/01/2015,KARIBU COMMUNITY HOME,WILKO RETAIL LIMIT,57.50,EQUIPMENT,HOUSEHOLD APPLIANCE STORES
30/04/2015,http://opendatacommunities.org/id/county-council/surrey,Surrey,http://id.esd.org.uk/service/1465,Council expenditure,10/01/2015,KARIBU COMMUNITY HOME,BLACKS BURGERS,50.65,PURCHASE OF FOOD (RAW MATERIALS),"EATING PLACES, RESTAURANTS"
30/04/2015,http://opendatacommunities.org/id/county-council/surrey,Surrey,http://id.esd.org.uk/service/1465,Council expenditure,10/01/2015,KARIBU COMMUNITY HOME,NEXT 0439,18.00,"CLOTHING, UNIFORM AND LAUNDRY",FAMILY CLOTHING STORES
30/04/2015,http://opendatacommunities.org/id/county-council/surrey,Surrey,http://id.esd.org.uk/service/1465,Council expenditure,10/01/2015,MALLOW CRESCENT,MAPLIN GUILDFORD GU1,19.99,EQUIPMENT,ELECTRONIC SALES
30/04/2015,http://opendatacommunities.org/id/county-council/surrey,Surrey,http://id.esd.org.uk/service/1465,Council expenditure,10/01/2015,MSI EQUIPMENT                           ,AMAZON EU,398.88,BOOKS,DIRECT MARKETING-OTHER DIRECT MARKETERS/NOT ELSEW.
30/04/2015,http://opendatacommunities.org/id/county-council/surrey,Surrey,http://id.esd.org.uk/service/1465,Council expenditure,10/01/2015,PRISON CAPITATION                       ,AMAZON  MKTPLCE EU-UK,11.99,LIBRARY RESOURCES,BOOK STORES
30/04/2015,http://opendatacommunities.org/id/county-council/surrey,Surrey,http://id.esd.org.uk/service/1465,Council expenditure,10/01/2015,PRISON CAPITATION                       ,AMAZON  MKTPLCE EU-UK,11.21,LIBRARY RESOURCES,BOOK STORES
30/04/2015,http://opendatacommunities.org/id/county-council/surrey,Surrey,http://id.esd.org.uk/service/1465,Council expenditure,10/01/2015,ROW MAINTENANCE,BLACKS,70.00,EQUIPMENT,SPORTING GOODS STORES
30/04/2015,http://opendatacommunities.org/id/county-council/surrey,Surrey,http://id.esd.org.uk/service/1465,Council expenditure,10/01/2015,RUTH HOUSE,AMAZON  MKTPLCE EU-UK,24.01,EDUC VISITS/HOLS/CAMPS/TOYS,BOOK STORES
30/04/2015,http://opendatacommunities.org/id/county-council/surrey,Surrey,http://id.esd.org.uk/service/1465,Council expenditure,10/01/2015,WOODLANDS COMMUNITY HOME,SPORTS CLOTHING/EQUIPMENT FOR YOUNG PERSON (79.05%),83.00,"CLOTHING, UNIFORM AND LAUNDRY","GROCERY STORES, SUPERMARKETS"
30/04/2015,http://opendatacommunities.org/id/county-council/surrey,Surrey,http://id.esd.org.uk/service/1465,Council expenditure,10/01/2015,WOODLANDS COMMUNITY HOME,SPORTS HELMET FOR YOUNG PERSON (20.95%),22.00,"CLOTHING, UNIFORM AND LAUNDRY","GROCERY STORES, SUPERMARKETS"
30/04/2015,http://opendatacommunities.org/id/county-council/surrey,Surrey,http://id.esd.org.uk/service/1465,Council expenditure,11/01/2015,ASSESSMENT TEAM,AMAZON  MKTPLCE EU-UK,2.86,STATIONERY,BOOK STORES
30/04/2015,http://opendatacommunities.org/id/county-council/surrey,Surrey,http://id.esd.org.uk/service/1465,Council expenditure,11/01/2015,CEO - PUBLIC HEALTH CAMPAIGNS           ,FACEBOOK WLSRG7W9K2,39.70,PUBLICITY,ADVERTISING SERVICES
30/04/2015,http://opendatacommunities.org/id/county-council/surrey,Surrey,http://id.esd.org.uk/service/1465,Council expenditure,11/01/2015,FAIRCROFT COMMUNITY HOME,ODEON,51.80,EDUC VISITS/HOLS/CAMPS/TOYS,MOTION PICTURE THEATERS
30/04/2015,http://opendatacommunities.org/id/county-council/surrey,Surrey,http://id.esd.org.uk/service/1465,Council expenditure,11/01/2015,FAIRCROFT COMMUNITY HOME,MCDONALDS,8.38,REFRESHMENT COSTS,FAST FOOD RESTAURANTS
30/04/2015,http://opendatacommunities.org/id/county-council/surrey,Surrey,http://id.esd.org.uk/service/1465,Council expenditure,11/01/2015,KARIBU COMMUNITY HOME,BRAVISSIMO LTD,38.00,"CLOTHING, UNIFORM AND LAUNDRY",WOMEN'S READY TO WEAR STORES
30/04/2015,http://opendatacommunities.org/id/county-council/surrey,Surrey,http://id.esd.org.uk/service/1465,Council expenditure,11/01/2015,KARIBU COMMUNITY HOME,PRIMARK STORES 655,30.20,"CLOTHING, UNIFORM AND LAUNDRY",FAMILY CLOTHING STORES
30/04/2015,http://opendatacommunities.org/id/county-council/surrey,Surrey,http://id.esd.org.uk/service/1465,Council expenditure,11/01/2015,KARIBU COMMUNITY HOME,KFC,16.46,PURCHASE OF FOOD (RAW MATERIALS),FAST FOOD RESTAURANTS
30/04/2015,http://opendatacommunities.org/id/county-council/surrey,Surrey,http://id.esd.org.uk/service/1465,Council expenditure,11/01/2015,KARIBU COMMUNITY HOME,TESCO STORES 5371,12.24,PURCHASE OF FOOD (RAW MATERIALS),"GROCERY STORES, SUPERMARKETS"
30/04/2015,http://opendatacommunities.org/id/county-council/surrey,Surrey,http://id.esd.org.uk/service/1465,Council expenditure,11/01/2015,RUTH HOUSE,AMAZON  MKTPLCE EU-UK,9.99,EDUC VISITS/HOLS/CAMPS/TOYS,BOOK STORES
30/04/2015,http://opendatacommunities.org/id/county-council/surrey,Surrey,http://id.esd.org.uk/service/1465,Council expenditure,11/01/2015,WOODLANDS COMMUNITY HOME,LONGACRES NURSERY,21.97,UPKEEP OF GROUNDS,LAWN AND GARDEN SUPPLY STORES
30/04/2015,http://opendatacommunities.org/id/county-council/surrey,Surrey,http://id.esd.org.uk/service/1465,Council expenditure,12/01/2015,ARUNDEL,SPLIT - FOOD FOR SERVICE USERS (98.23%),221.42,REFRESHMENT COSTS,"GROCERY STORES, SUPERMARKETS"
30/04/2015,http://opendatacommunities.org/id/county-council/surrey,Surrey,http://id.esd.org.uk/service/1465,Council expenditure,12/01/2015,ARUNDEL,SPLIT - FOOD FOR SERVICE USERS (1.77%),4.00,REFRESHMENT COSTS,"GROCERY STORES, SUPERMARKETS"
30/04/2015,http://opendatacommunities.org/id/county-council/surrey,Surrey,http://id.esd.org.uk/service/1465,Council expenditure,12/01/2015,BUILDING WORLDCLASS WORKFORCE,AMAZON EU,40.00,EQUIPMENT,DIRECT MARKETING-OTHER DIRECT MARKETERS/NOT ELSEW.
30/04/2015,http://opendatacommunities.org/id/county-council/surrey,Surrey,http://id.esd.org.uk/service/1465,Council expenditure,12/01/2015,CEO - PUBLIC HEALTH CAMPAIGNS           ,FACEBOOK 7PDV97N9K2,39.29,PUBLICITY,ADVERTISING SERVICES
30/04/2015,http://opendatacommunities.org/id/county-council/surrey,Surrey,http://id.esd.org.uk/service/1465,Council expenditure,12/01/2015,CHEYNE WALK COMMUNITY HOME,WWW.ST-BEDES.SURREY.SC,50.00,PURCHASE OF FOOD (RAW MATERIALS),CATERERS
30/04/2015,http://opendatacommunities.org/id/county-council/surrey,Surrey,http://id.esd.org.uk/service/1465,Council expenditure,12/01/2015,CHILDCARE TRAINING & DEVELOPMENT,AMAZON  MKTPLCE EU-UK,5.95,STATIONERY,BOOK STORES
30/04/2015,http://opendatacommunities.org/id/county-council/surrey,Surrey,http://id.esd.org.uk/service/1465,Council expenditure,12/01/2015,CORONER,HORACE SMITH LOCKSMITH,209.40,EQUIPMENT,HARDWARE STORES
30/04/2015,http://opendatacommunities.org/id/county-council/surrey,Surrey,http://id.esd.org.uk/service/1465,Council expenditure,12/01/2015,COUNTY HALL,PHOENIX COMMERCIAL COL,392.00,ADAPTATIONS,OTHER SERVICES (NOT ELSEWHERE CLASSIFIED)
30/04/2015,http://opendatacommunities.org/id/county-council/surrey,Surrey,http://id.esd.org.uk/service/1465,Council expenditure,12/01/2015,EAST SUSSEX CONTRACT - MGMT & ADMIN,TESCO STORES 3330,2.75,REFRESHMENT COSTS,"GROCERY STORES, SUPERMARKETS"
30/04/2015,http://opendatacommunities.org/id/county-council/surrey,Surrey,http://id.esd.org.uk/service/1465,Council expenditure,12/01/2015,FOUNDATION STAGE WORK,AMAZON EU,24.95,EQUIPMENT,DIRECT MARKETING-OTHER DIRECT MARKETERS/NOT ELSEW.
30/04/2015,http://opendatacommunities.org/id/county-council/surrey,Surrey,http://id.esd.org.uk/service/1465,Council expenditure,12/01/2015,HEAD OF PROCUREMENT,S`TEL LGW BANQUETING,375.20,VENUE COSTS (INCLUDING HIRE OF ROOMS),"LODGING-HOTELS,MOTELS,RESORTS-NOT CLASSIFIED"
30/04/2015,http://opendatacommunities.org/id/county-council/surrey,Surrey,http://id.esd.org.uk/service/1465,Council expenditure,12/01/2015,HILLSIDE,SAINSBURYS 0784,32.55,PURCHASE OF FOOD (RAW MATERIALS),"GROCERY STORES, SUPERMARKETS"
30/04/2015,http://opendatacommunities.org/id/county-council/surrey,Surrey,http://id.esd.org.uk/service/1465,Council expenditure,12/01/2015,HOPE SERVICE - EAST,SAINSBURYS 0683,33.86,PURCHASE OF FOOD (RAW MATERIALS),"GROCERY STORES, SUPERMARKETS"
30/04/2015,http://opendatacommunities.org/id/county-council/surrey,Surrey,http://id.esd.org.uk/service/1465,Council expenditure,12/01/2015,HOPE SERVICE - WEST,BUDGENS,26.74,PURCHASE OF FOOD (RAW MATERIALS),"GROCERY STORES, SUPERMARKETS"
30/04/2015,http://opendatacommunities.org/id/county-council/surrey,Surrey,http://id.esd.org.uk/service/1465,Council expenditure,12/01/2015,HOPE SERVICE - WEST,ROKERS GOLF CLUB,25.00,EDUC VISITS/HOLS/CAMPS/TOYS,GOLF COURSES-PUBLIC
30/04/2015,http://opendatacommunities.org/id/county-council/surrey,Surrey,http://id.esd.org.uk/service/1465,Council expenditure,12/01/2015,HOPE SERVICE - WEST,AMAZON EU,22.14,BOOKS,DIRECT MARKETING-OTHER DIRECT MARKETERS/NOT ELSEW.
30/04/2015,http://opendatacommunities.org/id/county-council/surrey,Surrey,http://id.esd.org.uk/service/1465,Council expenditure,12/01/2015,IMT CRITICAL ENVIRONMENTS,SPLIT - (81.13%),31.35,REFRESHMENT COSTS,"MISC FOOD STORE-CONVENIENCE,MRKT,SPLTY,VENDNG MACS"
30/04/2015,http://opendatacommunities.org/id/county-council/surrey,Surrey,http://id.esd.org.uk/service/1465,Council expenditure,12/01/2015,IMT CRITICAL ENVIRONMENTS,SPLIT - (18.87%),7.29,REFRESHMENT COSTS,"MISC FOOD STORE-CONVENIENCE,MRKT,SPLTY,VENDNG MACS"
30/04/2015,http://opendatacommunities.org/id/county-council/surrey,Surrey,http://id.esd.org.uk/service/1465,Council expenditure,12/01/2015,INVESTIGATIONS & ENFORCEMENT TEAM       ,FACEBK  5CVUM62JA2,0.71,POSTAGE AND COURIER CHARGES,ADVERTISING SERVICES
30/04/2015,http://opendatacommunities.org/id/county-council/surrey,Surrey,http://id.esd.org.uk/service/1465,Council expenditure,12/01/2015,KARIBU COMMUNITY HOME,PARENTPAY.COM,60.00,PURCHASE OF FOOD (RAW MATERIALS),"COLLEGES, UNIV, PRO SCHOOLS, JUNIOR COLLEGES"
30/04/2015,http://opendatacommunities.org/id/county-council/surrey,Surrey,http://id.esd.org.uk/service/1465,Council expenditure,12/01/2015,KARIBU COMMUNITY HOME,WWW.DOMINOS.CO.UK,45.96,PURCHASE OF FOOD (RAW MATERIALS),"EATING PLACES, RESTAURANTS"
30/04/2015,http://opendatacommunities.org/id/county-council/surrey,Surrey,http://id.esd.org.uk/service/1465,Council expenditure,12/01/2015,KARIBU COMMUNITY HOME,WELCOME BREAK AMENITY,19.97,PURCHASE OF FOOD (RAW MATERIALS),"MISC FOOD STORE-CONVENIENCE,MRKT,SPLTY,VENDNG MACS"
30/04/2015,http://opendatacommunities.org/id/county-council/surrey,Surrey,http://id.esd.org.uk/service/1465,Council expenditure,12/01/2015,KARIBU COMMUNITY HOME,HOMEBASE LTD 127,19.41,EQUIPMENT,"BUILDING MATERIALS, LUMBER STORES"
30/04/2015,http://opendatacommunities.org/id/county-council/surrey,Surrey,http://id.esd.org.uk/service/1465,Council expenditure,12/01/2015,LEAVING CARE PACKAGES,WWW.PORT.AC.UK,"1,713.60",CURRICULUM CONSUMABLES,SCHOOLS & EDUCATIONAL SVC-NOT ELSEWHERE CLASSIFIED
30/04/2015,http://opendatacommunities.org/id/county-council/surrey,Surrey,http://id.esd.org.uk/service/1465,Council expenditure,12/01/2015,LEAVING CARE PACKAGES,SHAMROCK GUESTHOUSE,245.00,3RD PARTY PAYMENTS PRIVATE INDIV,"LODGING-HOTELS,MOTELS,RESORTS-NOT CLASSIFIED"
30/04/2015,http://opendatacommunities.org/id/county-council/surrey,Surrey,http://id.esd.org.uk/service/1465,Council expenditure,12/01/2015,LEAVING CARE PACKAGES,THE GRANGE HOTEL,224.75,3RD PARTY PAYMENTS PRIVATE INDIV,"LODGING-HOTELS,MOTELS,RESORTS-NOT CLASSIFIED"
30/04/2015,http://opendatacommunities.org/id/county-council/surrey,Surrey,http://id.esd.org.uk/service/1465,Council expenditure,12/01/2015,LEAVING CARE PACKAGES,TRAVELODGE WEBSITE,173.00,3RD PARTY PAYMENTS PRIVATE INDIV,TRAVELODGE
30/04/2015,http://opendatacommunities.org/id/county-council/surrey,Surrey,http://id.esd.org.uk/service/1465,Council expenditure,12/01/2015,LEAVING CARE PACKAGES,TRAVELODGE WEBSITE,166.30,3RD PARTY PAYMENTS PRIVATE INDIV,TRAVELODGE
30/04/2015,http://opendatacommunities.org/id/county-council/surrey,Surrey,http://id.esd.org.uk/service/1465,Council expenditure,12/01/2015,LEAVING CARE PACKAGES,TRAVELODGE WEBSITE,-91.30,3RD PARTY PAYMENTS PRIVATE INDIV,TRAVELODGE
30/04/2015,http://opendatacommunities.org/id/county-council/surrey,Surrey,http://id.esd.org.uk/service/1465,Council expenditure,12/01/2015,LEAVING CARE TEAM,TRAVELODGE BAR CAFE,12.75,OTHER COMMUNITY CARE PRIV,TRAVELODGE
30/04/2015,http://opendatacommunities.org/id/county-council/surrey,Surrey,http://id.esd.org.uk/service/1465,Council expenditure,12/01/2015,LIBERTAS COMMUNITY HOME,SAINSBURYS 0652,129.43,PURCHASE OF FOOD (RAW MATERIALS),"GROCERY STORES, SUPERMARKETS"
30/04/2015,http://opendatacommunities.org/id/county-council/surrey,Surrey,http://id.esd.org.uk/service/1465,Council expenditure,12/01/2015,LIBERTAS COMMUNITY HOME,SAINSBURYS 0828,112.75,3RD PARTY PAYMENTS PRIVATE INDIV,"GROCERY STORES, SUPERMARKETS"
30/04/2015,http://opendatacommunities.org/id/county-council/surrey,Surrey,http://id.esd.org.uk/service/1465,Council expenditure,12/01/2015,MALLOW CRESCENT,SPLIT - ON LINE GROCERY SHOPPING (97.94%),95.03,PURCHASE OF FOOD (RAW MATERIALS),"GROCERY STORES, SUPERMARKETS"
30/04/2015,http://opendatacommunities.org/id/county-council/surrey,Surrey,http://id.esd.org.uk/service/1465,Council expenditure,12/01/2015,MALLOW CRESCENT,SPLIT - ON LINE GROCERY SHOPPING (2.06%),2.00,PURCHASE OF FOOD (RAW MATERIALS),"GROCERY STORES, SUPERMARKETS"
30/04/2015,http://opendatacommunities.org/id/county-council/surrey,Surrey,http://id.esd.org.uk/service/1465,Council expenditure,12/01/2015,MISC EDCAT SUPPORT,QMS INTERNATIONAL PLC,714.00,TRAINING EXPENSES EXTERNAL GENERAL,"ORGANIZATIONS, MEMBERSHIP-NOT ELSEWHERE CLASSIFIED"
30/04/2015,http://opendatacommunities.org/id/county-council/surrey,Surrey,http://id.esd.org.uk/service/1465,Council expenditure,12/01/2015,NW CARE - CP & COURT LAC,ARGOS DIRECT,58.94,CHILDREN ACT SEC 17 PAYMENTS,DIRECT MARKETING-CATALOG MERCHANTS
30/04/2015,http://opendatacommunities.org/id/county-council/surrey,Surrey,http://id.esd.org.uk/service/1465,Council expenditure,12/01/2015,"NW REF, ASS & INT SERVICE - HUB 2",TRAVELODGE WEBSITE,263.00,TRAINING EXPENSES EXTERNAL GENERAL,TRAVELODGE
30/04/2015,http://opendatacommunities.org/id/county-council/surrey,Surrey,http://id.esd.org.uk/service/1465,Council expenditure,12/01/2015,PRISON CAPITATION                       ,AMAZON  MKTPLCE EU-UK,11.26,LIBRARY RESOURCES,BOOK STORES
30/04/2015,http://opendatacommunities.org/id/county-council/surrey,Surrey,http://id.esd.org.uk/service/1465,Council expenditure,12/01/2015,PROPERTY OPERATIONS TEAM,ALLOWAY TIMBER,18.36,PURCHASE OF BUILDING MATERIALS,"BUILDING MATERIALS, LUMBER STORES"
30/04/2015,http://opendatacommunities.org/id/county-council/surrey,Surrey,http://id.esd.org.uk/service/1465,Council expenditure,12/01/2015,PSSS VISUALLY IMPAIRED,AMAZON  MKTPLCE EU-UK,9.79,EQUIPMENT,BOOK STORES
30/04/2015,http://opendatacommunities.org/id/county-council/surrey,Surrey,http://id.esd.org.uk/service/1465,Council expenditure,12/01/2015,PSSS VISUALLY IMPAIRED,AMAZON  MKTPLCE EU-UK,6.20,EQUIPMENT,BOOK STORES
30/04/2015,http://opendatacommunities.org/id/county-council/surrey,Surrey,http://id.esd.org.uk/service/1465,Council expenditure,12/01/2015,ROW AREA4 RAB TAN                       ,AMAZON  MKTPLCE EU-UK,73.00,EQUIPMENT,BOOK STORES
30/04/2015,http://opendatacommunities.org/id/county-council/surrey,Surrey,http://id.esd.org.uk/service/1465,Council expenditure,12/01/2015,ROW VOLUNTEERS EAST                     ,WILLIAM WAY (GODSTONE),500.00,EQUIPMENT,"BUILDING MATERIALS, LUMBER STORES"
30/04/2015,http://opendatacommunities.org/id/county-council/surrey,Surrey,http://id.esd.org.uk/service/1465,Council expenditure,12/01/2015,ROW VOLUNTEERS EAST                     ,WILLIAM WAY (GODSTONE),370.00,EQUIPMENT,"BUILDING MATERIALS, LUMBER STORES"
30/04/2015,http://opendatacommunities.org/id/county-council/surrey,Surrey,http://id.esd.org.uk/service/1465,Council expenditure,12/01/2015,ROW VOLUNTEERS EAST                     ,CO-OP GROUP FOOD,15.20,REFRESHMENT COSTS,"GROCERY STORES, SUPERMARKETS"
30/04/2015,http://opendatacommunities.org/id/county-council/surrey,Surrey,http://id.esd.org.uk/service/1465,Council expenditure,12/01/2015,RUTH HOUSE,BT BILL PAYMENT 2,59.86,TELECOMMUNICATION CHARGES,TELECOMMUNICATION EQUIPMENT INCL TELEPHONE SALES
30/04/2015,http://opendatacommunities.org/id/county-council/surrey,Surrey,http://id.esd.org.uk/service/1465,Council expenditure,12/01/2015,RUTH HOUSE,AMAZON  MKTPLCE EU-UK,8.97,EQUIPMENT,BOOK STORES
30/04/2015,http://opendatacommunities.org/id/county-council/surrey,Surrey,http://id.esd.org.uk/service/1465,Council expenditure,12/01/2015,SOLD APPRENTICES,THE POST OFFICE,3.90,TRAINING EXPENSES EXTERNAL GENERAL,POSTAL SERVICES-GOVERNMENT ONLY
30/04/2015,http://opendatacommunities.org/id/county-council/surrey,Surrey,http://id.esd.org.uk/service/1465,Council expenditure,12/01/2015,SOLD CURRICULUM PROGRAMME DELIVERY,TESCO STORES 3102,3.00,PURCHASE OF FOOD (RAW MATERIALS),"GROCERY STORES, SUPERMARKETS"
30/04/2015,http://opendatacommunities.org/id/county-council/surrey,Surrey,http://id.esd.org.uk/service/1465,Council expenditure,12/01/2015,SURREY ARTS GENERAL,WWW.MUSICGIFTS.CO.,6.50,CURRIC BOOKS,"MUSIC STORES-INSTRUMENTS, PIANOS, SHEET MUSIC"
30/04/2015,http://opendatacommunities.org/id/county-council/surrey,Surrey,http://id.esd.org.uk/service/1465,Council expenditure,12/01/2015,SW SECTION 17 CARE,TRAVELODGE WEBSITE,-49.00,CHILDREN ACT SEC 17 PAYMENTS,TRAVELODGE
30/04/2015,http://opendatacommunities.org/id/county-council/surrey,Surrey,http://id.esd.org.uk/service/1465,Council expenditure,12/01/2015,SW TEACHERS,WWW.ELKLAN.CO.UK,264.00,BOOKS,SCHOOLS & EDUCATIONAL SVC-NOT ELSEWHERE CLASSIFIED
30/04/2015,http://opendatacommunities.org/id/county-council/surrey,Surrey,http://id.esd.org.uk/service/1465,Council expenditure,12/01/2015,SYP TANDRIDGE I-BUS,SAINSBURYS SACAT 0023,4.49,CURRICULUM CONSUMABLES,"GROCERY STORES, SUPERMARKETS"
30/04/2015,http://opendatacommunities.org/id/county-council/surrey,Surrey,http://id.esd.org.uk/service/1465,Council expenditure,12/01/2015,TARGETED INTERVENTION,STAPLETON'S (RETAI,236.00,VEHICLE REPAIRS AND MAINTENANCE,AUTOMOTIVE TIRE STORES
30/04/2015,http://opendatacommunities.org/id/county-council/surrey,Surrey,http://id.esd.org.uk/service/1465,Council expenditure,12/01/2015,TARGETED INTERVENTION,STARBUCKS,5.55,EDUC VISITS/HOLS/CAMPS/TOYS,"EATING PLACES, RESTAURANTS"
30/04/2015,http://opendatacommunities.org/id/county-council/surrey,Surrey,http://id.esd.org.uk/service/1465,Council expenditure,12/01/2015,TRAINING AND DEVELOPMENT,DSA,300.00,TRAINING EXPENSES EXTERNAL GENERAL,GOVERNMENT SERVICES-NOT ELSEWHERE CLASSIFIED
30/04/2015,http://opendatacommunities.org/id/county-council/surrey,Surrey,http://id.esd.org.uk/service/1465,Council expenditure,12/01/2015,TRAINING AND DEVELOPMENT,TRAVELODGE WEBSITE,285.25,TRAINING EXPENSES EXTERNAL GENERAL,TRAVELODGE
30/04/2015,http://opendatacommunities.org/id/county-council/surrey,Surrey,http://id.esd.org.uk/service/1465,Council expenditure,12/01/2015,TRANSPORT,ILGS LTD,"1,957.10",COMPUTER HARDWARE,ELECTRONIC SALES
30/04/2015,http://opendatacommunities.org/id/county-council/surrey,Surrey,http://id.esd.org.uk/service/1465,Council expenditure,12/01/2015,TRANSPORT,T A BOXALL & CO LTD,"1,181.00",VEHICLE REPAIRS AND MAINTENANCE,"CONTRACTORS,SPECIAL TRADE-NOT ELSEWHERE CLASSIFIED"
30/04/2015,http://opendatacommunities.org/id/county-council/surrey,Surrey,http://id.esd.org.uk/service/1465,Council expenditure,12/01/2015,TRANSPORT,WWW.DVLA.GOV.UK,502.50,VEHICLE REPAIRS AND MAINTENANCE,GOVERNMENT SERVICES-NOT ELSEWHERE CLASSIFIED
30/04/2015,http://opendatacommunities.org/id/county-council/surrey,Surrey,http://id.esd.org.uk/service/1465,Council expenditure,12/01/2015,TRANSPORT,JOHN NORRIS OF PENRITH,96.95,"CLOTHING, UNIFORM AND LAUNDRY",SPORTING GOODS STORES
30/04/2015,http://opendatacommunities.org/id/county-council/surrey,Surrey,http://id.esd.org.uk/service/1465,Council expenditure,12/01/2015,TS SERVICE MANAGEMENT,WWW.REGISTRY-TRUST.ORG,100.00,COMPUTER SERVICES,PROFESSIONAL SERVICES-NOT ELSEWHERE CLASSIFIED
30/04/2015,http://opendatacommunities.org/id/county-council/surrey,Surrey,http://id.esd.org.uk/service/1465,Council expenditure,12/01/2015,TS SERVICE MANAGEMENT,AMAZON  MKTPLCE EU-UK,46.58,EQUIPMENT,BOOK STORES
30/04/2015,http://opendatacommunities.org/id/county-council/surrey,Surrey,http://id.esd.org.uk/service/1465,Council expenditure,12/01/2015,TS SERVICE MANAGEMENT,AMAZON EU,9.98,EQUIPMENT,DIRECT MARKETING-OTHER DIRECT MARKETERS/NOT ELSEW.
30/04/2015,http://opendatacommunities.org/id/county-council/surrey,Surrey,http://id.esd.org.uk/service/1465,Council expenditure,12/01/2015,WOKING YC,TRAVELINE TRANSPORT SE,10.00,NON-STAFF RELATED TRANSPORT COSTS,LIMOUSINES AND TAXICABS
30/04/2015,http://opendatacommunities.org/id/county-council/surrey,Surrey,http://id.esd.org.uk/service/1465,Council expenditure,12/01/2015,WOODLANDS COMMUNITY HOME,PARENTPAY.COM,50.00,PURCHASE OF FOOD (RAW MATERIALS),"COLLEGES, UNIV, PRO SCHOOLS, JUNIOR COLLEGES"
30/04/2015,http://opendatacommunities.org/id/county-council/surrey,Surrey,http://id.esd.org.uk/service/1465,Council expenditure,13/01/2015,ACL CENTRAL EXPENDITURE,ALEC TIRANTI LIMIT,389.73,EQUIPMENT,"ARTIST SUPPLY STORES, CRAFT SHOPS"
30/04/2015,http://opendatacommunities.org/id/county-council/surrey,Surrey,http://id.esd.org.uk/service/1465,Council expenditure,13/01/2015,ACL CENTRAL EXPENDITURE,ALEC TIRANTI LIMIT,196.86,EQUIPMENT,"ARTIST SUPPLY STORES, CRAFT SHOPS"
30/04/2015,http://opendatacommunities.org/id/county-council/surrey,Surrey,http://id.esd.org.uk/service/1465,Council expenditure,13/01/2015,ACL CENTRAL EXPENDITURE,AMAZON  MKTPLCE EU-UK,12.65,EQUIPMENT,BOOK STORES
30/04/2015,http://opendatacommunities.org/id/county-council/surrey,Surrey,http://id.esd.org.uk/service/1465,Council expenditure,13/01/2015,APPLEWOOD,ASDA HOME SHOPPING,149.52,PURCHASE OF FOOD (RAW MATERIALS),"GROCERY STORES, SUPERMARKETS"
30/04/2015,http://opendatacommunities.org/id/county-council/surrey,Surrey,http://id.esd.org.uk/service/1465,Council expenditure,13/01/2015,APPLEWOOD,ASDA HOME SHOPPING,-3.00,PURCHASE OF FOOD (RAW MATERIALS),"GROCERY STORES, SUPERMARKETS"
30/04/2015,http://opendatacommunities.org/id/county-council/surrey,Surrey,http://id.esd.org.uk/service/1465,Council expenditure,13/01/2015,ASSESSMENT TEAM,AMAZON  MKTPLCE EU-UK,3.49,STATIONERY,BOOK STORES
30/04/2015,http://opendatacommunities.org/id/county-council/surrey,Surrey,http://id.esd.org.uk/service/1465,Council expenditure,13/01/2015,CEO - PUBLIC HEALTH CAMPAIGNS           ,FACEBOOK UGL8L7EAK2,39.17,PUBLICITY,ADVERTISING SERVICES
30/04/2015,http://opendatacommunities.org/id/county-council/surrey,Surrey,http://id.esd.org.uk/service/1465,Council expenditure,13/01/2015,CHILDREN'S RIGHTS TEAM,WWW.ALLCOLOURENVELOPES,57.54,STATIONERY,STATIONERY/OFFICE SUPPLIES/PRINTING & WRITING PAP.
30/04/2015,http://opendatacommunities.org/id/county-council/surrey,Surrey,http://id.esd.org.uk/service/1465,Council expenditure,13/01/2015,CLOSED LANDFILL,GEOTECHNICAL INSTR,192.00,EQUIPMENT,INDUSTRIAL SUPPLIES NOT ELSEWHERE CLASSIFIED
30/04/2015,http://opendatacommunities.org/id/county-council/surrey,Surrey,http://id.esd.org.uk/service/1465,Council expenditure,13/01/2015,COMMUNICATIONS TEAM,JESSOPS,641.98,EQUIPMENT,CAMERA AND PHOTOGRAPHIC SUPPLY STORES
30/04/2015,http://opendatacommunities.org/id/county-council/surrey,Surrey,http://id.esd.org.uk/service/1465,Council expenditure,13/01/2015,COMMUNICATIONS TEAM,WWW.CABOODLE.CO.UK,51.18,STATIONERY,STATIONERY/OFFICE SUPPLIES/PRINTING & WRITING PAP.
30/04/2015,http://opendatacommunities.org/id/county-council/surrey,Surrey,http://id.esd.org.uk/service/1465,Council expenditure,13/01/2015,CONSORT HOUSE REDHILL,ROBERT DYAS HOLDNG LTD,13.47,EQUIPMENT,HARDWARE STORES
30/04/2015,http://opendatacommunities.org/id/county-council/surrey,Surrey,http://id.esd.org.uk/service/1465,Council expenditure,13/01/2015,COUNTY HALL,AMAZON EU,29.96,DAY TO DAY MAINTENANCE,DIRECT MARKETING-OTHER DIRECT MARKETERS/NOT ELSEW.
30/04/2015,http://opendatacommunities.org/id/county-council/surrey,Surrey,http://id.esd.org.uk/service/1465,Council expenditure,13/01/2015,COUNTYWIDE MANAGED PRINT SERVICE,AMAZON  MKTPLCE EU-UK,60.98,COMPUTER CONSUMABLES,BOOK STORES
30/04/2015,http://opendatacommunities.org/id/county-council/surrey,Surrey,http://id.esd.org.uk/service/1465,Council expenditure,13/01/2015,COVEHAM,SAINSBURYS TO YOU 0687,111.55,REFRESHMENT COSTS,"GROCERY STORES, SUPERMARKETS"
30/04/2015,http://opendatacommunities.org/id/county-council/surrey,Surrey,http://id.esd.org.uk/service/1465,Council expenditure,13/01/2015,CS BUSINESS SUPPORT SAFEGUARDING,AMAZON  MKTPLCE EU-UK,12.90,EQUIPMENT,BOOK STORES
30/04/2015,http://opendatacommunities.org/id/county-council/surrey,Surrey,http://id.esd.org.uk/service/1465,Council expenditure,13/01/2015,ENSURING PROVISION INCLUSIVE - CAP,AMAZON  MKTPLCE EU-UK,38.23,EQUIPMENT,BOOK STORES
30/04/2015,http://opendatacommunities.org/id/county-council/surrey,Surrey,http://id.esd.org.uk/service/1465,Council expenditure,13/01/2015,FAIRCROFT COMMUNITY HOME,TESCO STORES-2160,57.50,EQUIPMENT,"GROCERY STORES, SUPERMARKETS"
30/04/2015,http://opendatacommunities.org/id/county-council/surrey,Surrey,http://id.esd.org.uk/service/1465,Council expenditure,13/01/2015,FAIRCROFT COMMUNITY HOME,SAINSBURYS SACAT 0687,38.50,EQUIPMENT,"GROCERY STORES, SUPERMARKETS"
30/04/2015,http://opendatacommunities.org/id/county-council/surrey,Surrey,http://id.esd.org.uk/service/1465,Council expenditure,13/01/2015,FAIRCROFT COMMUNITY HOME,ARGOS RETAIL GROUP,29.93,EQUIPMENT,DISCOUNT STORES
30/04/2015,http://opendatacommunities.org/id/county-council/surrey,Surrey,http://id.esd.org.uk/service/1465,Council expenditure,13/01/2015,FAIRCROFT COMMUNITY HOME,SAINSBURYS SACAT 0687,25.00,PURCHASE OF FOOD (RAW MATERIALS),"GROCERY STORES, SUPERMARKETS"
30/04/2015,http://opendatacommunities.org/id/county-council/surrey,Surrey,http://id.esd.org.uk/service/1465,Council expenditure,13/01/2015,FAIRCROFT COMMUNITY HOME,ARGOS LTD,18.97,EQUIPMENT,DISCOUNT STORES
30/04/2015,http://opendatacommunities.org/id/county-council/surrey,Surrey,http://id.esd.org.uk/service/1465,Council expenditure,13/01/2015,FAIRCROFT COMMUNITY HOME,ARGOS LTD,4.99,EQUIPMENT,DISCOUNT STORES
30/04/2015,http://opendatacommunities.org/id/county-council/surrey,Surrey,http://id.esd.org.uk/service/1465,Council expenditure,13/01/2015,FINANCE CHANGE AND PERFORMANCE GROUP,HEMMING GROUP LTD,140.00,NEWSPAPER AND PERIODICALS,DIRECT MARKETING-CATALOG MERCHANTS
30/04/2015,http://opendatacommunities.org/id/county-council/surrey,Surrey,http://id.esd.org.uk/service/1465,Council expenditure,13/01/2015,FIRE & RESCUE,PAYPAL  RUTHLEELTD,"2,066.40",EQUIPMENT,CHEMICALS/ALLIED PRODUCTS NOT ELSEWHERE CLASSIFIED
30/04/2015,http://opendatacommunities.org/id/county-council/surrey,Surrey,http://id.esd.org.uk/service/1465,Council expenditure,13/01/2015,FOUNDATION STAGE WORK,AMAZON  MKTPLCE EU-UK,24.95,EQUIPMENT,BOOK STORES
30/04/2015,http://opendatacommunities.org/id/county-council/surrey,Surrey,http://id.esd.org.uk/service/1465,Council expenditure,13/01/2015,FOUNDATION STAGE WORK,AMAZON EU,22.30,EQUIPMENT,DIRECT MARKETING-OTHER DIRECT MARKETERS/NOT ELSEW.
30/04/2015,http://opendatacommunities.org/id/county-council/surrey,Surrey,http://id.esd.org.uk/service/1465,Council expenditure,13/01/2015,FOUNDATION STAGE WORK,AMAZON EU,20.00,EQUIPMENT,DIRECT MARKETING-OTHER DIRECT MARKETERS/NOT ELSEW.
30/04/2015,http://opendatacommunities.org/id/county-council/surrey,Surrey,http://id.esd.org.uk/service/1465,Council expenditure,13/01/2015,FOUNDATION STAGE WORK,AMAZON  MKTPLCE EU-UK,7.14,EQUIPMENT,BOOK STORES
30/04/2015,http://opendatacommunities.org/id/county-council/surrey,Surrey,http://id.esd.org.uk/service/1465,Council expenditure,13/01/2015,HERITAGE MANAGER,AMAZON EU,39.27,STATIONERY,DIRECT MARKETING-OTHER DIRECT MARKETERS/NOT ELSEW.
30/04/2015,http://opendatacommunities.org/id/county-council/surrey,Surrey,http://id.esd.org.uk/service/1465,Council expenditure,13/01/2015,HERITAGE MANAGER,AMAZON  MKTPLCE EU-UK,37.90,EQUIPMENT,BOOK STORES
30/04/2015,http://opendatacommunities.org/id/county-council/surrey,Surrey,http://id.esd.org.uk/service/1465,Council expenditure,13/01/2015,HILLSIDE,SAINSBURYS 0675,54.83,PURCHASE OF FOOD (RAW MATERIALS),"GROCERY STORES, SUPERMARKETS"
30/04/2015,http://opendatacommunities.org/id/county-council/surrey,Surrey,http://id.esd.org.uk/service/1465,Council expenditure,13/01/2015,HOLLAND CLOSE RESIDENTIAL HOME,TESCO-STORES 6647,132.83,PURCHASE OF FOOD (RAW MATERIALS),"GROCERY STORES, SUPERMARKETS"
30/04/2015,http://opendatacommunities.org/id/county-council/surrey,Surrey,http://id.esd.org.uk/service/1465,Council expenditure,13/01/2015,HOPE SERVICE - WEST,SAINSBURYS TO YOU 0686,93.27,PURCHASE OF FOOD (RAW MATERIALS),"GROCERY STORES, SUPERMARKETS"
30/04/2015,http://opendatacommunities.org/id/county-council/surrey,Surrey,http://id.esd.org.uk/service/1465,Council expenditure,13/01/2015,HOPE SERVICE - WEST,AMAZON EU,22.14,BOOKS,DIRECT MARKETING-OTHER DIRECT MARKETERS/NOT ELSEW.
30/04/2015,http://opendatacommunities.org/id/county-council/surrey,Surrey,http://id.esd.org.uk/service/1465,Council expenditure,13/01/2015,HOPE SERVICE - WEST,GUILDFORD LOCK & SAFE,18.40,CURRICULUM EQUIPMENT AND FURNITURE,HARDWARE EQUIPMENT AND SUPPLIES
30/04/2015,http://opendatacommunities.org/id/county-council/surrey,Surrey,http://id.esd.org.uk/service/1465,Council expenditure,13/01/2015,HOPE SERVICE - WEST,CARD FACTORY,14.66,CURRICULUM EQUIPMENT AND FURNITURE,"GIFT, CARD, NOVELTY AND SOUVENIR SHOPS"
30/04/2015,http://opendatacommunities.org/id/county-council/surrey,Surrey,http://id.esd.org.uk/service/1465,Council expenditure,13/01/2015,HOPE SERVICE - WEST,AMAZON EU,12.30,BOOKS,DIRECT MARKETING-OTHER DIRECT MARKETERS/NOT ELSEW.
30/04/2015,http://opendatacommunities.org/id/county-council/surrey,Surrey,http://id.esd.org.uk/service/1465,Council expenditure,13/01/2015,HOPE SERVICE - WEST,SAINSBURYS SACAT(4409),2.00,PURCHASE OF FOOD (RAW MATERIALS),"GROCERY STORES, SUPERMARKETS"
30/04/2015,http://opendatacommunities.org/id/county-council/surrey,Surrey,http://id.esd.org.uk/service/1465,Council expenditure,13/01/2015,ISPSB - ADAPTATIONS & IMPROVEMENTS,AMAZON  MKTPLCE EU-UK,174.22,EQUIPMENT,BOOK STORES
30/04/2015,http://opendatacommunities.org/id/county-council/surrey,Surrey,http://id.esd.org.uk/service/1465,Council expenditure,13/01/2015,ISPSB - ADAPTATIONS & IMPROVEMENTS,AMAZON  MKTPLCE EU-UK,95.00,EQUIPMENT,BOOK STORES
30/04/2015,http://opendatacommunities.org/id/county-council/surrey,Surrey,http://id.esd.org.uk/service/1465,Council expenditure,13/01/2015,ISPSB - ADAPTATIONS & IMPROVEMENTS,AMAZON EU,68.70,EQUIPMENT,DIRECT MARKETING-OTHER DIRECT MARKETERS/NOT ELSEW.
30/04/2015,http://opendatacommunities.org/id/county-council/surrey,Surrey,http://id.esd.org.uk/service/1465,Council expenditure,13/01/2015,KARIBU COMMUNITY HOME,PARENTPAY.COM,26.50,EDUC VISITS/HOLS/CAMPS/TOYS,"COLLEGES, UNIV, PRO SCHOOLS, JUNIOR COLLEGES"
30/04/2015,http://opendatacommunities.org/id/county-council/surrey,Surrey,http://id.esd.org.uk/service/1465,Council expenditure,13/01/2015,LEAVING CARE PACKAGES,TOWNENDS,772.50,INDEPENDENT LIVING PLACEMENTS,REAL ESTATE AGENTS AND MANAGERS-RENTALS
30/04/2015,http://opendatacommunities.org/id/county-council/surrey,Surrey,http://id.esd.org.uk/service/1465,Council expenditure,13/01/2015,LEAVING CARE PACKAGES,TRAVELODGE WEBSITE,205.30,3RD PARTY PAYMENTS PRIVATE INDIV,TRAVELODGE
30/04/2015,http://opendatacommunities.org/id/county-council/surrey,Surrey,http://id.esd.org.uk/service/1465,Council expenditure,13/01/2015,LEAVING CARE PACKAGES,TRAVELODGE WEBSITE,168.30,3RD PARTY PAYMENTS PRIVATE INDIV,TRAVELODGE
30/04/2015,http://opendatacommunities.org/id/county-council/surrey,Surrey,http://id.esd.org.uk/service/1465,Council expenditure,13/01/2015,LEAVING CARE PACKAGES,GRO HM PASSPORT OFFICE,9.25,OTHER COMMUNITY CARE VOL,GOVERNMENT SERVICES-NOT ELSEWHERE CLASSIFIED
30/04/2015,http://opendatacommunities.org/id/county-council/surrey,Surrey,http://id.esd.org.uk/service/1465,Council expenditure,13/01/2015,LIBERTAS COMMUNITY HOME,BP MERROW CONVENIENCE,17.18,PURCHASE OF FOOD (RAW MATERIALS),SERVICE STATIONS WITH OR WITHOUT ANCILLARY SERVICE
30/04/2015,http://opendatacommunities.org/id/county-council/surrey,Surrey,http://id.esd.org.uk/service/1465,Council expenditure,13/01/2015,LOCAL ASSISTANCE SCHEME,CARPETRIGHT,390.60,FURNITURE,FLOOR COVERING STORES
30/04/2015,http://opendatacommunities.org/id/county-council/surrey,Surrey,http://id.esd.org.uk/service/1465,Council expenditure,13/01/2015,LOCAL ASSISTANCE SCHEME,CARPETRIGHT,361.83,FURNITURE,FLOOR COVERING STORES
30/04/2015,http://opendatacommunities.org/id/county-council/surrey,Surrey,http://id.esd.org.uk/service/1465,Council expenditure,13/01/2015,LOCAL ASSISTANCE SCHEME,CARPETRIGHT,217.99,FURNITURE,FLOOR COVERING STORES
30/04/2015,http://opendatacommunities.org/id/county-council/surrey,Surrey,http://id.esd.org.uk/service/1465,Council expenditure,13/01/2015,LOCAL PREVENTION FRAMEWORK SPELTHORNE,WAITROSE 178,12.60,REFRESHMENT COSTS,"GROCERY STORES, SUPERMARKETS"
30/04/2015,http://opendatacommunities.org/id/county-council/surrey,Surrey,http://id.esd.org.uk/service/1465,Council expenditure,13/01/2015,LOWER MOLE COUNTRYSIDE PROJECT,SCREWFIX,123.50,EQUIPMENT,"BUILDING MATERIALS, LUMBER STORES"
30/04/2015,http://opendatacommunities.org/id/county-council/surrey,Surrey,http://id.esd.org.uk/service/1465,Council expenditure,13/01/2015,MALLOW CRESCENT,WWW.MATTRESSONLINE.CO.,229.95,FURNITURE,MISCELLANEOUS AND SPECIALTY RETAIL STORES
30/04/2015,http://opendatacommunities.org/id/county-council/surrey,Surrey,http://id.esd.org.uk/service/1465,Council expenditure,13/01/2015,MSI EQUIPMENT                           ,AMAZON EU,27.70,BOOKS,DIRECT MARKETING-OTHER DIRECT MARKETERS/NOT ELSEW.
30/04/2015,http://opendatacommunities.org/id/county-council/surrey,Surrey,http://id.esd.org.uk/service/1465,Council expenditure,13/01/2015,NIL RECOURSE PUBLIC FNDG 18+ ASYLUM SKR,PREMIER INN 44535935,185.00,3RD PARTY PAYMENTS PRIVATE INDIV,PREMIER INN
30/04/2015,http://opendatacommunities.org/id/county-council/surrey,Surrey,http://id.esd.org.uk/service/1465,Council expenditure,13/01/2015,NORTH EAST AREA TEAM,TFL OYST PHOTOCARD,10.00,STUDENT FARE CARD (STUDENTFARECARDRAIL),PASSENGER RAILWAYS
30/04/2015,http://opendatacommunities.org/id/county-council/surrey,Surrey,http://id.esd.org.uk/service/1465,Council expenditure,13/01/2015,NW CARE - LAC,RBI EVENTS,238.80,CHILDREN ACT SEC 17 PAYMENTS,MISCELLANEOUS PUBLISHING AND PRINTING
30/04/2015,http://opendatacommunities.org/id/county-council/surrey,Surrey,http://id.esd.org.uk/service/1465,Council expenditure,13/01/2015,NW CARE - NON-LAC CP & COURT,GRO HM PASSPORT OFFICE,27.75,FEES,GOVERNMENT SERVICES-NOT ELSEWHERE CLASSIFIED
30/04/2015,http://opendatacommunities.org/id/county-council/surrey,Surrey,http://id.esd.org.uk/service/1465,Council expenditure,13/01/2015,"NW REF, ASS & INT SERVICE - HUB 2",AMAZON  MKTPLCE EU-UK,10.49,EQUIPMENT,BOOK STORES
30/04/2015,http://opendatacommunities.org/id/county-council/surrey,Surrey,http://id.esd.org.uk/service/1465,Council expenditure,13/01/2015,PARK HALL RESIDENTIAL CARE,TSL CLOTHING,216.00,"CLOTHING, UNIFORM AND LAUNDRY",FAMILY CLOTHING STORES
30/04/2015,http://opendatacommunities.org/id/county-council/surrey,Surrey,http://id.esd.org.uk/service/1465,Council expenditure,13/01/2015,PE/CDT MAINTENANCE OVERHEADS,BIL GROUP LTD,365.26,EQUIPMENT,HARDWARE EQUIPMENT AND SUPPLIES
30/04/2015,http://opendatacommunities.org/id/county-council/surrey,Surrey,http://id.esd.org.uk/service/1465,Council expenditure,13/01/2015,PE/CDT MAINTENANCE OVERHEADS,MARLOW ROPES LTD,189.59,EQUIPMENT,INDUSTRIAL SUPPLIES NOT ELSEWHERE CLASSIFIED
30/04/2015,http://opendatacommunities.org/id/county-council/surrey,Surrey,http://id.esd.org.uk/service/1465,Council expenditure,13/01/2015,PE/CDT MAINTENANCE OVERHEADS,JOHNSON HEALTH TECH UK,128.03,EQUIPMENT,SPORTING GOODS STORES
30/04/2015,http://opendatacommunities.org/id/county-council/surrey,Surrey,http://id.esd.org.uk/service/1465,Council expenditure,13/01/2015,PERMANENTLY SURPLUS LAND,HORACE SMITH LOCKSMITH,156.32,SECURITY ALARM MAINTENANCE,HARDWARE STORES
30/04/2015,http://opendatacommunities.org/id/county-council/surrey,Surrey,http://id.esd.org.uk/service/1465,Council expenditure,13/01/2015,PLANNING DEVELOPMENT CONTROL TEAM,TRFSA   THOMSONREUTERS,"1,423.00",NEWSPAPER AND PERIODICALS,PROFESSIONAL SERVICES-NOT ELSEWHERE CLASSIFIED
30/04/2015,http://opendatacommunities.org/id/county-council/surrey,Surrey,http://id.esd.org.uk/service/1465,Council expenditure,13/01/2015,PROPERTY OPERATIONS TEAM,WP-INTEGRATED ENVI,"1,320.00",SUBSCRIPTIONS,"COMPUTERS, COMPUTER PERIPHERAL EQUIPMENT, SOFTWARE"
30/04/2015,http://opendatacommunities.org/id/county-council/surrey,Surrey,http://id.esd.org.uk/service/1465,Council expenditure,13/01/2015,PROPERTY OPERATIONS TEAM,VOLANTE LTD,55.04,PURCHASE OF BUILDING MATERIALS,"BUILDING MATERIALS, LUMBER STORES"
30/04/2015,http://opendatacommunities.org/id/county-council/surrey,Surrey,http://id.esd.org.uk/service/1465,Council expenditure,13/01/2015,PROPERTY OPERATIONS TEAM,TOOLSTATION LTD,47.36,PURCHASE OF BUILDING MATERIALS,HARDWARE STORES
30/04/2015,http://opendatacommunities.org/id/county-council/surrey,Surrey,http://id.esd.org.uk/service/1465,Council expenditure,13/01/2015,PROPERTY OPERATIONS TEAM,TOOLSTATION LTD,45.29,PURCHASE OF BUILDING MATERIALS,HARDWARE STORES
30/04/2015,http://opendatacommunities.org/id/county-council/surrey,Surrey,http://id.esd.org.uk/service/1465,Council expenditure,13/01/2015,PROPERTY OPERATIONS TEAM,WICKES,8.49,PURCHASE OF BUILDING MATERIALS,"BUILDING MATERIALS, LUMBER STORES"
30/04/2015,http://opendatacommunities.org/id/county-council/surrey,Surrey,http://id.esd.org.uk/service/1465,Council expenditure,13/01/2015,PSSS VISUALLY IMPAIRED,AMAZON  MKTPLCE EU-UK,60.00,EQUIPMENT,BOOK STORES
30/04/2015,http://opendatacommunities.org/id/county-council/surrey,Surrey,http://id.esd.org.uk/service/1465,Council expenditure,13/01/2015,ROW VOLUNTEERS EAST                     ,AMAZON  MKTPLCE EU-UK,130.00,EQUIPMENT,BOOK STORES
30/04/2015,http://opendatacommunities.org/id/county-council/surrey,Surrey,http://id.esd.org.uk/service/1465,Council expenditure,13/01/2015,ROW VOLUNTEERS EAST                     ,AMAZON EU,99.80,EQUIPMENT,DIRECT MARKETING-OTHER DIRECT MARKETERS/NOT ELSEW.
30/04/2015,http://opendatacommunities.org/id/county-council/surrey,Surrey,http://id.esd.org.uk/service/1465,Council expenditure,13/01/2015,RUTH HOUSE,SAINSBURYS TO YOU 0686,50.60,PURCHASE OF FOOD (RAW MATERIALS),"GROCERY STORES, SUPERMARKETS"
30/04/2015,http://opendatacommunities.org/id/county-council/surrey,Surrey,http://id.esd.org.uk/service/1465,Council expenditure,13/01/2015,SAP COMPETENCY CENTRE,AMAZON  MKTPLCE EU-UK,54.08,COMPUTER HARDWARE,BOOK STORES
30/04/2015,http://opendatacommunities.org/id/county-council/surrey,Surrey,http://id.esd.org.uk/service/1465,Council expenditure,13/01/2015,SURREY ARTS - DANCE,FAMILY ARTS CONFERENCE (50%),150.00,TRAINING EXPENSES EXTERNAL GENERAL,BUSINESS SERVICES-NOT ELSEWHERE CLASSIFIED
30/04/2015,http://opendatacommunities.org/id/county-council/surrey,Surrey,http://id.esd.org.uk/service/1465,Council expenditure,13/01/2015,SURREY ARTS - DRAMA,FAMIY ARTS CONFERENCE (50%),150.00,TRAINING EXPENSES EXTERNAL GENERAL,BUSINESS SERVICES-NOT ELSEWHERE CLASSIFIED
30/04/2015,http://opendatacommunities.org/id/county-council/surrey,Surrey,http://id.esd.org.uk/service/1465,Council expenditure,13/01/2015,SURREY ARTS GENERAL,AMAZON  MKTPLCE EU-UK,16.36,EQUIPMENT,BOOK STORES
30/04/2015,http://opendatacommunities.org/id/county-council/surrey,Surrey,http://id.esd.org.uk/service/1465,Council expenditure,13/01/2015,SURREY LOCAL RESILIENCE FORUM EMT,JOCKEY CLUB RACECOURSE,"2,144.40",VENUE COSTS (INCLUDING HIRE OF ROOMS),"ATHLTIC FIELDS,COMMRCL SPRT,SPRT CLBS,SPRT PROMOTR"
30/04/2015,http://opendatacommunities.org/id/county-council/surrey,Surrey,http://id.esd.org.uk/service/1465,Council expenditure,13/01/2015,SYP TANDRIDGE I-BUS,HOLLYWOODBOWL.CO.U,33.15,REFRESHMENT COSTS,"BANDS, ORCHESTRAS, & MISC ENTRTNRS-NOT ELSWHR CLAS"
30/04/2015,http://opendatacommunities.org/id/county-council/surrey,Surrey,http://id.esd.org.uk/service/1465,Council expenditure,13/01/2015,TANDRIDGE LOCALITY TEAM,AMAZON  MKTPLCE EU-UK,10.98,EQUIPMENT,BOOK STORES
30/04/2015,http://opendatacommunities.org/id/county-council/surrey,Surrey,http://id.esd.org.uk/service/1465,Council expenditure,13/01/2015,TARGETED INTERVENTION,FELTHAM TYRE/RUBBE,42.00,VEHICLE REPAIRS AND MAINTENANCE,AUTOMOTIVE TIRE STORES
30/04/2015,http://opendatacommunities.org/id/county-council/surrey,Surrey,http://id.esd.org.uk/service/1465,Council expenditure,13/01/2015,TARGETED INTERVENTION,CINEWORLD FEL CP,37.95,EDUC VISITS/HOLS/CAMPS/TOYS,"THEATRICAL PRODUCERS(EXCL MOTION PIX),TICKET AGNCY"
30/04/2015,http://opendatacommunities.org/id/county-council/surrey,Surrey,http://id.esd.org.uk/service/1465,Council expenditure,13/01/2015,TARGETED INTERVENTION,CERAMICS CAFE HERSHAM,25.60,EDUC VISITS/HOLS/CAMPS/TOYS,"GIFT, CARD, NOVELTY AND SOUVENIR SHOPS"
30/04/2015,http://opendatacommunities.org/id/county-council/surrey,Surrey,http://id.esd.org.uk/service/1465,Council expenditure,13/01/2015,TARGETED INTERVENTION,TOP GOLF ADDLESTON,24.00,EDUC VISITS/HOLS/CAMPS/TOYS,"CLUBS-CNTRY,MBRSHIP(ATHLET,REC,SPRTS,PRIVATE GOLF"
30/04/2015,http://opendatacommunities.org/id/county-council/surrey,Surrey,http://id.esd.org.uk/service/1465,Council expenditure,13/01/2015,TARGETED INTERVENTION,MERCEDES-BENZ WORLD,8.25,EDUC VISITS/HOLS/CAMPS/TOYS,"EATING PLACES, RESTAURANTS"
30/04/2015,http://opendatacommunities.org/id/county-council/surrey,Surrey,http://id.esd.org.uk/service/1465,Council expenditure,13/01/2015,TARGETED INTERVENTION,NOTCUTTS GARDEN CE,6.70,EDUC VISITS/HOLS/CAMPS/TOYS,LAWN AND GARDEN SUPPLY STORES
30/04/2015,http://opendatacommunities.org/id/county-council/surrey,Surrey,http://id.esd.org.uk/service/1465,Council expenditure,13/01/2015,TARGETED INTERVENTION,CINEWORLD FEL CP,5.80,EDUC VISITS/HOLS/CAMPS/TOYS,"THEATRICAL PRODUCERS(EXCL MOTION PIX),TICKET AGNCY"
30/04/2015,http://opendatacommunities.org/id/county-council/surrey,Surrey,http://id.esd.org.uk/service/1465,Council expenditure,13/01/2015,TARGETED INTERVENTION,HARRIS & HOOLE,3.20,EDUC VISITS/HOLS/CAMPS/TOYS,"EATING PLACES, RESTAURANTS"
30/04/2015,http://opendatacommunities.org/id/county-council/surrey,Surrey,http://id.esd.org.uk/service/1465,Council expenditure,13/01/2015,TRAINING PROPERTY,CPM TRAINING,450.00,TRAINING EXPENSES EXTERNAL GENERAL,BUSINESS SERVICES-NOT ELSEWHERE CLASSIFIED
30/04/2015,http://opendatacommunities.org/id/county-council/surrey,Surrey,http://id.esd.org.uk/service/1465,Council expenditure,13/01/2015,TRAINING PROPERTY,B I F M,232.00,TRAINING EXPENSES EXTERNAL GENERAL,"ASSOCIATIONS-CIVIC, SOCIAL, AND FRATERNAL"
30/04/2015,http://opendatacommunities.org/id/county-council/surrey,Surrey,http://id.esd.org.uk/service/1465,Council expenditure,13/01/2015,TRANSPORT,AMAZON EU,540.93,COMPUTER HARDWARE,DIRECT MARKETING-OTHER DIRECT MARKETERS/NOT ELSEW.
30/04/2015,http://opendatacommunities.org/id/county-council/surrey,Surrey,http://id.esd.org.uk/service/1465,Council expenditure,13/01/2015,TRANSPORT,AMAZON EU,540.93,COMPUTER HARDWARE,DIRECT MARKETING-OTHER DIRECT MARKETERS/NOT ELSEW.
30/04/2015,http://opendatacommunities.org/id/county-council/surrey,Surrey,http://id.esd.org.uk/service/1465,Council expenditure,13/01/2015,TRANSPORT,AMAZON EU,540.93,COMPUTER HARDWARE,DIRECT MARKETING-OTHER DIRECT MARKETERS/NOT ELSEW.
30/04/2015,http://opendatacommunities.org/id/county-council/surrey,Surrey,http://id.esd.org.uk/service/1465,Council expenditure,13/01/2015,TRANSPORT,AMAZON EU,540.93,COMPUTER HARDWARE,DIRECT MARKETING-OTHER DIRECT MARKETERS/NOT ELSEW.
30/04/2015,http://opendatacommunities.org/id/county-council/surrey,Surrey,http://id.esd.org.uk/service/1465,Council expenditure,13/01/2015,TRANSPORT,AMAZON  MKTPLCE EU-UK,73.30,COMPUTER CONSUMABLES,BOOK STORES
30/04/2015,http://opendatacommunities.org/id/county-council/surrey,Surrey,http://id.esd.org.uk/service/1465,Council expenditure,13/01/2015,TRANSPORT,AMAZON EU,67.78,COMPUTER HARDWARE,DIRECT MARKETING-OTHER DIRECT MARKETERS/NOT ELSEW.
30/04/2015,http://opendatacommunities.org/id/county-council/surrey,Surrey,http://id.esd.org.uk/service/1465,Council expenditure,13/01/2015,TRANSPORT,AMAZON  MKTPLCE EU-UK,42.53,COMPUTER HARDWARE,BOOK STORES
30/04/2015,http://opendatacommunities.org/id/county-council/surrey,Surrey,http://id.esd.org.uk/service/1465,Council expenditure,13/01/2015,TRANSPORT,1&1 INTERNET LIMITED,41.99,COMPUTER SOFTWARE,COMPUTER NETWORK/INFORMATION SERVICES
30/04/2015,http://opendatacommunities.org/id/county-council/surrey,Surrey,http://id.esd.org.uk/service/1465,Council expenditure,13/01/2015,TRANSPORT,AMAZON EU,24.82,COMPUTER CONSUMABLES,DIRECT MARKETING-OTHER DIRECT MARKETERS/NOT ELSEW.
30/04/2015,http://opendatacommunities.org/id/county-council/surrey,Surrey,http://id.esd.org.uk/service/1465,Council expenditure,13/01/2015,TRANSPORT,PURFLEET COMMERCIA,24.00,VEHICLE REPAIRS AND MAINTENANCE,AUTOMOTIVE SERVICE SHOPS
30/04/2015,http://opendatacommunities.org/id/county-council/surrey,Surrey,http://id.esd.org.uk/service/1465,Council expenditure,13/01/2015,TRANSPORT,AMAZON  MKTPLCE EU-UK,10.59,COMPUTER HARDWARE,BOOK STORES
30/04/2015,http://opendatacommunities.org/id/county-council/surrey,Surrey,http://id.esd.org.uk/service/1465,Council expenditure,13/01/2015,TRANSPORT,AMAZON  MKTPLCE EU-UK,9.96,COMPUTER HARDWARE,BOOK STORES
30/04/2015,http://opendatacommunities.org/id/county-council/surrey,Surrey,http://id.esd.org.uk/service/1465,Council expenditure,13/01/2015,TS SERVICE MANAGEMENT,AMAZON  MKTPLCE EU-UK,13.98,EQUIPMENT,BOOK STORES
30/04/2015,http://opendatacommunities.org/id/county-council/surrey,Surrey,http://id.esd.org.uk/service/1465,Council expenditure,13/01/2015,WALTON-ON-THAMES LIBRARY,AMAZON EU,117.50,EQUIPMENT,DIRECT MARKETING-OTHER DIRECT MARKETERS/NOT ELSEW.
30/04/2015,http://opendatacommunities.org/id/county-council/surrey,Surrey,http://id.esd.org.uk/service/1465,Council expenditure,13/01/2015,WORKPLACE ACTIVITY                      ,CURRYS ONLINE,59.79,ITEMS PURCHASED FOR RE-SALE,ELECTRONIC SALES
30/04/2015,http://opendatacommunities.org/id/county-council/surrey,Surrey,http://id.esd.org.uk/service/1465,Council expenditure,13/01/2015,WORKPLACE DELIVERY MANAGER,WWW.CIPS.ORG,170.34,SUBSCRIPTIONS,"ORGANIZATIONS, MEMBERSHIP-NOT ELSEWHERE CLASSIFIED"
30/04/2015,http://opendatacommunities.org/id/county-council/surrey,Surrey,http://id.esd.org.uk/service/1465,Council expenditure,14/01/2015,ARUNDEL,SPLIT - (98.79%),81.42,REFRESHMENT COSTS,"GROCERY STORES, SUPERMARKETS"
30/04/2015,http://opendatacommunities.org/id/county-council/surrey,Surrey,http://id.esd.org.uk/service/1465,Council expenditure,14/01/2015,ARUNDEL,SPLIT - (1.21%),1.00,REFRESHMENT COSTS,"GROCERY STORES, SUPERMARKETS"
30/04/2015,http://opendatacommunities.org/id/county-council/surrey,Surrey,http://id.esd.org.uk/service/1465,Council expenditure,14/01/2015,ASSESSMENT TEAM,AMAZON  MKTPLCE EU-UK,20.00,STATIONERY,BOOK STORES
30/04/2015,http://opendatacommunities.org/id/county-council/surrey,Surrey,http://id.esd.org.uk/service/1465,Council expenditure,14/01/2015,BROCKHURST RESIDENTIAL CARE,SCREWFIX DIRECT,59.98,EQUIPMENT,"BUILDING MATERIALS, LUMBER STORES"
30/04/2015,http://opendatacommunities.org/id/county-council/surrey,Surrey,http://id.esd.org.uk/service/1465,Council expenditure,14/01/2015,BROOMFIELD (LIBERTAS),GUILDFORD LOCK & SAFE,68.85,SECURITY ALARM MAINTENANCE,HARDWARE EQUIPMENT AND SUPPLIES
30/04/2015,http://opendatacommunities.org/id/county-council/surrey,Surrey,http://id.esd.org.uk/service/1465,Council expenditure,14/01/2015,BURBANK COMMUNITY HOME,SAINSBURYS TO YOU 0686,181.38,PURCHASE OF FOOD (RAW MATERIALS),"GROCERY STORES, SUPERMARKETS"
30/04/2015,http://opendatacommunities.org/id/county-council/surrey,Surrey,http://id.esd.org.uk/service/1465,Council expenditure,14/01/2015,BURBANK COMMUNITY HOME,ASDA STORES 4823,10.48,"CLOTHING, UNIFORM AND LAUNDRY","GROCERY STORES, SUPERMARKETS"
30/04/2015,http://opendatacommunities.org/id/county-council/surrey,Surrey,http://id.esd.org.uk/service/1465,Council expenditure,14/01/2015,BUSINESS UNIT,AMAZON  MKTPLCE EU-UK,66.49,COMPUTER CONSUMABLES,BOOK STORES
30/04/2015,http://opendatacommunities.org/id/county-council/surrey,Surrey,http://id.esd.org.uk/service/1465,Council expenditure,14/01/2015,CEO - PUBLIC HEALTH CAMPAIGNS           ,GOOGLE  ADWS2060179426,500.00,PUBLICITY,DIRECT MARKETING-CONTINUITY/SUBSCRIPTION MERCHANTS
30/04/2015,http://opendatacommunities.org/id/county-council/surrey,Surrey,http://id.esd.org.uk/service/1465,Council expenditure,14/01/2015,CEO - PUBLIC HEALTH CAMPAIGNS           ,FACEBOOK AV6RG7E9K2,47.44,PUBLICITY,ADVERTISING SERVICES
30/04/2015,http://opendatacommunities.org/id/county-council/surrey,Surrey,http://id.esd.org.uk/service/1465,Council expenditure,14/01/2015,CHEYNE WALK COMMUNITY HOME,SAINSBURYS TO YOU 0026,229.97,PURCHASE OF FOOD (RAW MATERIALS),"GROCERY STORES, SUPERMARKETS"
30/04/2015,http://opendatacommunities.org/id/county-council/surrey,Surrey,http://id.esd.org.uk/service/1465,Council expenditure,14/01/2015,COMMUNICATIONS TEAM,JESSOPS,339.00,EQUIPMENT,CAMERA AND PHOTOGRAPHIC SUPPLY STORES
30/04/2015,http://opendatacommunities.org/id/county-council/surrey,Surrey,http://id.esd.org.uk/service/1465,Council expenditure,14/01/2015,COMMUNICATIONS TEAM,AMAZON  MKTPLCE EU-UK,42.00,STATIONERY,BOOK STORES
30/04/2015,http://opendatacommunities.org/id/county-council/surrey,Surrey,http://id.esd.org.uk/service/1465,Council expenditure,14/01/2015,COMMUNICATIONS TEAM,AMAZON  MKTPLCE EU-UK,15.95,STATIONERY,BOOK STORES
30/04/2015,http://opendatacommunities.org/id/county-council/surrey,Surrey,http://id.esd.org.uk/service/1465,Council expenditure,14/01/2015,COMMUNICATIONS TEAM,PAYPAL  ENVATO MKPL EN,10.88,SUBSCRIPTIONS,MISCELLANEOUS AND SPECIALTY RETAIL STORES
30/04/2015,http://opendatacommunities.org/id/county-council/surrey,Surrey,http://id.esd.org.uk/service/1465,Council expenditure,14/01/2015,COUNTY HALL,TLC (SOUTHERN) LTD,115.30,DAY TO DAY MAINTENANCE,HOUSEHOLD APPLIANCE STORES
30/04/2015,http://opendatacommunities.org/id/county-council/surrey,Surrey,http://id.esd.org.uk/service/1465,Council expenditure,14/01/2015,COUNTY HALL,AMAZON EU,41.64,EQUIPMENT,DIRECT MARKETING-OTHER DIRECT MARKETERS/NOT ELSEW.
30/04/2015,http://opendatacommunities.org/id/county-council/surrey,Surrey,http://id.esd.org.uk/service/1465,Council expenditure,14/01/2015,COUNTY HALL,AMAZON  MKTPLCE EU-UK,11.90,DAY TO DAY MAINTENANCE,BOOK STORES
30/04/2015,http://opendatacommunities.org/id/county-council/surrey,Surrey,http://id.esd.org.uk/service/1465,Council expenditure,14/01/2015,COUNTYWIDE MANAGED PRINT SERVICE,GALTEC SOLUTIONS LTD,927.60,COMPUTER CONSUMABLES,COMPUTER SOFTWARE STORES
30/04/2015,http://opendatacommunities.org/id/county-council/surrey,Surrey,http://id.esd.org.uk/service/1465,Council expenditure,14/01/2015,COUNTYWIDE MANAGED PRINT SERVICE,AMAZON  MKTPLCE EU-UK,698.94,COMPUTER HARDWARE,BOOK STORES
30/04/2015,http://opendatacommunities.org/id/county-council/surrey,Surrey,http://id.esd.org.uk/service/1465,Council expenditure,14/01/2015,DOWNLANDS COUNTRYSIDE PROJECT,WRAYSBURY TYRES,60.00,VEHICLE REPAIRS AND MAINTENANCE,AUTOMOTIVE TIRE STORES
30/04/2015,http://opendatacommunities.org/id/county-council/surrey,Surrey,http://id.esd.org.uk/service/1465,Council expenditure,14/01/2015,EAST SUSSEX CONTRACT - MGMT & ADMIN,TESCO STORES 3330,8.50,REFRESHMENT COSTS,"GROCERY STORES, SUPERMARKETS"
30/04/2015,http://opendatacommunities.org/id/county-council/surrey,Surrey,http://id.esd.org.uk/service/1465,Council expenditure,14/01/2015,EDUC CAT SOUTH EAST DISTRICT G OVERHEADS,AO RETAIL LIMITED,258.98,EQUIPMENT,HOUSEHOLD APPLIANCE STORES
30/04/2015,http://opendatacommunities.org/id/county-council/surrey,Surrey,http://id.esd.org.uk/service/1465,Council expenditure,14/01/2015,FAIRCROFT COMMUNITY HOME,SAINSBURYS 0687,50.90,PURCHASE OF FOOD (RAW MATERIALS),"GROCERY STORES, SUPERMARKETS"
30/04/2015,http://opendatacommunities.org/id/county-council/surrey,Surrey,http://id.esd.org.uk/service/1465,Council expenditure,14/01/2015,FOUNDATION STAGE WORK,AMAZON  MKTPLCE EU-UK,27.93,EQUIPMENT,BOOK STORES
30/04/2015,http://opendatacommunities.org/id/county-council/surrey,Surrey,http://id.esd.org.uk/service/1465,Council expenditure,14/01/2015,FOUNDATION STAGE WORK,AMAZON  MKTPLCE EU-UK,24.70,EQUIPMENT,BOOK STORES
30/04/2015,http://opendatacommunities.org/id/county-council/surrey,Surrey,http://id.esd.org.uk/service/1465,Council expenditure,14/01/2015,FOUNDATION STAGE WORK,AMAZON EU,10.00,EQUIPMENT,DIRECT MARKETING-OTHER DIRECT MARKETERS/NOT ELSEW.
30/04/2015,http://opendatacommunities.org/id/county-council/surrey,Surrey,http://id.esd.org.uk/service/1465,Council expenditure,14/01/2015,HILLSIDE,SPLIT - FOOD/EQUIPMENT FOR HILLSIDE (69.26%),73.21,PURCHASE OF FOOD (RAW MATERIALS),"GROCERY STORES, SUPERMARKETS"
30/04/2015,http://opendatacommunities.org/id/county-council/surrey,Surrey,http://id.esd.org.uk/service/1465,Council expenditure,14/01/2015,HILLSIDE,SPLIT - FOOD/EQUIPMENT FOR HILLSIDE (30.74%),32.50,PURCHASE OF FOOD (RAW MATERIALS),"GROCERY STORES, SUPERMARKETS"
30/04/2015,http://opendatacommunities.org/id/county-council/surrey,Surrey,http://id.esd.org.uk/service/1465,Council expenditure,14/01/2015,HOPE SERVICE - EAST,SAINSBURYS TO YOU 0683,69.40,PURCHASE OF FOOD (RAW MATERIALS),"GROCERY STORES, SUPERMARKETS"
30/04/2015,http://opendatacommunities.org/id/county-council/surrey,Surrey,http://id.esd.org.uk/service/1465,Council expenditure,14/01/2015,HOPE SERVICE - EAST,THE MEDICINE GARDEN,10.99,EQUIPMENT,LAWN AND GARDEN SUPPLY STORES
30/04/2015,http://opendatacommunities.org/id/county-council/surrey,Surrey,http://id.esd.org.uk/service/1465,Council expenditure,14/01/2015,HOPE SERVICE - WEST,WWW.BAKERROSS.CO.UK,38.95,CURRICULUM EQUIPMENT AND FURNITURE,"ARTIST SUPPLY STORES, CRAFT SHOPS"
30/04/2015,http://opendatacommunities.org/id/county-council/surrey,Surrey,http://id.esd.org.uk/service/1465,Council expenditure,14/01/2015,HOPE SERVICE - WEST,SAINSBURYS SACAT(4409),3.70,PURCHASE OF FOOD (RAW MATERIALS),"GROCERY STORES, SUPERMARKETS"
30/04/2015,http://opendatacommunities.org/id/county-council/surrey,Surrey,http://id.esd.org.uk/service/1465,Council expenditure,14/01/2015,IMT TECHNICAL DELIVERY,AMAZON  MKTPLCE EU-UK,24.74,COMPUTER HARDWARE,BOOK STORES
30/04/2015,http://opendatacommunities.org/id/county-council/surrey,Surrey,http://id.esd.org.uk/service/1465,Council expenditure,14/01/2015,IMT TECHNICAL DELIVERY,AMAZON  MKTPLCE EU-UK,8.99,COMPUTER HARDWARE,BOOK STORES
30/04/2015,http://opendatacommunities.org/id/county-council/surrey,Surrey,http://id.esd.org.uk/service/1465,Council expenditure,14/01/2015,IMT TECHNICAL DELIVERY,AMAZON  MKTPLCE EU-UK,4.95,COMPUTER HARDWARE,BOOK STORES
30/04/2015,http://opendatacommunities.org/id/county-council/surrey,Surrey,http://id.esd.org.uk/service/1465,Council expenditure,14/01/2015,IMT TECHNICAL DELIVERY,AMAZON  MKTPLCE EU-UK,3.99,COMPUTER HARDWARE,BOOK STORES
30/04/2015,http://opendatacommunities.org/id/county-council/surrey,Surrey,http://id.esd.org.uk/service/1465,Council expenditure,14/01/2015,LEAVING CARE PACKAGES,TRAVELODGE WEBSITE,197.00,3RD PARTY PAYMENTS PRIVATE INDIV,TRAVELODGE
30/04/2015,http://opendatacommunities.org/id/county-council/surrey,Surrey,http://id.esd.org.uk/service/1465,Council expenditure,14/01/2015,LOCAL CTTEES-YOUTH FRAMEWORK CONTRACT,AMAZON  MKTPLCE EU-UK,53.90,STATIONERY,BOOK STORES
30/04/2015,http://opendatacommunities.org/id/county-council/surrey,Surrey,http://id.esd.org.uk/service/1465,Council expenditure,14/01/2015,LOCAL DELIVERY GROUP,THE SAFETY SUPPLY,62.22,"CLOTHING, UNIFORM AND LAUNDRY",ACCESSORY AND APPAREL STORES-MISCELLANEOUS
30/04/2015,http://opendatacommunities.org/id/county-council/surrey,Surrey,http://id.esd.org.uk/service/1465,Council expenditure,14/01/2015,NE CARE - CP & COURT LAC,TRAVELODGE WEBSITE,566.85,CHILDREN ACT SEC 17 PAYMENTS,TRAVELODGE
30/04/2015,http://opendatacommunities.org/id/county-council/surrey,Surrey,http://id.esd.org.uk/service/1465,Council expenditure,14/01/2015,NE CARE - LAC,SHALIMAR HOTEL,592.00,CHILDREN ACT SEC 17 PAYMENTS,"LODGING-HOTELS,MOTELS,RESORTS-NOT CLASSIFIED"
30/04/2015,http://opendatacommunities.org/id/county-council/surrey,Surrey,http://id.esd.org.uk/service/1465,Council expenditure,14/01/2015,NE CARE - LAC,SHALIMAR HOTEL,550.00,CHILDREN ACT SEC 17 PAYMENTS,"LODGING-HOTELS,MOTELS,RESORTS-NOT CLASSIFIED"
30/04/2015,http://opendatacommunities.org/id/county-council/surrey,Surrey,http://id.esd.org.uk/service/1465,Council expenditure,14/01/2015,NE CARE - LAC,SHALIMAR HOTEL,500.00,CHILDREN ACT SEC 17 PAYMENTS,"LODGING-HOTELS,MOTELS,RESORTS-NOT CLASSIFIED"
30/04/2015,http://opendatacommunities.org/id/county-council/surrey,Surrey,http://id.esd.org.uk/service/1465,Council expenditure,14/01/2015,NE CARE - LAC,SHALIMAR HOTEL,500.00,CHILDREN ACT SEC 17 PAYMENTS,"LODGING-HOTELS,MOTELS,RESORTS-NOT CLASSIFIED"
30/04/2015,http://opendatacommunities.org/id/county-council/surrey,Surrey,http://id.esd.org.uk/service/1465,Council expenditure,14/01/2015,NE TEACHERS,AMAZON  MKTPLCE EU-UK,19.30,BOOKS,BOOK STORES
30/04/2015,http://opendatacommunities.org/id/county-council/surrey,Surrey,http://id.esd.org.uk/service/1465,Council expenditure,14/01/2015,PE/CDT MAINTENANCE OVERHEADS,WWW.EXPERTFITNESSUK.CO,67.50,EQUIPMENT,SPORTING GOODS STORES
30/04/2015,http://opendatacommunities.org/id/county-council/surrey,Surrey,http://id.esd.org.uk/service/1465,Council expenditure,14/01/2015,POLICY & STRATEGY PROJECTS,ISTOCK  INTERNATIONAL,24.00,SUBSCRIPTIONS,ART DEALERS AND GALLERIES
30/04/2015,http://opendatacommunities.org/id/county-council/surrey,Surrey,http://id.esd.org.uk/service/1465,Council expenditure,14/01/2015,PROPERTY OPERATIONS TEAM,TOOLSTATION LTD,4.41,PURCHASE OF BUILDING MATERIALS,HARDWARE STORES
30/04/2015,http://opendatacommunities.org/id/county-council/surrey,Surrey,http://id.esd.org.uk/service/1465,Council expenditure,14/01/2015,PROPERTY OPERATIONS TEAM,TOOLSTATION LTD,2.94,PURCHASE OF BUILDING MATERIALS,HARDWARE STORES
30/04/2015,http://opendatacommunities.org/id/county-council/surrey,Surrey,http://id.esd.org.uk/service/1465,Council expenditure,14/01/2015,PSSS VISUALLY IMPAIRED,AMAZON EU,112.80,EQUIPMENT,DIRECT MARKETING-OTHER DIRECT MARKETERS/NOT ELSEW.
30/04/2015,http://opendatacommunities.org/id/county-council/surrey,Surrey,http://id.esd.org.uk/service/1465,Council expenditure,14/01/2015,PSSS VISUALLY IMPAIRED,AMAZON  MKTPLCE EU-UK,28.98,EQUIPMENT,BOOK STORES
30/04/2015,http://opendatacommunities.org/id/county-council/surrey,Surrey,http://id.esd.org.uk/service/1465,Council expenditure,14/01/2015,PSSS VISUALLY IMPAIRED,AMAZON  MKTPLCE EU-UK,23.88,EQUIPMENT,BOOK STORES
30/04/2015,http://opendatacommunities.org/id/county-council/surrey,Surrey,http://id.esd.org.uk/service/1465,Council expenditure,14/01/2015,PSSS VISUALLY IMPAIRED,AMAZON  MKTPLCE EU-UK,17.15,EQUIPMENT,BOOK STORES
30/04/2015,http://opendatacommunities.org/id/county-council/surrey,Surrey,http://id.esd.org.uk/service/1465,Council expenditure,14/01/2015,QUADRANT COURT WOKING,WICKES BUILDING,59.96,EQUIPMENT,"BUILDING MATERIALS, LUMBER STORES"
30/04/2015,http://opendatacommunities.org/id/county-council/surrey,Surrey,http://id.esd.org.uk/service/1465,Council expenditure,14/01/2015,RBDM - GENERAL,CHARFLEETBI,-179.72,STATIONERY,MISCELLANEOUS PUBLISHING AND PRINTING
30/04/2015,http://opendatacommunities.org/id/county-council/surrey,Surrey,http://id.esd.org.uk/service/1465,Council expenditure,14/01/2015,SE EDUCATION PSYCHOLOGISTS,AMAZON  MKTPLCE EU-UK,12.80,EDUC VISITS/HOLS/CAMPS/TOYS,BOOK STORES
30/04/2015,http://opendatacommunities.org/id/county-council/surrey,Surrey,http://id.esd.org.uk/service/1465,Council expenditure,14/01/2015,SURREY HILLS AONB,ROYAL TOWN PLANNING,290.00,SUBSCRIPTIONS,"ORGANIZATIONS, CHARITABLE AND SOCIAL SERVICES"
30/04/2015,http://opendatacommunities.org/id/county-council/surrey,Surrey,http://id.esd.org.uk/service/1465,Council expenditure,14/01/2015,SW LOOKED AFTER TEAM,TRAVELODGE WEBSITE,45.00,VENUE COSTS (INCLUDING HIRE OF ROOMS),TRAVELODGE
30/04/2015,http://opendatacommunities.org/id/county-council/surrey,Surrey,http://id.esd.org.uk/service/1465,Council expenditure,14/01/2015,SYP TANDRIDGE I-BUS,AMF BOWLING,3.99,REFRESHMENT COSTS,"CLUBS-CNTRY,MBRSHIP(ATHLET,REC,SPRTS,PRIVATE GOLF"
30/04/2015,http://opendatacommunities.org/id/county-council/surrey,Surrey,http://id.esd.org.uk/service/1465,Council expenditure,14/01/2015,TARGETED INTERVENTION,FREEDOM LEISURE,25.50,EDUC VISITS/HOLS/CAMPS/TOYS,GOVERNMENT SERVICES-NOT ELSEWHERE CLASSIFIED
30/04/2015,http://opendatacommunities.org/id/county-council/surrey,Surrey,http://id.esd.org.uk/service/1465,Council expenditure,14/01/2015,TARGETED INTERVENTION,TENPIN,20.25,EDUC VISITS/HOLS/CAMPS/TOYS,"CLUBS-CNTRY,MBRSHIP(ATHLET,REC,SPRTS,PRIVATE GOLF"
30/04/2015,http://opendatacommunities.org/id/county-council/surrey,Surrey,http://id.esd.org.uk/service/1465,Council expenditure,14/01/2015,TARGETED INTERVENTION,WAITROSE 181,8.48,EDUC VISITS/HOLS/CAMPS/TOYS,"GROCERY STORES, SUPERMARKETS"
30/04/2015,http://opendatacommunities.org/id/county-council/surrey,Surrey,http://id.esd.org.uk/service/1465,Council expenditure,14/01/2015,TARGETED INTERVENTION,THE HUB CAFE,5.40,EDUC VISITS/HOLS/CAMPS/TOYS,"EATING PLACES, RESTAURANTS"
30/04/2015,http://opendatacommunities.org/id/county-council/surrey,Surrey,http://id.esd.org.uk/service/1465,Council expenditure,14/01/2015,TARGETED INTERVENTION,TENPIN,4.49,EDUC VISITS/HOLS/CAMPS/TOYS,"CLUBS-CNTRY,MBRSHIP(ATHLET,REC,SPRTS,PRIVATE GOLF"
30/04/2015,http://opendatacommunities.org/id/county-council/surrey,Surrey,http://id.esd.org.uk/service/1465,Council expenditure,14/01/2015,TARGETED INTERVENTION,GUILDFORD SPECTRUM,3.95,EDUC VISITS/HOLS/CAMPS/TOYS,"EATING PLACES, RESTAURANTS"
30/04/2015,http://opendatacommunities.org/id/county-council/surrey,Surrey,http://id.esd.org.uk/service/1465,Council expenditure,14/01/2015,TRAINING AND DEVELOPMENT,WILD PHEASANT HOTEL &,910.00,TRAINING EXPENSES EXTERNAL GENERAL,"LODGING-HOTELS,MOTELS,RESORTS-NOT CLASSIFIED"
30/04/2015,http://opendatacommunities.org/id/county-council/surrey,Surrey,http://id.esd.org.uk/service/1465,Council expenditure,14/01/2015,TRAINING AND DEVELOPMENT,TRAVELODGE WEBSITE,713.80,TRAINING EXPENSES EXTERNAL GENERAL,TRAVELODGE
30/04/2015,http://opendatacommunities.org/id/county-council/surrey,Surrey,http://id.esd.org.uk/service/1465,Council expenditure,14/01/2015,TRAINING AND DEVELOPMENT,TRAVELODGE WEBSITE,168.95,TRAINING EXPENSES EXTERNAL GENERAL,TRAVELODGE
30/04/2015,http://opendatacommunities.org/id/county-council/surrey,Surrey,http://id.esd.org.uk/service/1465,Council expenditure,14/01/2015,TRAINING AND DEVELOPMENT,PREMIER INN44015410,-139.50,SUBSISTENCE AND CONFERENCE EXPENSES,PREMIER INN
30/04/2015,http://opendatacommunities.org/id/county-council/surrey,Surrey,http://id.esd.org.uk/service/1465,Council expenditure,14/01/2015,TRAINING AND DEVELOPMENT STRATEGIC RISK,PETA LTD,481.20,TRAINING EXPENSES EXTERNAL GENERAL,SCHOOLS & EDUCATIONAL SVC-NOT ELSEWHERE CLASSIFIED
30/04/2015,http://opendatacommunities.org/id/county-council/surrey,Surrey,http://id.esd.org.uk/service/1465,Council expenditure,14/01/2015,TRANSPORT,AMAZON  MKTPLCE EU-UK,209.99,COMPUTER HARDWARE,BOOK STORES
30/04/2015,http://opendatacommunities.org/id/county-council/surrey,Surrey,http://id.esd.org.uk/service/1465,Council expenditure,14/01/2015,TRANSPORT,AMAZON  MKTPLCE EU-UK,14.95,DAY TO DAY MAINTENANCE,BOOK STORES
30/04/2015,http://opendatacommunities.org/id/county-council/surrey,Surrey,http://id.esd.org.uk/service/1465,Council expenditure,14/01/2015,TS SERVICE MANAGEMENT,TRADING STANDARDS INST,69.60,SUBSCRIPTIONS,DIRECT MARKETING-COMBINATION CATALOG/RETAIL MERCH.
30/04/2015,http://opendatacommunities.org/id/county-council/surrey,Surrey,http://id.esd.org.uk/service/1465,Council expenditure,14/01/2015,VIRTUAL SCHOOL FOR LAC PUPIL PREMIUM,ABODE MANCHESTER,190.00,TRAINING EXPENSES EXTERNAL GENERAL,"LODGING-HOTELS,MOTELS,RESORTS-NOT CLASSIFIED"
30/04/2015,http://opendatacommunities.org/id/county-council/surrey,Surrey,http://id.esd.org.uk/service/1465,Council expenditure,14/01/2015,WOODLANDS COMMUNITY HOME,SAINSBURYS 0686,151.78,PURCHASE OF FOOD (RAW MATERIALS),"GROCERY STORES, SUPERMARKETS"
30/04/2015,http://opendatacommunities.org/id/county-council/surrey,Surrey,http://id.esd.org.uk/service/1465,Council expenditure,14/01/2015,YSS YOUTH CENTRE IMPROVEMENTS,CURRYS ONLINE,99.99,EQUIPMENT,ELECTRONIC SALES
30/04/2015,http://opendatacommunities.org/id/county-council/surrey,Surrey,http://id.esd.org.uk/service/1465,Council expenditure,15/01/2015,ADOPTION CARE,HOLIDAY INN ROCHES,928.00,CHILDREN ACT SEC 17 PAYMENTS,"LODGING-HOTELS,MOTELS,RESORTS-NOT CLASSIFIED"
30/04/2015,http://opendatacommunities.org/id/county-council/surrey,Surrey,http://id.esd.org.uk/service/1465,Council expenditure,15/01/2015,ADOPTION CARE,HOLIDAY INN ROCHES,90.00,CHILDREN ACT SEC 17 PAYMENTS,"LODGING-HOTELS,MOTELS,RESORTS-NOT CLASSIFIED"
30/04/2015,http://opendatacommunities.org/id/county-council/surrey,Surrey,http://id.esd.org.uk/service/1465,Council expenditure,15/01/2015,ARUNDEL,ASDA SUPERSTORE,92.79,CLEANING MATERIALS,"GROCERY STORES, SUPERMARKETS"
30/04/2015,http://opendatacommunities.org/id/county-council/surrey,Surrey,http://id.esd.org.uk/service/1465,Council expenditure,15/01/2015,ARUNDEL,SPLIT - (95.78%),45.38,REFRESHMENT COSTS,"GROCERY STORES, SUPERMARKETS"
30/04/2015,http://opendatacommunities.org/id/county-council/surrey,Surrey,http://id.esd.org.uk/service/1465,Council expenditure,15/01/2015,ARUNDEL,ASDA SUPERSTORE,5.03,REFRESHMENT COSTS,"GROCERY STORES, SUPERMARKETS"
30/04/2015,http://opendatacommunities.org/id/county-council/surrey,Surrey,http://id.esd.org.uk/service/1465,Council expenditure,15/01/2015,ARUNDEL,SPLIT - (4.22%),2.00,REFRESHMENT COSTS,"GROCERY STORES, SUPERMARKETS"
30/04/2015,http://opendatacommunities.org/id/county-council/surrey,Surrey,http://id.esd.org.uk/service/1465,Council expenditure,15/01/2015,BRAMLEY LIBRARY,AMAZON  MKTPLCE EU-UK,62.79,EQUIPMENT,BOOK STORES
30/04/2015,http://opendatacommunities.org/id/county-council/surrey,Surrey,http://id.esd.org.uk/service/1465,Council expenditure,15/01/2015,BURBANK COMMUNITY HOME,LONDIS,6.00,PURCHASE OF FOOD (RAW MATERIALS),"GROCERY STORES, SUPERMARKETS"
30/04/2015,http://opendatacommunities.org/id/county-council/surrey,Surrey,http://id.esd.org.uk/service/1465,Council expenditure,15/01/2015,CEO - PUBLIC HEALTH CAMPAIGNS           ,FACEBOOK 4Y8ED76AK2,49.58,PUBLICITY,ADVERTISING SERVICES
30/04/2015,http://opendatacommunities.org/id/county-council/surrey,Surrey,http://id.esd.org.uk/service/1465,Council expenditure,15/01/2015,CEO - PUBLIC HEALTH CAMPAIGNS           ,FACEBOOK 7A52J7SZR2,9.90,PUBLICITY,ADVERTISING SERVICES
30/04/2015,http://opendatacommunities.org/id/county-council/surrey,Surrey,http://id.esd.org.uk/service/1465,Council expenditure,15/01/2015,CHIEF PROPERTY OFFICER,AMAZON  MKTPLCE EU-UK,15.98,TELECOMMUNICATION CHARGES,BOOK STORES
30/04/2015,http://opendatacommunities.org/id/county-council/surrey,Surrey,http://id.esd.org.uk/service/1465,Council expenditure,15/01/2015,CHILD CARE SUPPORT TEAM (CCST),LB CROYDON,197.61,INDEPENDENT LIVING PLACEMENTS,GOVERNMENT SERVICES-NOT ELSEWHERE CLASSIFIED
30/04/2015,http://opendatacommunities.org/id/county-council/surrey,Surrey,http://id.esd.org.uk/service/1465,Council expenditure,15/01/2015,COMMISSIONING AND DEVELOPMENT TEAM,WP-HEMMING GROUP L,140.00,NEWSPAPER AND PERIODICALS,BUSINESS SERVICES-NOT ELSEWHERE CLASSIFIED
30/04/2015,http://opendatacommunities.org/id/county-council/surrey,Surrey,http://id.esd.org.uk/service/1465,Council expenditure,15/01/2015,COMMISSIONING AND DEVELOPMENT TEAM,TSL EDUCATION,49.00,NEWSPAPER AND PERIODICALS,"ORGANIZATIONS, MEMBERSHIP-NOT ELSEWHERE CLASSIFIED"
30/04/2015,http://opendatacommunities.org/id/county-council/surrey,Surrey,http://id.esd.org.uk/service/1465,Council expenditure,15/01/2015,COMMUNICATIONS TEAM,GN&M LTD,47.62,SUBSCRIPTIONS,MISCELLANEOUS PUBLISHING AND PRINTING
30/04/2015,http://opendatacommunities.org/id/county-council/surrey,Surrey,http://id.esd.org.uk/service/1465,Council expenditure,15/01/2015,COMMUNICATIONS TEAM,ITUNES.COM/BILL,3.47,SUBSCRIPTIONS,RECORD SHOPS
30/04/2015,http://opendatacommunities.org/id/county-council/surrey,Surrey,http://id.esd.org.uk/service/1465,Council expenditure,15/01/2015,COUNTY HALL,HITCHED LTD,948.00,TRAINING EXPENSES EXTERNAL GENERAL,OTHER SERVICES (NOT ELSEWHERE CLASSIFIED)
30/04/2015,http://opendatacommunities.org/id/county-council/surrey,Surrey,http://id.esd.org.uk/service/1465,Council expenditure,15/01/2015,COUNTY HALL,CLAS OHLSON,19.96,EQUIPMENT,HOUSEHOLD APPLIANCE STORES
30/04/2015,http://opendatacommunities.org/id/county-council/surrey,Surrey,http://id.esd.org.uk/service/1465,Council expenditure,15/01/2015,COUNTYWIDE MANAGED PRINT SERVICE,ALL RIGHT NOW LTD,"1,007.98",EQUIPMENT,STATIONERY/OFFICE SUPPLIES/PRINTING & WRITING PAP.
30/04/2015,http://opendatacommunities.org/id/county-council/surrey,Surrey,http://id.esd.org.uk/service/1465,Council expenditure,15/01/2015,COUNTYWIDE MANAGED PRINT SERVICE,AMAZON EU,439.25,COMPUTER CONSUMABLES,DIRECT MARKETING-OTHER DIRECT MARKETERS/NOT ELSEW.
30/04/2015,http://opendatacommunities.org/id/county-council/surrey,Surrey,http://id.esd.org.uk/service/1465,Council expenditure,15/01/2015,COUNTYWIDE MANAGED PRINT SERVICE,ALL RIGHT NOW LTD,389.76,PRINTING,STATIONERY/OFFICE SUPPLIES/PRINTING & WRITING PAP.
30/04/2015,http://opendatacommunities.org/id/county-council/surrey,Surrey,http://id.esd.org.uk/service/1465,Council expenditure,15/01/2015,COUNTYWIDE MANAGED PRINT SERVICE,GALTEC SOLUTIONS LTD,105.60,COMPUTER CONSUMABLES,COMPUTER SOFTWARE STORES
30/04/2015,http://opendatacommunities.org/id/county-council/surrey,Surrey,http://id.esd.org.uk/service/1465,Council expenditure,15/01/2015,DOWNLANDS COUNTRYSIDE PROJECT,WWW.DVLA.GOV.UK,227.50,VEHICLE RUNNING COSTS,GOVERNMENT SERVICES-NOT ELSEWHERE CLASSIFIED
30/04/2015,http://opendatacommunities.org/id/county-council/surrey,Surrey,http://id.esd.org.uk/service/1465,Council expenditure,15/01/2015,DOWNLANDS COUNTRYSIDE PROJECT,WRAYSBURY TYRES,127.80,VEHICLE REPAIRS AND MAINTENANCE,AUTOMOTIVE TIRE STORES
30/04/2015,http://opendatacommunities.org/id/county-council/surrey,Surrey,http://id.esd.org.uk/service/1465,Council expenditure,15/01/2015,FAIRCROFT COMMUNITY HOME,THE RANGE MAIDSTONE,59.22,EQUIPMENT,MISCELLANEOUS GENERAL MERCHANDISE
30/04/2015,http://opendatacommunities.org/id/county-council/surrey,Surrey,http://id.esd.org.uk/service/1465,Council expenditure,15/01/2015,FAIRCROFT COMMUNITY HOME,SAINSBURYS 0687,33.68,PURCHASE OF FOOD (RAW MATERIALS),"GROCERY STORES, SUPERMARKETS"
30/04/2015,http://opendatacommunities.org/id/county-council/surrey,Surrey,http://id.esd.org.uk/service/1465,Council expenditure,15/01/2015,FAIRCROFT COMMUNITY HOME,WILKO RETAIL LIMIT,11.25,EQUIPMENT,HOUSEHOLD APPLIANCE STORES
30/04/2015,http://opendatacommunities.org/id/county-council/surrey,Surrey,http://id.esd.org.uk/service/1465,Council expenditure,15/01/2015,FINANCE CHANGE AND PERFORMANCE GROUP,AMAZON EU,19.83,PHOTOCOPIER MACHINES AND MATERIALS,DIRECT MARKETING-OTHER DIRECT MARKETERS/NOT ELSEW.
30/04/2015,http://opendatacommunities.org/id/county-council/surrey,Surrey,http://id.esd.org.uk/service/1465,Council expenditure,15/01/2015,FINANCE CHANGE AND PERFORMANCE GROUP,AMAZON EU,19.83,PHOTOCOPIER MACHINES AND MATERIALS,DIRECT MARKETING-OTHER DIRECT MARKETERS/NOT ELSEW.
30/04/2015,http://opendatacommunities.org/id/county-council/surrey,Surrey,http://id.esd.org.uk/service/1465,Council expenditure,15/01/2015,FINANCE CHANGE AND PERFORMANCE GROUP,AMAZON EU,19.83,PHOTOCOPIER MACHINES AND MATERIALS,DIRECT MARKETING-OTHER DIRECT MARKETERS/NOT ELSEW.
30/04/2015,http://opendatacommunities.org/id/county-council/surrey,Surrey,http://id.esd.org.uk/service/1465,Council expenditure,15/01/2015,FINANCE CHANGE AND PERFORMANCE GROUP,AMAZON EU,19.83,PHOTOCOPIER MACHINES AND MATERIALS,DIRECT MARKETING-OTHER DIRECT MARKETERS/NOT ELSEW.
30/04/2015,http://opendatacommunities.org/id/county-council/surrey,Surrey,http://id.esd.org.uk/service/1465,Council expenditure,15/01/2015,FINANCE CHANGE AND PERFORMANCE GROUP,AMAZON EU,19.83,PHOTOCOPIER MACHINES AND MATERIALS,DIRECT MARKETING-OTHER DIRECT MARKETERS/NOT ELSEW.
30/04/2015,http://opendatacommunities.org/id/county-council/surrey,Surrey,http://id.esd.org.uk/service/1465,Council expenditure,15/01/2015,FOSTERING SERVICE CENTRAL COSTS,ELC-INTERNET,305.52,OTHER COMMUNITY CARE VOL,DEPARTMENT STORES
30/04/2015,http://opendatacommunities.org/id/county-council/surrey,Surrey,http://id.esd.org.uk/service/1465,Council expenditure,15/01/2015,HEAD OF CHILDREN'S SERVICE,SURVEYMONKEY.COM,299.00,SUBSCRIPTIONS,COMPUTER NETWORK/INFORMATION SERVICES
30/04/2015,http://opendatacommunities.org/id/county-council/surrey,Surrey,http://id.esd.org.uk/service/1465,Council expenditure,15/01/2015,HERITAGE PUBLIC SERVICE,TESCO STORE 3220,9.70,REFRESHMENT COSTS,"GROCERY STORES, SUPERMARKETS"
30/04/2015,http://opendatacommunities.org/id/county-council/surrey,Surrey,http://id.esd.org.uk/service/1465,Council expenditure,15/01/2015,HILLSIDE,SAINSBURYS 0675,66.00,PURCHASE OF FOOD (RAW MATERIALS),"GROCERY STORES, SUPERMARKETS"
30/04/2015,http://opendatacommunities.org/id/county-council/surrey,Surrey,http://id.esd.org.uk/service/1465,Council expenditure,15/01/2015,IMPROVING OUTCOMES - EARLY SUPPORT,AMAZON EU,12.58,BOOKS,DIRECT MARKETING-OTHER DIRECT MARKETERS/NOT ELSEW.
30/04/2015,http://opendatacommunities.org/id/county-council/surrey,Surrey,http://id.esd.org.uk/service/1465,Council expenditure,15/01/2015,ISPSB - ADAPTATIONS & IMPROVEMENTS,AMAZON EU,22.99,EQUIPMENT,DIRECT MARKETING-OTHER DIRECT MARKETERS/NOT ELSEW.
30/04/2015,http://opendatacommunities.org/id/county-council/surrey,Surrey,http://id.esd.org.uk/service/1465,Council expenditure,15/01/2015,KARIBU COMMUNITY HOME,PEACOCK STORES,82.00,"CLOTHING, UNIFORM AND LAUNDRY",VARIETY STORES
30/04/2015,http://opendatacommunities.org/id/county-council/surrey,Surrey,http://id.esd.org.uk/service/1465,Council expenditure,15/01/2015,LEAVING CARE PACKAGES,TRAVELODGE WEBSITE,230.60,3RD PARTY PAYMENTS PRIVATE INDIV,TRAVELODGE
30/04/2015,http://opendatacommunities.org/id/county-council/surrey,Surrey,http://id.esd.org.uk/service/1465,Council expenditure,15/01/2015,LEAVING CARE PACKAGES,THE GRANGE HOTEL,224.75,3RD PARTY PAYMENTS PRIVATE INDIV,"LODGING-HOTELS,MOTELS,RESORTS-NOT CLASSIFIED"
30/04/2015,http://opendatacommunities.org/id/county-council/surrey,Surrey,http://id.esd.org.uk/service/1465,Council expenditure,15/01/2015,LEAVING CARE PACKAGES,TRAVELODGE WEBSITE,168.95,3RD PARTY PAYMENTS PRIVATE INDIV,TRAVELODGE
30/04/2015,http://opendatacommunities.org/id/county-council/surrey,Surrey,http://id.esd.org.uk/service/1465,Council expenditure,15/01/2015,LIBERTAS COMMUNITY HOME,LEBARA,20.00,3RD PARTY PAYMENTS PRIVATE INDIV,TELECOM INCL PREPAID/RECURRING PHONE SVCS
30/04/2015,http://opendatacommunities.org/id/county-council/surrey,Surrey,http://id.esd.org.uk/service/1465,Council expenditure,15/01/2015,LIBERTAS COMMUNITY HOME,SPLIT - PROVISIONS AND KMC TOILETRIES (58.64%),14.25,EQUIPMENT,"GROCERY STORES, SUPERMARKETS"
30/04/2015,http://opendatacommunities.org/id/county-council/surrey,Surrey,http://id.esd.org.uk/service/1465,Council expenditure,15/01/2015,LIBERTAS COMMUNITY HOME,ROBERT DYAS HOLDNG LTD,12.78,EQUIPMENT,HARDWARE STORES
30/04/2015,http://opendatacommunities.org/id/county-council/surrey,Surrey,http://id.esd.org.uk/service/1465,Council expenditure,15/01/2015,LIBERTAS COMMUNITY HOME,SPLIT - PROVISIONS AND KMC TOILETRIES (41.36%),10.05,PURCHASE OF FOOD (RAW MATERIALS),"GROCERY STORES, SUPERMARKETS"
30/04/2015,http://opendatacommunities.org/id/county-council/surrey,Surrey,http://id.esd.org.uk/service/1465,Council expenditure,15/01/2015,LOCAL DELIVERY GROUP,AMAZON  MKTPLCE EU-UK,2.02,EQUIPMENT,BOOK STORES
30/04/2015,http://opendatacommunities.org/id/county-council/surrey,Surrey,http://id.esd.org.uk/service/1465,Council expenditure,15/01/2015,LOWER MOLE COUNTRYSIDE PROJECT,WWW.LAWSONSHOP.CO.UK,32.00,EQUIPMENT,HOME SUPPLY WAREHOUSE STORES
30/04/2015,http://opendatacommunities.org/id/county-council/surrey,Surrey,http://id.esd.org.uk/service/1465,Council expenditure,15/01/2015,MALLOW CRESCENT,SPLIT - ON LINE GROCERY SHOPPING (88.58%),116.79,PURCHASE OF FOOD (RAW MATERIALS),"GROCERY STORES, SUPERMARKETS"
30/04/2015,http://opendatacommunities.org/id/county-council/surrey,Surrey,http://id.esd.org.uk/service/1465,Council expenditure,15/01/2015,MALLOW CRESCENT,SPLIT - ON LINE GROCERY SHOPPING (90.49%),93.73,PURCHASE OF FOOD (RAW MATERIALS),"GROCERY STORES, SUPERMARKETS"
30/04/2015,http://opendatacommunities.org/id/county-council/surrey,Surrey,http://id.esd.org.uk/service/1465,Council expenditure,15/01/2015,MALLOW CRESCENT,SPLIT - ON LINE GROCERY SHOPPING (11.42%),15.05,PURCHASE OF FOOD (RAW MATERIALS),"GROCERY STORES, SUPERMARKETS"
30/04/2015,http://opendatacommunities.org/id/county-council/surrey,Surrey,http://id.esd.org.uk/service/1465,Council expenditure,15/01/2015,MALLOW CRESCENT,SPLIT - ON LINE GROCERY SHOPPING (9.51%),9.85,PURCHASE OF FOOD (RAW MATERIALS),"GROCERY STORES, SUPERMARKETS"
30/04/2015,http://opendatacommunities.org/id/county-council/surrey,Surrey,http://id.esd.org.uk/service/1465,Council expenditure,15/01/2015,MALLOW CRESCENT,SAINSBURYS TO YOU 0686,-5.50,PURCHASE OF FOOD (RAW MATERIALS),"GROCERY STORES, SUPERMARKETS"
30/04/2015,http://opendatacommunities.org/id/county-council/surrey,Surrey,http://id.esd.org.uk/service/1465,Council expenditure,15/01/2015,N REGIONAL STAFF,WWW.TEACRATE.COM,400.00,EQUIPMENT,"PUBLIC WAREHOUSING-FARM, REFRIG GOODS, HHG STORAGE"
30/04/2015,http://opendatacommunities.org/id/county-council/surrey,Surrey,http://id.esd.org.uk/service/1465,Council expenditure,15/01/2015,N REGIONAL STAFF,WWW.TEACRATE.COM,334.40,EQUIPMENT,"PUBLIC WAREHOUSING-FARM, REFRIG GOODS, HHG STORAGE"
30/04/2015,http://opendatacommunities.org/id/county-council/surrey,Surrey,http://id.esd.org.uk/service/1465,Council expenditure,15/01/2015,"NE REF, ASS & INT SERVICE - HUB 1",AMAZON  MKTPLCE EU-UK,99.75,COMPUTER CONSUMABLES,BOOK STORES
30/04/2015,http://opendatacommunities.org/id/county-council/surrey,Surrey,http://id.esd.org.uk/service/1465,Council expenditure,15/01/2015,NE SECTION 17 CARE,AMAZON  MKTPLCE EU-UK,17.54,FEES,BOOK STORES
30/04/2015,http://opendatacommunities.org/id/county-council/surrey,Surrey,http://id.esd.org.uk/service/1465,Council expenditure,15/01/2015,NIL RECOURSE PUBLIC FNDG 18+ ASYLUM SKR,PREMIER INN 44535935,225.00,3RD PARTY PAYMENTS PRIVATE INDIV,PREMIER INN
30/04/2015,http://opendatacommunities.org/id/county-council/surrey,Surrey,http://id.esd.org.uk/service/1465,Council expenditure,15/01/2015,NW CARE - LAC,CHARFLEETBI,11.82,FEES,MISCELLANEOUS PUBLISHING AND PRINTING
30/04/2015,http://opendatacommunities.org/id/county-council/surrey,Surrey,http://id.esd.org.uk/service/1465,Council expenditure,15/01/2015,NW SECTION 17 CARE,TRAVELODGE WEBSITE,73.30,CHILDREN ACT SEC 17 PAYMENTS,TRAVELODGE
30/04/2015,http://opendatacommunities.org/id/county-council/surrey,Surrey,http://id.esd.org.uk/service/1465,Council expenditure,15/01/2015,PE/CDT MAINTENANCE OVERHEADS,UNIVERSAL SERVICES (SP,71.82,EQUIPMENT,"ATHLTIC FIELDS,COMMRCL SPRT,SPRT CLBS,SPRT PROMOTR"
30/04/2015,http://opendatacommunities.org/id/county-council/surrey,Surrey,http://id.esd.org.uk/service/1465,Council expenditure,15/01/2015,PE/CDT MAINTENANCE OVERHEADS,WICKES,13.98,EQUIPMENT,"BUILDING MATERIALS, LUMBER STORES"
30/04/2015,http://opendatacommunities.org/id/county-council/surrey,Surrey,http://id.esd.org.uk/service/1465,Council expenditure,15/01/2015,PE/CDT MAINTENANCE OVERHEADS,HALFORDS 0731,5.49,EQUIPMENT,BICYCLE SHOPS-SALES AND SERVICE
30/04/2015,http://opendatacommunities.org/id/county-council/surrey,Surrey,http://id.esd.org.uk/service/1465,Council expenditure,15/01/2015,PROPERTY OPERATIONS TEAM,WICKES,63.29,PURCHASE OF BUILDING MATERIALS,"BUILDING MATERIALS, LUMBER STORES"
30/04/2015,http://opendatacommunities.org/id/county-council/surrey,Surrey,http://id.esd.org.uk/service/1465,Council expenditure,15/01/2015,PROPERTY OPERATIONS TEAM,SCREWFIX DIRECT,22.99,PURCHASE OF BUILDING MATERIALS,"BUILDING MATERIALS, LUMBER STORES"
30/04/2015,http://opendatacommunities.org/id/county-council/surrey,Surrey,http://id.esd.org.uk/service/1465,Council expenditure,15/01/2015,PROPERTY OPERATIONS TEAM,SCREWFIX DIRECT,22.99,PURCHASE OF BUILDING MATERIALS,"BUILDING MATERIALS, LUMBER STORES"
30/04/2015,http://opendatacommunities.org/id/county-council/surrey,Surrey,http://id.esd.org.uk/service/1465,Council expenditure,15/01/2015,PROPERTY OPERATIONS TEAM,GUILDFORD LOCK & SAFE,18.20,PURCHASE OF BUILDING MATERIALS,HARDWARE EQUIPMENT AND SUPPLIES
30/04/2015,http://opendatacommunities.org/id/county-council/surrey,Surrey,http://id.esd.org.uk/service/1465,Council expenditure,15/01/2015,PROPERTY OPERATIONS TEAM,SCREWFIX DIRECT,17.17,PURCHASE OF BUILDING MATERIALS,"BUILDING MATERIALS, LUMBER STORES"
30/04/2015,http://opendatacommunities.org/id/county-council/surrey,Surrey,http://id.esd.org.uk/service/1465,Council expenditure,15/01/2015,PSSS VISUALLY IMPAIRED,AMAZON  MKTPLCE EU-UK,79.68,EQUIPMENT,BOOK STORES
30/04/2015,http://opendatacommunities.org/id/county-council/surrey,Surrey,http://id.esd.org.uk/service/1465,Council expenditure,15/01/2015,PSSS VISUALLY IMPAIRED,AMAZON  MKTPLCE EU-UK,2.55,EQUIPMENT,BOOK STORES
30/04/2015,http://opendatacommunities.org/id/county-council/surrey,Surrey,http://id.esd.org.uk/service/1465,Council expenditure,15/01/2015,RUTH HOUSE,SPLIT - (83.89%),147.55,PURCHASE OF FOOD (RAW MATERIALS),"GROCERY STORES, SUPERMARKETS"
30/04/2015,http://opendatacommunities.org/id/county-council/surrey,Surrey,http://id.esd.org.uk/service/1465,Council expenditure,15/01/2015,RUTH HOUSE,SPLIT - (16.11%),28.34,PURCHASE OF FOOD (RAW MATERIALS),"GROCERY STORES, SUPERMARKETS"
30/04/2015,http://opendatacommunities.org/id/county-council/surrey,Surrey,http://id.esd.org.uk/service/1465,Council expenditure,15/01/2015,SAP COMPETENCY CENTRE,AMAZON  MKTPLCE EU-UK,14.30,EQUIPMENT,BOOK STORES
30/04/2015,http://opendatacommunities.org/id/county-council/surrey,Surrey,http://id.esd.org.uk/service/1465,Council expenditure,15/01/2015,SE CARE - NON-LAC CP & COURT,CITYSPRINT,65.95,POSTAGE AND COURIER CHARGES,"COURIER SVC-AIR & GROUND, FREIGHT FORWARDERS"
30/04/2015,http://opendatacommunities.org/id/county-council/surrey,Surrey,http://id.esd.org.uk/service/1465,Council expenditure,15/01/2015,SE EDUCATION PSYCHOLOGISTS,AMAZON EU,27.56,EDUC VISITS/HOLS/CAMPS/TOYS,DIRECT MARKETING-OTHER DIRECT MARKETERS/NOT ELSEW.
30/04/2015,http://opendatacommunities.org/id/county-council/surrey,Surrey,http://id.esd.org.uk/service/1465,Council expenditure,15/01/2015,SE EDUCATION PSYCHOLOGISTS,AMAZON EU,11.38,BOOKS,DIRECT MARKETING-OTHER DIRECT MARKETERS/NOT ELSEW.
30/04/2015,http://opendatacommunities.org/id/county-council/surrey,Surrey,http://id.esd.org.uk/service/1465,Council expenditure,15/01/2015,TARGETED INTERVENTION,LONDON AQUARIUM,80.90,EDUC VISITS/HOLS/CAMPS/TOYS,"AQUARIUMS, DOLPHINARIUMS, AND SEAQUARIUMS"
30/04/2015,http://opendatacommunities.org/id/county-council/surrey,Surrey,http://id.esd.org.uk/service/1465,Council expenditure,15/01/2015,TARGETED INTERVENTION,TICKETOFFICESALE,65.55,EDUC VISITS/HOLS/CAMPS/TOYS,PASSENGER RAILWAYS
30/04/2015,http://opendatacommunities.org/id/county-council/surrey,Surrey,http://id.esd.org.uk/service/1465,Council expenditure,15/01/2015,TARGETED INTERVENTION,CINEWORLD CRA CP,22.60,EDUC VISITS/HOLS/CAMPS/TOYS,"THEATRICAL PRODUCERS(EXCL MOTION PIX),TICKET AGNCY"
30/04/2015,http://opendatacommunities.org/id/county-council/surrey,Surrey,http://id.esd.org.uk/service/1465,Council expenditure,15/01/2015,TARGETED INTERVENTION,PRIMARK,11.50,EDUC VISITS/HOLS/CAMPS/TOYS,FAMILY CLOTHING STORES
30/04/2015,http://opendatacommunities.org/id/county-council/surrey,Surrey,http://id.esd.org.uk/service/1465,Council expenditure,15/01/2015,TARGETED INTERVENTION,COSTA COFFEE,9.75,EDUC VISITS/HOLS/CAMPS/TOYS,"EATING PLACES, RESTAURANTS"
30/04/2015,http://opendatacommunities.org/id/county-council/surrey,Surrey,http://id.esd.org.uk/service/1465,Council expenditure,15/01/2015,TARGETED INTERVENTION,SQUIRES GARDEN CEN,9.15,EDUC VISITS/HOLS/CAMPS/TOYS,LAWN AND GARDEN SUPPLY STORES
30/04/2015,http://opendatacommunities.org/id/county-council/surrey,Surrey,http://id.esd.org.uk/service/1465,Council expenditure,15/01/2015,TARGETED INTERVENTION,SQUIRES GARDEN CEN,4.15,EDUC VISITS/HOLS/CAMPS/TOYS,LAWN AND GARDEN SUPPLY STORES
30/04/2015,http://opendatacommunities.org/id/county-council/surrey,Surrey,http://id.esd.org.uk/service/1465,Council expenditure,15/01/2015,TARGETED INTERVENTION,HARRIS & HOOLE,4.05,EDUC VISITS/HOLS/CAMPS/TOYS,"EATING PLACES, RESTAURANTS"
30/04/2015,http://opendatacommunities.org/id/county-council/surrey,Surrey,http://id.esd.org.uk/service/1465,Council expenditure,15/01/2015,TARGETED INTERVENTION,WOKING BOROUGH COUNCIL,2.60,EDUC VISITS/HOLS/CAMPS/TOYS,AUTOMOBILE PARKING LOTS AND GARAGES
30/04/2015,http://opendatacommunities.org/id/county-council/surrey,Surrey,http://id.esd.org.uk/service/1465,Council expenditure,15/01/2015,TRAINING ENVIRONMENT SERVICES,EB  ORN 2015 CONFERENC,319.30,TRAINING EXPENSES EXTERNAL GENERAL,BUSINESS SERVICES-NOT ELSEWHERE CLASSIFIED
30/04/2015,http://opendatacommunities.org/id/county-council/surrey,Surrey,http://id.esd.org.uk/service/1465,Council expenditure,15/01/2015,TRANSPORT,MARINE WAREHOUSE,714.90,OPERATIONAL FIRE EQUIPMENT,MEN'S AND WOMEN'S CLOTHING STORES
30/04/2015,http://opendatacommunities.org/id/county-council/surrey,Surrey,http://id.esd.org.uk/service/1465,Council expenditure,15/01/2015,TRANSPORT,HALFORDS 0725,82.39,VEHICLE REPAIRS AND MAINTENANCE,BICYCLE SHOPS-SALES AND SERVICE
30/04/2015,http://opendatacommunities.org/id/county-council/surrey,Surrey,http://id.esd.org.uk/service/1465,Council expenditure,15/01/2015,TRANSPORT,HOMEBASE LTD 247,37.96,DAY TO DAY MAINTENANCE,"BUILDING MATERIALS, LUMBER STORES"
30/04/2015,http://opendatacommunities.org/id/county-council/surrey,Surrey,http://id.esd.org.uk/service/1465,Council expenditure,15/01/2015,TRANSPORT,AMAZON  MKTPLCE EU-UK,24.99,COMPUTER HARDWARE,BOOK STORES
30/04/2015,http://opendatacommunities.org/id/county-council/surrey,Surrey,http://id.esd.org.uk/service/1465,Council expenditure,15/01/2015,TRANSPORT,AMAZON  MKTPLCE EU-UK,20.96,COMPUTER HARDWARE,BOOK STORES
30/04/2015,http://opendatacommunities.org/id/county-council/surrey,Surrey,http://id.esd.org.uk/service/1465,Council expenditure,15/01/2015,TRANSPORT,AMAZON  MKTPLCE EU-UK,5.98,COMPUTER HARDWARE,BOOK STORES
30/04/2015,http://opendatacommunities.org/id/county-council/surrey,Surrey,http://id.esd.org.uk/service/1465,Council expenditure,15/01/2015,TRANSPORT,AMAZON  MKTPLCE EU-UK,5.25,DAY TO DAY MAINTENANCE,BOOK STORES
30/04/2015,http://opendatacommunities.org/id/county-council/surrey,Surrey,http://id.esd.org.uk/service/1465,Council expenditure,15/01/2015,WOODLANDS COMMUNITY HOME,SAINSBURYS 0686,24.99,EQUIPMENT,"GROCERY STORES, SUPERMARKETS"
30/04/2015,http://opendatacommunities.org/id/county-council/surrey,Surrey,http://id.esd.org.uk/service/1465,Council expenditure,16/01/2015,APPLICATIONS TRAINING - PROJECTS,PC WORLD ONLINE,659.35,EQUIPMENT,ELECTRONIC SALES
30/04/2015,http://opendatacommunities.org/id/county-council/surrey,Surrey,http://id.esd.org.uk/service/1465,Council expenditure,16/01/2015,ARUNDEL,SPLIT - (95.37%),61.85,REFRESHMENT COSTS,"GROCERY STORES, SUPERMARKETS"
30/04/2015,http://opendatacommunities.org/id/county-council/surrey,Surrey,http://id.esd.org.uk/service/1465,Council expenditure,16/01/2015,ARUNDEL,SPLIT - (4.63%),3.00,REFRESHMENT COSTS,"GROCERY STORES, SUPERMARKETS"
30/04/2015,http://opendatacommunities.org/id/county-council/surrey,Surrey,http://id.esd.org.uk/service/1465,Council expenditure,16/01/2015,ASYLUM SEEKERS 18+,LB CROYDON,170.47,INDEPENDENT LIVING PLACEMENTS,GOVERNMENT SERVICES-NOT ELSEWHERE CLASSIFIED
30/04/2015,http://opendatacommunities.org/id/county-council/surrey,Surrey,http://id.esd.org.uk/service/1465,Council expenditure,16/01/2015,BRAMLEY LIBRARY,AMAZON  MKTPLCE EU-UK,36.94,EQUIPMENT,BOOK STORES
30/04/2015,http://opendatacommunities.org/id/county-council/surrey,Surrey,http://id.esd.org.uk/service/1465,Council expenditure,16/01/2015,CEO - PUBLIC HEALTH CAMPAIGNS           ,FACEBOOK RVPBH7E9K2,48.14,PUBLICITY,ADVERTISING SERVICES
30/04/2015,http://opendatacommunities.org/id/county-council/surrey,Surrey,http://id.esd.org.uk/service/1465,Council expenditure,16/01/2015,CHEYNE WALK COMMUNITY HOME,TEAM SPORT V/T,155.94,EDUC VISITS/HOLS/CAMPS/TOYS,"AMUSEMENT PARKS,CARNIVALS,CIRCUS,FORTUNE TELLERS"
30/04/2015,http://opendatacommunities.org/id/county-council/surrey,Surrey,http://id.esd.org.uk/service/1465,Council expenditure,16/01/2015,CHEYNE WALK COMMUNITY HOME,TEAM SPORT V/T,60.00,EDUC VISITS/HOLS/CAMPS/TOYS,"AMUSEMENT PARKS,CARNIVALS,CIRCUS,FORTUNE TELLERS"
30/04/2015,http://opendatacommunities.org/id/county-council/surrey,Surrey,http://id.esd.org.uk/service/1465,Council expenditure,16/01/2015,CHILDREN'S CENTRAL REFERRAL UNIT,WWW.TONERGIANT.CO.UK,162.18,STATIONERY,"OFFICE, SCHOOL SUPPLY, AND STATIONERY STORES"
30/04/2015,http://opendatacommunities.org/id/county-council/surrey,Surrey,http://id.esd.org.uk/service/1465,Council expenditure,16/01/2015,COMMUNICATIONS TEAM,FINANCIAL TIMES,66.66,SUBSCRIPTIONS,DIRECT MARKETING-CATALOG MERCHANTS
30/04/2015,http://opendatacommunities.org/id/county-council/surrey,Surrey,http://id.esd.org.uk/service/1465,Council expenditure,16/01/2015,COMMUNICATIONS TEAM,AMAZON EU,46.51,EQUIPMENT,DIRECT MARKETING-OTHER DIRECT MARKETERS/NOT ELSEW.
30/04/2015,http://opendatacommunities.org/id/county-council/surrey,Surrey,http://id.esd.org.uk/service/1465,Council expenditure,16/01/2015,COUNTY HALL,WWW.ERS-ONLINE.CO.UK,316.08,PRINTING,"OFFICE, SCHOOL SUPPLY, AND STATIONERY STORES"
30/04/2015,http://opendatacommunities.org/id/county-council/surrey,Surrey,http://id.esd.org.uk/service/1465,Council expenditure,16/01/2015,COUNTY HALL,B I F M,144.00,FEES,"ASSOCIATIONS-CIVIC, SOCIAL, AND FRATERNAL"
30/04/2015,http://opendatacommunities.org/id/county-council/surrey,Surrey,http://id.esd.org.uk/service/1465,Council expenditure,16/01/2015,COUNTYWIDE MANAGED PRINT SERVICE,GALTEC SOLUTIONS LTD,126.00,COMPUTER CONSUMABLES,COMPUTER SOFTWARE STORES
30/04/2015,http://opendatacommunities.org/id/county-council/surrey,Surrey,http://id.esd.org.uk/service/1465,Council expenditure,16/01/2015,CSF BUSINESS SUPPORT EDUCATION,AMAZON  MKTPLCE EU-UK,4.89,EQUIPMENT,BOOK STORES
30/04/2015,http://opendatacommunities.org/id/county-council/surrey,Surrey,http://id.esd.org.uk/service/1465,Council expenditure,16/01/2015,EXTENDED HOURS SREVICE,TVLICENSING.CO.UK,145.50,SUBSCRIPTIONS,"CONSULTING, MANAGEMENT, AND PUBLIC RELATIONS SVCS"
30/04/2015,http://opendatacommunities.org/id/county-council/surrey,Surrey,http://id.esd.org.uk/service/1465,Council expenditure,16/01/2015,FINANCE CHANGE AND PERFORMANCE GROUP,AMAZON EU,9.52,EQUIPMENT,DIRECT MARKETING-OTHER DIRECT MARKETERS/NOT ELSEW.
30/04/2015,http://opendatacommunities.org/id/county-council/surrey,Surrey,http://id.esd.org.uk/service/1465,Council expenditure,16/01/2015,GUILDFORD BOROUGH TEAM                  ,WOKING ADULT,131.00,SUBSCRIPTIONS,GOVERNMENT SERVICES-NOT ELSEWHERE CLASSIFIED
30/04/2015,http://opendatacommunities.org/id/county-council/surrey,Surrey,http://id.esd.org.uk/service/1465,Council expenditure,16/01/2015,HILLSIDE,SAINSBURYS SACAT 0675,37.34,PURCHASE OF FOOD (RAW MATERIALS),"GROCERY STORES, SUPERMARKETS"
30/04/2015,http://opendatacommunities.org/id/county-council/surrey,Surrey,http://id.esd.org.uk/service/1465,Council expenditure,16/01/2015,HOPE SERVICE - WEST,SAINSBURYS SACAT(4409),5.95,PURCHASE OF FOOD (RAW MATERIALS),"GROCERY STORES, SUPERMARKETS"
30/04/2015,http://opendatacommunities.org/id/county-council/surrey,Surrey,http://id.esd.org.uk/service/1465,Council expenditure,16/01/2015,IMPROVING OUTCOMES,AMAZON  MKTPLCE EU-UK,37.06,EQUIPMENT,BOOK STORES
30/04/2015,http://opendatacommunities.org/id/county-council/surrey,Surrey,http://id.esd.org.uk/service/1465,Council expenditure,16/01/2015,IMPROVING OUTCOMES - ECAT,AMAZON  MKTPLCE EU-UK,17.94,EDUC VISITS/HOLS/CAMPS/TOYS,BOOK STORES
30/04/2015,http://opendatacommunities.org/id/county-council/surrey,Surrey,http://id.esd.org.uk/service/1465,Council expenditure,16/01/2015,KARIBU COMMUNITY HOME,TESCO STORE 2812,420.84,PURCHASE OF FOOD (RAW MATERIALS),"GROCERY STORES, SUPERMARKETS"
30/04/2015,http://opendatacommunities.org/id/county-council/surrey,Surrey,http://id.esd.org.uk/service/1465,Council expenditure,16/01/2015,LEAVING CARE PACKAGES,TRAVELODGE WEBSITE,185.00,3RD PARTY PAYMENTS PRIVATE INDIV,TRAVELODGE
30/04/2015,http://opendatacommunities.org/id/county-council/surrey,Surrey,http://id.esd.org.uk/service/1465,Council expenditure,16/01/2015,LIBERTAS COMMUNITY HOME,SPLIT - PROVISIONS AND A KETTLE (82.59%),176.93,PURCHASE OF FOOD (RAW MATERIALS),"GROCERY STORES, SUPERMARKETS"
30/04/2015,http://opendatacommunities.org/id/county-council/surrey,Surrey,http://id.esd.org.uk/service/1465,Council expenditure,16/01/2015,LIBERTAS COMMUNITY HOME,SPLIT - PROVISIONS AND A KETTLE (9.33%),19.99,EQUIPMENT,"GROCERY STORES, SUPERMARKETS"
30/04/2015,http://opendatacommunities.org/id/county-council/surrey,Surrey,http://id.esd.org.uk/service/1465,Council expenditure,16/01/2015,LIBERTAS COMMUNITY HOME,SPLIT - PROVISIONS AND A KETTLE (8.08%),17.30,PURCHASE OF FOOD (RAW MATERIALS),"GROCERY STORES, SUPERMARKETS"
30/04/2015,http://opendatacommunities.org/id/county-council/surrey,Surrey,http://id.esd.org.uk/service/1465,Council expenditure,16/01/2015,LOWER MOLE COUNTRYSIDE PROJECT,WWW.EPSOM-EWELL.GOV.UK,99.47,TRAINING EXPENSES EXTERNAL GENERAL,GOVERNMENT SERVICES-NOT ELSEWHERE CLASSIFIED
30/04/2015,http://opendatacommunities.org/id/county-council/surrey,Surrey,http://id.esd.org.uk/service/1465,Council expenditure,16/01/2015,MALLOW CRESCENT,CURRYS ONLINE,429.99,EQUIPMENT,ELECTRONIC SALES
30/04/2015,http://opendatacommunities.org/id/county-council/surrey,Surrey,http://id.esd.org.uk/service/1465,Council expenditure,16/01/2015,MALLOW CRESCENT,OBX AXS.COM TICKETS,21.75,EDUC VISITS/HOLS/CAMPS/TOYS,"THEATRICAL PRODUCERS(EXCL MOTION PIX),TICKET AGNCY"
30/04/2015,http://opendatacommunities.org/id/county-council/surrey,Surrey,http://id.esd.org.uk/service/1465,Council expenditure,16/01/2015,NE CARE - NON-LAC CP & COURT,MULTI STORE LTD,459.00,CHILDREN ACT SEC 17 PAYMENTS,"FREIGHT CARRIER,TRUCKING-LCL/LNG DIST, MVG/STORAGE"
30/04/2015,http://opendatacommunities.org/id/county-council/surrey,Surrey,http://id.esd.org.uk/service/1465,Council expenditure,16/01/2015,NE EDUCATION WELFARE OFFICERS,AMAZON  MKTPLCE EU-UK,10.70,EQUIPMENT,BOOK STORES
30/04/2015,http://opendatacommunities.org/id/county-council/surrey,Surrey,http://id.esd.org.uk/service/1465,Council expenditure,16/01/2015,NW SECTION 17 CARE,TRAVELODGE WEBSITE,135.00,CHILDREN ACT SEC 17 PAYMENTS,TRAVELODGE
30/04/2015,http://opendatacommunities.org/id/county-council/surrey,Surrey,http://id.esd.org.uk/service/1465,Council expenditure,16/01/2015,OPS-FLEET/WORKSHOPS,BLUELITE GRAPHICS,216.00,CE03 CAPITAL VEHICLES AND PLANT,"AUTOMOTIVE PARTS, ACCESSORIES STORES"
30/04/2015,http://opendatacommunities.org/id/county-council/surrey,Surrey,http://id.esd.org.uk/service/1465,Council expenditure,16/01/2015,PE/CDT MAINTENANCE OVERHEADS,MEGA ELECTRONICS LTD,264.00,EQUIPMENT,ELECTRICAL PARTS AND EQUIPMENT
30/04/2015,http://opendatacommunities.org/id/county-council/surrey,Surrey,http://id.esd.org.uk/service/1465,Council expenditure,16/01/2015,PE/CDT MAINTENANCE OVERHEADS,WICKES,10.49,EQUIPMENT,"BUILDING MATERIALS, LUMBER STORES"
30/04/2015,http://opendatacommunities.org/id/county-council/surrey,Surrey,http://id.esd.org.uk/service/1465,Council expenditure,16/01/2015,PLANNING DEVELOPMENT CONTROL TEAM,WWW.POWERTOOLDIREC,74.93,"CLOTHING, UNIFORM AND LAUNDRY",HOUSEHOLD APPLIANCE STORES
